account_party,address,code,date,document_number,expense_code_name,expense_code_name_short,id,party_cell,party_cell_code,party_cell_geoobject,purpose,source_bank_account_number,source_bank_account_type,sum,target_legal_personality,target_legal_personality_code,target_type
АПУ,,84,2017-12-29,325,"Заробітна плата, премії","Заробітна плата, лікарняні, вагітності, відрядження, компенсації",23801,Одеська обласна організація,37279902,Одеська область,заробітна плата за 2-гу половину грудня,26005054325961,current,1529.50,Терещенко Людмила Степанівна,,фізична особа
АПУ,,84,2017-12-29,325,"Заробітна плата, премії","Заробітна плата, лікарняні, вагітності, відрядження, компенсації",23800,Одеська обласна організація,37279902,Одеська область,заробітна плата за 2-гу половину грудня,26005054325961,current,1529.50,Литвиненко Ольга Семенівна,,фізична особа
АПУ,"Харківська область, Нововодолазький район, Липкуватівка",84,2017-12-29,325,"Заробітна плата, премії","Заробітна плата, лікарняні, вагітності, відрядження, компенсації",23799,Одеська обласна організація,37279902,Одеська область,заробітна плата за 2-гу половину грудня,26005054325961,current,1529.50,Гавриленко Тетяна Володимирівна,,фізична особа
АПУ,,84,2017-12-29,325,"Заробітна плата, премії","Заробітна плата, лікарняні, вагітності, відрядження, компенсації",23798,Одеська обласна організація,37279902,Одеська область,заробітна плата за 2-гу половину грудня,26005054325961,current,1932.00,Погребна Тетяна Миколаївна,,фізична особа
АПУ,,84,2017-12-29,129,"Заробітна плата, премії","Заробітна плата, лікарняні, вагітності, відрядження, компенсації",23744,Кіровоградська обласна організація,36978104,Кіровоградська область,Заробітна плата за грудень 2017 р.,26007052918872,current,1632.22,Михалевський Юрій Рашидович,,фізична особа
АПУ,,84,2017-12-29,128,"Заробітна плата, премії","Заробітна плата, лікарняні, вагітності, відрядження, компенсації",23743,Кіровоградська обласна організація,36978104,Кіровоградська область,Заробітна плата за листопад 2017 р.,26007052918872,current,3864.00,Михалевський Юрій Рашидович,,фізична особа
АПУ,"Одеська область, Одеса, вулиця Генерала Петрова, 54, 102",58,2017-12-29,320,"Виготовлення друкованих матеріалів (плакатів, листівок, буклетів та інших агітаційних матеріалів)",Друкована агітація,22929,Одеська обласна організація,37279902,Одеська область,пропагандистська діяльність (відавнича діяльність),26005054325961,current,3354.00,Герцегович І Н,2256708516,фізична особа
АПУ,"Одеська область, Біляївський район, Біляївка, вулиця Успенська, 52",79,2017-12-29,H1230TQ9KQ,"Оренда будинків і приміщень та експлуатаційні витрати (прибирання, страхування орендованих будинків, охорона, сигналізація, ремонт, вивіз сміття, тощо)",Оренда нерухомості,22920,Біляївська районна організація,34784437,Одеська область,оренда приміщення,2600505436552,current,516.00,Бондаренко Г І,2250723839,фізична особа
АПУ,"Одеська область, Одеса, вулиця Жуковського, 39, 1",79,2017-12-29,333,"Оренда будинків і приміщень та експлуатаційні витрати (прибирання, страхування орендованих будинків, охорона, сигналізація, ремонт, вивіз сміття, тощо)",Оренда нерухомості,22845,Одеська обласна організація,37279902,Одеська область,оренда приміщення (офіса за грудень),26005054325961,current,8147.00,Гнатюк Юрій Юрійович,2006101555,фізична особа
АПУ,"Одеська область, Одеса, Французький бульвар, 7",62,2017-12-29,331,Сплата ЄСВ,Податкові платежі,22628,Одеська обласна організація,37279902,Одеська область,Сплачені податки та збори(єсв за 2-гу пол.грудня),26005054325961,current,1782.00,ДПІ у Приморському районі м. Одеси ГУ ДФС в Одеській області,39565511,юридична особа
АПУ,"Одеська область, Одеса, вулиця Черняховського, 6",63,2017-12-29,330,Податок на доходи,Податкові платежі,22199,Одеська обласна організація,37279902,Одеська область,Сплачені податки та збори (податок з доходів за 2-гу пол грудня),26005054325961,current,1458.00,УДКСУ у м. Одесі,38016923,юридична особа
АПУ,"Одеська область, Одеса, вулиця Черняховського, 6",61,2017-12-29,328,Військовий збір,Податкові платежі,22198,Одеська обласна організація,37279902,Одеська область,Сплачені податки та збори(військовий збір за 2-гу пол.грудня),26005054325961,current,121.50,УДКСУ у м. Одесі,38016923,юридична особа
АПУ,"Одеська область, Одеса, вулиця Краснова, 6/1",70,2017-12-29,рко,Банківські послуги,Інші витрати,21171,Хмельницька обласна організація,39968240,Хмельницька область,інші незаборонені законом витрати (Послуги банку),26003010007435,current,38.11,"АБ ""Південний""",20953647,юридична особа
АПУ,"Київ, вулиця Михайла Грушевського, 1Д",70,2017-12-29,H12297T59W,Банківські послуги,Інші витрати,20988,Чернівецька обласна організація,35096655,Чернівецька область,Інші не заборонені витрати,26002051503022,current,106.62,"ПАТ КБ ""Приватбанк""",14360570,юридична особа
АПУ,"Київ, вулиця Михайла Грушевського, 1Д",70,2017-12-29,H12297T5UV,Банківські послуги,Інші витрати,20987,Чернівецька обласна організація,35096655,Чернівецька область,Інші не заборонені витрати,26002051503022,current,135.00,"ПАТ КБ ""Приватбанк""",14360570,юридична особа
АПУ,"Київ, вулиця Михайла Грушевського, 1Д",70,2017-12-29,CTO0NTTAHY,Банківські послуги,Інші витрати,20130,Одеська обласна організація,37279902,Одеська область,матерiальні витрати та послуги (комісія за виконання платежів в національній валюті),26005054325961,current,3.00,"ПАТ КБ ""Приватбанк""",14360570,юридична особа
АПУ,"Київ, вулиця Михайла Грушевського, 1Д",70,2017-12-29,CTO0NTT8OY,Банківські послуги,Інші витрати,20129,Одеська обласна організація,37279902,Одеська область,матерiальні витрати та послуги (комісія за виконання платежів в національній валюті),26005054325961,current,3.00,"ПАТ КБ ""Приватбанк""",14360570,юридична особа
АПУ,"Київ, вулиця Михайла Грушевського, 1Д",70,2017-12-29,CTO0NTT6VY,Банківські послуги,Інші витрати,20128,Одеська обласна організація,37279902,Одеська область,матерiальні витрати та послуги (комісія за виконання платежів в національній валюті),26005054325961,current,3.00,"ПАТ КБ ""Приватбанк""",14360570,юридична особа
АПУ,"Чернігівська область, Чернігів, проспект Миру, 19",70,2017-12-29,125397851,Банківські послуги,Інші витрати,18896,Бахмацька районна організація,39979341,Чернігівська область,інші не заборонені законом витрати (Коміс. за розрах.обсл.рахунку 26000300021430 з 01-12-2017 по 31-12-2017. Без НДС.),26000300021430,current,10.00,"Чернігівська обласна філія АТ ""Ощадбанк""",09353504,юридична особа
АПУ,"Вінницька область, Барський район, Бар",70,2017-12-29,148139763,Банківські послуги,Інші витрати,18496,Тростянецька районна організація,39936863,Вінницька область,матеріальні витрати та оплата послуг (абонплата за грудень 2017 р.),26002300384695,current,49.00,"Вінницька обласна філія АТ ""Ощадбанк""",09302607,юридична особа
АПУ,,84,2017-12-28,15,"Заробітна плата, премії","Заробітна плата, лікарняні, вагітності, відрядження, компенсації",24308,Чернівецька обласна організація,35096655,Чернівецька область,Заробітна плата за I половину грудня 2017р.,26002051503022,current,6578.00,Усик Віталій Віталійович,,фізична особа
АПУ,,84,2017-12-28,15,"Заробітна плата, премії","Заробітна плата, лікарняні, вагітності, відрядження, компенсації",24307,Чернівецька обласна організація,35096655,Чернівецька область,Заробітна плата за I половину грудня 2017р.,26002051503022,current,7114.66,Ноголь Анна Вячеславівна,,фізична особа
АПУ,,84,2017-12-28,15,"Заробітна плата, премії","Заробітна плата, лікарняні, вагітності, відрядження, компенсації",24306,Чернівецька обласна організація,35096655,Чернівецька область,Заробітна плата за I половину грудня 2017р.,26002051503022,current,8770.67,Баглей Борис Михайлович,,фізична особа
АПУ,,84,2017-12-28,15,"Заробітна плата, премії","Заробітна плата, лікарняні, вагітності, відрядження, компенсації",24305,Чернівецька обласна організація,35096655,Чернівецька область,Заробітна плата за I половину грудня 2017р.,26002051503022,current,9752.01,Івасюк Руслана Іванівна,,фізична особа
АПУ,Київ,84,2017-12-28,89194291,"Заробітна плата, премії","Заробітна плата, лікарняні, вагітності, відрядження, компенсації",24248,Хмельницька обласна організація,39968240,Хмельницька область,заробітна плата,26003010007435,current,813.05,Іващук Сергій Петрович,,фізична особа
АПУ,"Хмельницька область, Хмельницький",84,2017-12-28,89194291,"Заробітна плата, премії","Заробітна плата, лікарняні, вагітності, відрядження, компенсації",24247,Хмельницька обласна організація,39968240,Хмельницька область,заробітна плата,26003010007435,current,732.55,Ґедзь Світлана Іванівна,,фізична особа
АПУ,"Хмельницька область, Хмельницький",84,2017-12-28,89194291,"Заробітна плата, премії","Заробітна плата, лікарняні, вагітності, відрядження, компенсації",24246,Хмельницька обласна організація,39968240,Хмельницька область,заробітна плата,26003010007435,current,1465.10,Бабіна Неоніла Анатоліївна,,фізична особа
АПУ,,84,2017-12-28,89230520,"Заробітна плата, премії","Заробітна плата, лікарняні, вагітності, відрядження, компенсації",23823,Одеська міська організація,40560001,Одеська область,"заробітна плата за листопад, грудень 2017р.",26007010020883,current,5622.30,Догарева Тетяна Онисимівна,,фізична особа
АПУ,,84,2017-12-28,89230520,"Заробітна плата, премії","Заробітна плата, лікарняні, вагітності, відрядження, компенсації",23822,Одеська міська організація,40560001,Одеська область,"заробітна плата за листопад, грудень 2017р.",26007010020883,current,5152.00,Губко Роман Ігорович,,фізична особа
АПУ,"Київ, вулиця Академіка Заболотного",84,2017-12-28,5301,"Заробітна плата, премії","Заробітна плата, лікарняні, вагітності, відрядження, компенсації",23708,Центральний офіс,34763401,Україна,заробітна плата,26009052641121,current,2000.00,Скоцик Віталій Євстафійович,,фізична особа
АПУ,"Херсонська область, Херсон",84,2017-12-28,5301,"Заробітна плата, премії","Заробітна плата, лікарняні, вагітності, відрядження, компенсації",23707,Центральний офіс,34763401,Україна,заробітна плата,26009052641121,current,1213.49,Смолієнко Оксана Володимирівна,,фізична особа
АПУ,"Закарпатська область, Ужгород, вулиця Руставелі, 3",84,2017-12-28,5301,"Заробітна плата, премії","Заробітна плата, лікарняні, вагітності, відрядження, компенсації",23706,Центральний офіс,34763401,Україна,заробітна плата,26009052641121,current,2000.00,Годя Михайло Іванович,,фізична особа
АПУ,"Луганська область, Сватівський район, Сватове",84,2017-12-28,5301,"Заробітна плата, премії","Заробітна плата, лікарняні, вагітності, відрядження, компенсації",23705,Центральний офіс,34763401,Україна,заробітна плата,26009052641121,current,5659.15,Підкуйко Сергій Іванович,,фізична особа
АПУ,"Черкаська область, Черкаси, вулиця Тараскова",84,2017-12-28,5301,"Заробітна плата, премії","Заробітна плата, лікарняні, вагітності, відрядження, компенсації",23704,Центральний офіс,34763401,Україна,заробітна плата,26009052641121,current,2000.00,Карнарук Богдан Миколайович,,фізична особа
АПУ,"Чернівецька область, Чернівці, вулиця Сімовича",84,2017-12-28,5301,"Заробітна плата, премії","Заробітна плата, лікарняні, вагітності, відрядження, компенсації",23703,Центральний офіс,34763401,Україна,заробітна плата,26009052641121,current,2000.00,Івасюк Руслана Іванівна,,фізична особа
АПУ,"Харківська область, Чугуїв, улица Кожедуба",84,2017-12-28,5301,"Заробітна плата, премії","Заробітна плата, лікарняні, вагітності, відрядження, компенсації",23702,Центральний офіс,34763401,Україна,заробітна плата,26009052641121,current,2000.00,Варжеїнов Юрій Костянтинович,,фізична особа
АПУ,"Полтавська область, Полтава, бульвар Боровиковського, 7",84,2017-12-28,5301,"Заробітна плата, премії","Заробітна плата, лікарняні, вагітності, відрядження, компенсації",23701,Центральний офіс,34763401,Україна,заробітна плата,26009052641121,current,2000.00,Хрипливий Валерій Васильович,,фізична особа
АПУ,"Одеська область, Одеса, проспект Шевченка",84,2017-12-28,5301,"Заробітна плата, премії","Заробітна плата, лікарняні, вагітності, відрядження, компенсації",23700,Центральний офіс,34763401,Україна,заробітна плата,26009052641121,current,2000.00,Погребна Тетяна Миколаївна,,фізична особа
АПУ,"Рівненська область, Рівне",84,2017-12-28,5301,"Заробітна плата, премії","Заробітна плата, лікарняні, вагітності, відрядження, компенсації",23699,Центральний офіс,34763401,Україна,заробітна плата,26009052641121,current,2000.00,Подорожній Юрій Анатолійович,,фізична особа
АПУ,"Кіровоградська область, Кропивницький, вулиця Волкова, 12",84,2017-12-28,5301,"Заробітна плата, премії","Заробітна плата, лікарняні, вагітності, відрядження, компенсації",23698,Центральний офіс,34763401,Україна,заробітна плата,26009052641121,current,2000.00,Михалевський Юрій Рашидович,,фізична особа
АПУ,"Донецька область, Добропілля",84,2017-12-28,5301,"Заробітна плата, премії","Заробітна плата, лікарняні, вагітності, відрядження, компенсації",23697,Центральний офіс,34763401,Україна,заробітна плата,26009052641121,current,2000.00,Шевченко Валентина Григорівна,,фізична особа
АПУ,"Київська обл., Бориспіль, вулиця Бежівка",84,2017-12-28,5301,"Заробітна плата, премії","Заробітна плата, лікарняні, вагітності, відрядження, компенсації",23696,Центральний офіс,34763401,Україна,заробітна плата,26009052641121,current,2000.00,Кононенко Олена Миколаївна,,фізична особа
АПУ,"Київ, вулиця Лятошинського",84,2017-12-28,5301,"Заробітна плата, премії","Заробітна плата, лікарняні, вагітності, відрядження, компенсації",23695,Центральний офіс,34763401,Україна,заробітна плата,26009052641121,current,2000.00,Єрмоленко Юлія Миколаївна,,фізична особа
АПУ,Донецька область,84,2017-12-28,5301,"Заробітна плата, премії","Заробітна плата, лікарняні, вагітності, відрядження, компенсації",23694,Центральний офіс,34763401,Україна,заробітна плата,26009052641121,current,2000.00,Цурукова Аліса Олександрівна,,фізична особа
АПУ,"Київ, проспект Науки",84,2017-12-28,5301,"Заробітна плата, премії","Заробітна плата, лікарняні, вагітності, відрядження, компенсації",23693,Центральний офіс,34763401,Україна,заробітна плата,26009052641121,current,2000.00,Петренко Ірина Миколаївна,,фізична особа
АПУ,"Київська обл., Березань",84,2017-12-28,5301,"Заробітна плата, премії","Заробітна плата, лікарняні, вагітності, відрядження, компенсації",23692,Центральний офіс,34763401,Україна,заробітна плата,26009052641121,current,2000.00,Дмитренко Олександр Іванович,,фізична особа
АПУ,"Житомирська область, Брусилівський район, Ставище, вул. Житомирська",84,2017-12-28,5301,"Заробітна плата, премії","Заробітна плата, лікарняні, вагітності, відрядження, компенсації",23691,Центральний офіс,34763401,Україна,заробітна плата,26009052641121,current,2000.00,Набокова Ельвіра Василівна,,фізична особа
АПУ,"Київ, вулиця Євгена Коновальця",84,2017-12-28,5301,"Заробітна плата, премії","Заробітна плата, лікарняні, вагітності, відрядження, компенсації",23690,Центральний офіс,34763401,Україна,заробітна плата,26009052641121,current,7576.86,Безсмертний Роман Петрович,,фізична особа
АПУ,"Київ, бульвар Володимира Висоцького",84,2017-12-28,5301,"Заробітна плата, премії","Заробітна плата, лікарняні, вагітності, відрядження, компенсації",23689,Центральний офіс,34763401,Україна,заробітна плата,26009052641121,current,6912.16,Лопух Григорій Олексійович,,фізична особа
АПУ,"Київ, вулиця Дубровицька",84,2017-12-28,5301,"Заробітна плата, премії","Заробітна плата, лікарняні, вагітності, відрядження, компенсації",23688,Центральний офіс,34763401,Україна,заробітна плата,26009052641121,current,2000.00,Кашперенко Анастасія Геннадіївна,,фізична особа
АПУ,"Київська обл., Бориспіль, вулиця Шевченка",84,2017-12-28,5301,"Заробітна плата, премії","Заробітна плата, лікарняні, вагітності, відрядження, компенсації",23687,Центральний офіс,34763401,Україна,заробітна плата,26009052641121,current,2000.00,Скрипка Оксана Анатоліївна,,фізична особа
АПУ,"Київ, вулиця Оноре де Бальзака",84,2017-12-28,5301,"Заробітна плата, премії","Заробітна плата, лікарняні, вагітності, відрядження, компенсації",23686,Центральний офіс,34763401,Україна,заробітна плата,26009052641121,current,2000.00,Мінченко Геннадій Леонідович,,фізична особа
АПУ,"Київ, вулиця Ревуцького",84,2017-12-28,5301,"Заробітна плата, премії","Заробітна плата, лікарняні, вагітності, відрядження, компенсації",23685,Центральний офіс,34763401,Україна,заробітна плата,26009052641121,current,2000.00,Лобанець Тетяна Вікторівна,,фізична особа
АПУ,"Київська обл., Києво-Святошинський район, Боярка, вулиця Гоголя",84,2017-12-28,5301,"Заробітна плата, премії","Заробітна плата, лікарняні, вагітності, відрядження, компенсації",23684,Центральний офіс,34763401,Україна,заробітна плата,26009052641121,current,2000.00,Кульгава Наталія Сергіївна,,фізична особа
АПУ,"Херсонська область, Нова Каховка, проспект Перемоги",84,2017-12-28,5301,"Заробітна плата, премії","Заробітна плата, лікарняні, вагітності, відрядження, компенсації",23683,Центральний офіс,34763401,Україна,заробітна плата,26009052641121,current,2000.00,Агєєв Олексій Олександрович,,фізична особа
АПУ,"Сумська область, Суми, вулиця Герасима Кондратьєва",84,2017-12-28,5301,"Заробітна плата, премії","Заробітна плата, лікарняні, вагітності, відрядження, компенсації",23682,Центральний офіс,34763401,Україна,заробітна плата,26009052641121,current,2000.00,Мусієнко Оксана Володимирівна,,фізична особа
АПУ,"Київська обл., Бучанська район, Буча, Нове шосе",84,2017-12-28,5301,"Заробітна плата, премії","Заробітна плата, лікарняні, вагітності, відрядження, компенсації",23681,Центральний офіс,34763401,Україна,заробітна плата,26009052641121,current,2000.00,Бакуменко Ірина Юріївна,,фізична особа
АПУ,"Київ, вулиця Тулузи",84,2017-12-28,5301,"Заробітна плата, премії","Заробітна плата, лікарняні, вагітності, відрядження, компенсації",23680,Центральний офіс,34763401,Україна,заробітна плата,26009052641121,current,2000.00,Лукащук Юрій Юрійович,,фізична особа
АПУ,"Житомирська область, Овруцький район, Овруч, вулиця Івана Мазепи",84,2017-12-28,5301,"Заробітна плата, премії","Заробітна плата, лікарняні, вагітності, відрядження, компенсації",23679,Центральний офіс,34763401,Україна,заробітна плата,26009052641121,current,2000.00,Хосровлу Фікрет Ісраіл огли,,фізична особа
АПУ,"Київ, проспект Свободи",84,2017-12-28,5301,"Заробітна плата, премії","Заробітна плата, лікарняні, вагітності, відрядження, компенсації",23678,Центральний офіс,34763401,Україна,заробітна плата,26009052641121,current,2000.00,Степаненко Владислав Володимирович,,фізична особа
АПУ,"Київська обл., Переяслав, Богдана Хмельницького вулиця",84,2017-12-28,5301,"Заробітна плата, премії","Заробітна плата, лікарняні, вагітності, відрядження, компенсації",23677,Центральний офіс,34763401,Україна,заробітна плата,26009052641121,current,2000.00,Фесенко Сергій Володимирович,,фізична особа
АПУ,"Київська обл., Бориспіль, вулиця Городня",84,2017-12-28,5301,"Заробітна плата, премії","Заробітна плата, лікарняні, вагітності, відрядження, компенсації",23676,Центральний офіс,34763401,Україна,заробітна плата,26009052641121,current,2000.00,Крилач Тетяна Володимирівна,,фізична особа
АПУ,"Рівненська область, Рівне, вулиця Вячеслава Чорновола, 91 Д",84,2017-12-28,5301,"Заробітна плата, премії","Заробітна плата, лікарняні, вагітності, відрядження, компенсації",23675,Центральний офіс,34763401,Україна,заробітна плата,26009052641121,current,2000.00,Матчук Віктор Йосипович,,фізична особа
АПУ,"Київ, Мінський проспект",84,2017-12-28,5301,"Заробітна плата, премії","Заробітна плата, лікарняні, вагітності, відрядження, компенсації",23674,Центральний офіс,34763401,Україна,заробітна плата,26009052641121,current,2665.36,Головко Надія Миколаївна,,фізична особа
АПУ,"Дніпропетровська область, Кривий Ріг, вулиця Свято-Миколаївська, 55, 9",53,2017-12-28,199,Витрати на розміщення зовнішньої реклами,Зовнішня реклама,23232,Криворізька районна організація,40267750,Дніпропетровська область,розміщення зовнішньої політичної реклами (оплата за розміщення на рекламних конструкціх),26005300544524,current,2520.00,Петренко Ольга Юріївна,,фізична особа
АПУ,"Херсонська область, Великоолександрівський район, Велика Олександрівка, провулок Сергія Лазо",58,2017-12-28,200,"Виготовлення друкованих матеріалів (плакатів, листівок, буклетів та інших агітаційних матеріалів)",Друкована агітація,23165,Криворізька районна організація,40267750,Дніпропетровська область,матеріальні витрати та оплата послуг (друк поліграфічної продукції),26005300544524,current,17564.00,Маринченко Сергій Володимирович,3086200550,фізична особа
АПУ,"Чернівецька область, Чернівці, вулиця Софії Окуневської, 14",82,2017-12-28,150,"Гонорари, в тому числі за надані консультаційні послуги","Гонорари, в тому числі за надані консультаційні послуги",23119,Чернівецька обласна організація,35096655,Чернівецька область,За бухгалтерські послуги за жовтень-грудень 2017р.,26002051503022,current,4800.00,Мариній Катерина Миколаївна,3008814121,фізична особа
АПУ,м. Кропивницький,50,2017-12-28,122,Оплата ефірного часу на радіо,Реклама на радіо,23048,Кіровоградська обласна організація,36978104,Кіровоградська область,Оплата послуг ( реклама на радіо),26007052918872,current,9050.00,Тарасова Ірина Юріївна,2780705142,фізична особа
АПУ,"Харківська область, Чугуїв",53,2017-12-28,111,Витрати на розміщення зовнішньої реклами,Зовнішня реклама,22936,Харківська обласна організація,34951845,Харківська область,розміщення зовнішньої політичної реклами (за постер зг.рах. № 0239-ка від 22.12.17),26006052229335,current,485.00,Болячевець Валентина Миколаївна,2260220699,фізична особа
АПУ,"Одеська область, Одеса, вулиця Жуковського, 39, 1",79,2017-12-28,10,"Оренда будинків і приміщень та експлуатаційні витрати (прибирання, страхування орендованих будинків, охорона, сигналізація, ремонт, вивіз сміття, тощо)",Оренда нерухомості,22883,Одеська міська організація,40560001,Одеська область,матеріальні витрати та послуги (комунальні послуги за листопад 2017р.),26007010020883,current,768.27,Гнатюк Юрій Юрійович,2006101555,фізична особа
АПУ,"Чернігівська область, Чернігів",49,2017-12-28,82,Публікування матеріалів у друкованих ЗМІ,Реклама в друкованих ЗМІ,22834,Чернігівська обласна організація,35030222,Чернігівська область,"матеріальні витрати та оплата послуг (Оплата за публiкацiю в газетi ""Гарт"" (N52 вiд 28.12.17р.), згiдно рахунку N383 вiд 26.12.17р., без ПДВ,)",26006051410803,current,8800.00,Іванов Дмитро Йосипович,1709603033,фізична особа
АПУ,"Київ, вулиця Васильківська",76,2017-12-28,5307,Послуги зв’язку,Послуги зв’язку,22740,Центральний офіс,34763401,Україна,послуги зв’язку,26009052641121,current,2400.00,"ТОВ ""ГІГАТРАНС Україна""",39961313,юридична особа
АПУ,"Київ, вулиця Здолбунівська, 3",76,2017-12-28,5306,Послуги зв’язку,Послуги зв’язку,22729,Центральний офіс,34763401,Україна,послуги зв’язку,26009052641121,current,7500.00,"ТОВ ""БІЗНЕС РШЕННЯ ТА КОНСАЛТИНГ""",39929657,юридична особа
АПУ,,62,2017-12-28,147,Сплата ЄСВ,Податкові платежі,22667,Чернівецька обласна організація,35096655,Чернівецька область,"ЄСВ нараховане на з/п за листопад та грудень 2017р, 22%",26002051503022,current,7025.33,ДПІ в м.Чернівцях ГУДФС у Черн.обл.,39579145,юридична особа
АПУ,"Одеська область, Одеса, Французький бульвар, 7",62,2017-12-28,13,Сплата ЄСВ,Податкові платежі,22639,Одеська міська організація,40560001,Одеська область,податки та збори(єдиний соціальний внесок за грудень 2017р.),26007010020883,current,2200.00,ДПІ у Приморському районі м. Одеси ГУ ДФС в Одеській області,39565511,юридична особа
АПУ,"Хмельницька область, Хмельницький, вулиця Героїв Майдану, 12",62,2017-12-28,101,Сплата ЄСВ,Податкові платежі,22619,Хмельницька обласна організація,39968240,Хмельницька область,сплачені податки та збори (Сплата 22% ЄСВ з ЗП за груденя 2017р),26003010007435,current,822.80,ДПІ у м. Хмельницькому,39564228,юридична особа
АПУ,"Кіровоградська область, Кропивницький, вул. Глінки, 2",62,2017-12-28,127,Сплата ЄСВ,Податкові платежі,22561,Кіровоградська обласна організація,36978104,Кіровоградська область,ЄСВ за грудень 2017 року,26007052918872,current,446.07,Кропивницька ОДПІ ГУ ДФС у Кіровоградській області,39484073,юридична особа
АПУ,"Київ, вулиця Смілянська",60,2017-12-28,5305,Інші податки,Податкові платежі,22547,Центральний офіс,34763401,Україна,сплачені податки та збори,26009052641121,current,696.34,ДПІ у Соломʼянському р-ш ГУ ДФС у м Кисні,39471390,юридична особа
АПУ,"Київ, вулиця Смілянська",60,2017-12-28,5305,Інші податки,Податкові платежі,22546,Центральний офіс,34763401,Україна,сплачені податки та збори,26009052641121,current,21142.22,ДПІ у Соломʼянському р-ш ГУ ДФС у м Кисні,39471390,юридична особа
АПУ,"Київ, вулиця Гарматна, 31",60,2017-12-28,5303,Інші податки,Податкові платежі,22423,Центральний офіс,34763401,Україна,сплачені податки та збори,26009052641121,current,18788.51,УКДСУ у Соломʼянському районі м. Києва,38050812,юридична особа
АПУ,"Київ, вулиця Гарматна, 31",60,2017-12-28,5304,Інші податки,Податкові платежі,22422,Центральний офіс,34763401,Україна,сплачені податки та збори,26009052641121,current,1565.81,УКДСУ у Соломʼянському районі м. Києва,38050812,юридична особа
АПУ,"Хмельницька область, Хмельницький, вулиця Проскурівська, 56",63,2017-12-28,100,Податок на доходи,Податкові платежі,22357,Хмельницька обласна організація,39968240,Хмельницька область,сплачені податки та збори ( Сплата ПДФО 18% з ЗП за грудень 2017р),26003010007435,current,673.20,УДКСУ у м. Хмельницькому,38045529,юридична особа
АПУ,"Хмельницька область, Хмельницький, вулиця Проскурівська, 56",61,2017-12-28,99,Військовий збір,Податкові платежі,22356,Хмельницька обласна організація,39968240,Хмельницька область,"сплачені податки та збори (Сплата 1,5% військового збору з ЗП за грудень 2017р)",26003010007435,current,56.10,УДКСУ у м. Хмельницькому,38045529,юридична особа
АПУ,"Кіровоградська область, Кропивницький",63,2017-12-28,126,Податок на доходи,Податкові платежі,22324,Кіровоградська обласна організація,36978104,Кіровоградська область,податок з доходів фізичних осіб за грудень 2017 року,26007052918872,current,364.97,УДКСУ у м. Кропивницькому,38037409,юридична особа
АПУ,"Кіровоградська область, Кропивницький",61,2017-12-28,125,Військовий збір,Податкові платежі,22323,Кіровоградська обласна організація,36978104,Кіровоградська область,військовий збір за грудень 2017 року,26007052918872,current,30.41,УДКСУ у м. Кропивницькому,38037409,юридична особа
АПУ,"Кіровоградська область, Кропивницький",63,2017-12-28,124,Податок на доходи,Податкові платежі,22322,Кіровоградська обласна організація,36978104,Кіровоградська область,податок з доходів фізичних осіб за листопад 2017 року,26007052918872,current,864.00,УДКСУ у м. Кропивницькому,38037409,юридична особа
АПУ,"Кіровоградська область, Кропивницький",61,2017-12-28,123,Військовий збір,Податкові платежі,22321,Кіровоградська обласна організація,36978104,Кіровоградська область,військовий збір за листопад 2017 року,26007052918872,current,72.00,УДКСУ у м. Кропивницькому,38037409,юридична особа
АПУ,"Одеська область, Одеса, вулиця Черняховського, 6",63,2017-12-28,12,Податок на доходи,Податкові платежі,22224,Одеська міська організація,40560001,Одеська область,податки та збори (податок з доходів фізичних осіб за грудень 2017р.),26007010020883,current,1840.27,УДКСУ у м. Одесі,38016923,юридична особа
АПУ,"Одеська область, Одеса, вулиця Черняховського, 6",61,2017-12-28,11,Військовий збір,Податкові платежі,22223,Одеська міська організація,40560001,Одеська область,податки та збори (війсковий збір за грудень 2017р.),26007010020883,current,153.36,УДКСУ у м. Одесі,38016923,юридична особа
АПУ,"Чернівецька область, Чернівці, вулиця Кобилянської, 11",63,2017-12-28,149,Податок на доходи,Податкові платежі,22069,Чернівецька обласна організація,35096655,Чернівецька область,"Податок з доходів фізичних осіб із з/п за II половину жовтня, листопад та грудень 2017р. 18%",26002051503022,current,7203.43,УДКСУ у м. Чернівці,37978173,юридична особа
АПУ,"Чернівецька область, Чернівці, вулиця Кобилянської, 11",61,2017-12-28,148,Військовий збір,Податкові платежі,22068,Чернівецька обласна організація,35096655,Чернівецька область,"Військовий збір із із з/п за II половину жовтня, листопад та грудень 2017р. 1,5%",26002051503022,current,600.28,УДКСУ у м. Чернівці,37978173,юридична особа
АПУ,"Рівненська область, Рівне",79,2017-12-28,448,"Оренда будинків і приміщень та експлуатаційні витрати (прибирання, страхування орендованих будинків, охорона, сигналізація, ремонт, вивіз сміття, тощо)",Оренда нерухомості,21815,Рівненська обласна організація,35103253,Рівненська область,"оренда приміщення (будинку, офіса, квартири)(за послуги згiдно дог.N18-ЕКП вiд 01.02.16р. У сумi 853.44 грн., ПДВ - 20 % 170.69 грн.)",26002054724863,current,1024.13,КП Управління майновим комплексом,35597574,юридична особа
АПУ,"Чернігівська область, Чернігів, проспект Миру, 28",75,2017-12-28,84,Поштові послуги та поширення друкованих матеріалів,Поштові послуги та поширення друкованих матеріалів,21328,Чернігівська обласна організація,35030222,Чернігівська область,"матеріальні витрати та оплата послуг (Оплата доставки за 12 мiсяцiв 2018р. 19156шт., згiдно рахунку N2850 вiд 27.12.17р., Без ПДВ.)",26006051410803,current,315997.38,"Чернігівська дирекція ПАТ ""Укрпошта""",25572588,юридична особа
АПУ,"Київ, бульвар Тараса Шевченка, 18",76,2017-12-28,5308,Послуги зв’язку,Послуги зв’язку,21218,Центральний офіс,34763401,Україна,послуги зв’язку,26009052641121,current,1385.07,"ПАТ ""Укртелеком""",21560766,юридична особа
АПУ,"Хмельницька область, Хмельницький, проспект Миру, 59",49,2017-12-28,102,Публікування матеріалів у друкованих ЗМІ,Реклама в друкованих ЗМІ,21210,Хмельницька обласна організація,39968240,Хмельницька область,"розміщення реклами у друкованих засобах масової інформації ( За вітання зг рах СФ-1217 від 27,12,2017)",26003010007435,current,820.16,"ПП ""Медіа-центр ""Подільські вісті""",21313714,юридична особа
АПУ,"Одеська область, Одеса, вулиця Краснова, 6/1",70,2017-12-28,89922186,Банківські послуги,Інші витрати,21156,Одеська міська організація,40560001,Одеська область,матеріальні витрати та послуги (оплата РКО),26007010020883,current,100.00,"АБ ""Південний""",20953647,юридична особа
АПУ,"Одеська область, Одеса, вулиця Краснова, 6/1",70,2017-12-28,89922174,Банківські послуги,Інші витрати,21155,Одеська міська організація,40560001,Одеська область,матеріальні витрати та послуги (оплата РКО),26007010020883,current,150.00,"АБ ""Південний""",20953647,юридична особа
АПУ,"Одеська область, Одеса, вулиця Краснова, 6/1",70,2017-12-28,89365195,Банківські послуги,Інші витрати,21154,Одеська міська організація,40560001,Одеська область,матеріальні витрати та послуги (оплата РКО),26007010020883,current,107.74,"АБ ""Південний""",20953647,юридична особа
АПУ,"Київ, вулиця Михайла Грушевського, 1Д",70,2017-12-28,CSO0NPNBMY,Банківські послуги,Інші витрати,21069,Чернігівська обласна організація,35030222,Чернігівська область,"інші не заборонені законом витрати (Комiсiя за виконання платежiв в нацiональнiй валютi, згiдно з вiдкритою офертою банку N б/н вiд 2015-04-15 та тарифiв банку, без ПДВ.)",26006051410803,current,3.00,"ПАТ КБ ""Приватбанк""",14360570,юридична особа
АПУ,"Київ, вулиця Михайла Грушевського, 1Д",70,2017-12-28,CSO0NOWHSY,Банківські послуги,Інші витрати,21068,Чернігівська обласна організація,35030222,Чернігівська область,"інші не заборонені законом витрати (Комiсiя за виконання платежiв в нацiональнiй валютi, згiдно з вiдкритою офертою банку N б/н вiд 2015-04-15 та тарифiв банку, без ПДВ.)",26006051410803,current,3.00,"ПАТ КБ ""Приватбанк""",14360570,юридична особа
АПУ,"Київ, вулиця Михайла Грушевського, 1Д",70,2017-12-28,CSO0NOU1LY,Банківські послуги,Інші витрати,21067,Чернігівська обласна організація,35030222,Чернігівська область,"інші не заборонені законом витрати (Комiсiя за виконання платежiв в нацiональнiй валютi, згiдно з вiдкритою офертою банку N б/н вiд 2015-04-15 та тарифiв банку, без ПДВ.)",26006051410803,current,3.00,"ПАТ КБ ""Приватбанк""",14360570,юридична особа
АПУ,"Київ, вулиця Михайла Грушевського, 1Д",70,2017-12-28,CSO0NQ9QТY,Банківські послуги,Інші витрати,20986,Чернівецька обласна організація,35096655,Чернівецька область,Інші не заборонені витрати,26002051503022,current,3.00,"ПАТ КБ ""Приватбанк""",14360570,юридична особа
АПУ,"Київ, вулиця Михайла Грушевського, 1Д",70,2017-12-28,CSO0NQ9QGY,Банківські послуги,Інші витрати,20985,Чернівецька обласна організація,35096655,Чернівецька область,Інші не заборонені витрати,26002051503022,current,3.00,"ПАТ КБ ""Приватбанк""",14360570,юридична особа
АПУ,"Київ, вулиця Михайла Грушевського, 1Д",70,2017-12-28,CSO0NQ9QDY,Банківські послуги,Інші витрати,20984,Чернівецька обласна організація,35096655,Чернівецька область,Інші не заборонені витрати,26002051503022,current,3.00,"ПАТ КБ ""Приватбанк""",14360570,юридична особа
АПУ,"Київ, вулиця Михайла Грушевського, 1Д",70,2017-12-28,cso0nkh6hy,Банківські послуги,Інші витрати,20860,Харківська обласна організація,34951845,Харківська область,матеріальні витрати та оплата послуг(Комісія за виконання платежів),26006052229335,current,3.00,"ПАТ КБ ""Приватбанк""",14360570,юридична особа
АПУ,"Київ, вулиця Михайла Грушевського, 1Д",70,2017-12-28,СSO0NMIV4Y,Банківські послуги,Інші витрати,20127,Одеська обласна організація,37279902,Одеська область,матерiальні витрати та послуги (комісія за виконання платежів в національній валюті),26005054325961,current,3.00,"ПАТ КБ ""Приватбанк""",14360570,юридична особа
АПУ,"Київ, вулиця Михайла Грушевського, 1Д",70,2017-12-28,CSO0NN51DY,Банківські послуги,Інші витрати,19910,Кіровоградська обласна організація,36978104,Кіровоградська область,Оплата послуг (комісія банку ),26007052918872,current,3.00,"ПАТ КБ ""Приватбанк""",14360570,юридична особа
АПУ,"Київ, вулиця Михайла Грушевського, 1Д",70,2017-12-28,CSO0NMZTUY,Банківські послуги,Інші витрати,19909,Кіровоградська обласна організація,36978104,Кіровоградська область,Оплата послуг (комісія банку ),26007052918872,current,3.00,"ПАТ КБ ""Приватбанк""",14360570,юридична особа
АПУ,"Київ, вулиця Михайла Грушевського, 1Д",70,2017-12-28,CSO0NMWG2Y,Банківські послуги,Інші витрати,19908,Кіровоградська обласна організація,36978104,Кіровоградська область,Оплата послуг (комісія банку ),26007052918872,current,3.00,"ПАТ КБ ""Приватбанк""",14360570,юридична особа
АПУ,"Київ, вулиця Михайла Грушевського, 1Д",70,2017-12-28,CSO0NMS0TY,Банківські послуги,Інші витрати,19907,Кіровоградська обласна організація,36978104,Кіровоградська область,Оплата послуг (комісія банку ),26007052918872,current,3.00,"ПАТ КБ ""Приватбанк""",14360570,юридична особа
АПУ,"Київ, вулиця Михайла Грушевського, 1Д",70,2017-12-28,CSO0NMO7PY,Банківські послуги,Інші витрати,19906,Кіровоградська обласна організація,36978104,Кіровоградська область,Оплата послуг (комісія банку ),26007052918872,current,3.00,"ПАТ КБ ""Приватбанк""",14360570,юридична особа
АПУ,"Київ, вулиця Михайла Грушевського, 1Д",70,2017-12-28,CSO0NMJR2Y,Банківські послуги,Інші витрати,19905,Кіровоградська обласна організація,36978104,Кіровоградська область,Оплата послуг (комісія банку ),26007052918872,current,3.00,"ПАТ КБ ""Приватбанк""",14360570,юридична особа
АПУ,"Київ, вулиця Михайла Грушевського, 1Д",70,2017-12-28,5308_77,Банківські послуги,Інші витрати,19513,Центральний офіс,34763401,Україна,матеріальні витрати та оплата послуг,26009052641121,current,3.00,"ПАТ КБ ""Приватбанк""",14360570,юридична особа
АПУ,"Київ, вулиця Михайла Грушевського, 1Д",70,2017-12-28,5308_76,Банківські послуги,Інші витрати,19512,Центральний офіс,34763401,Україна,матеріальні витрати та оплата послуг,26009052641121,current,3.00,"ПАТ КБ ""Приватбанк""",14360570,юридична особа
АПУ,"Київ, вулиця Михайла Грушевського, 1Д",70,2017-12-28,5308_75,Банківські послуги,Інші витрати,19511,Центральний офіс,34763401,Україна,матеріальні витрати та оплата послуг,26009052641121,current,3.00,"ПАТ КБ ""Приватбанк""",14360570,юридична особа
АПУ,"Київ, вулиця Михайла Грушевського, 1Д",70,2017-12-28,5308_74,Банківські послуги,Інші витрати,19510,Центральний офіс,34763401,Україна,матеріальні витрати та оплата послуг,26009052641121,current,3.00,"ПАТ КБ ""Приватбанк""",14360570,юридична особа
АПУ,"Київ, вулиця Михайла Грушевського, 1Д",70,2017-12-28,5308_73,Банківські послуги,Інші витрати,19509,Центральний офіс,34763401,Україна,матеріальні витрати та оплата послуг,26009052641121,current,3.00,"ПАТ КБ ""Приватбанк""",14360570,юридична особа
АПУ,"Київ, вулиця Михайла Грушевського, 1Д",70,2017-12-28,5302,Банківські послуги,Інші витрати,19433,Центральний офіс,34763401,Україна,матеріальні витрати та оплата послуг,26009052641121,current,210.07,"ПАТ КБ ""Приватбанк""",14360570,юридична особа
АПУ,"Київ, вулиця Миколи Лєскова, 9",70,2017-12-28,bn,Банківські послуги,Інші витрати,19146,Камʼянська районна організація,35051991,Черкаська область,Матеріальні витрати та оплата послуг (комісія за користування пакетом послуг),26005500138,current,100.00,"АТ ""Райффайзен банк Аваль""",14305909,юридична особа
АПУ,"Київ, вулиця Миколи Лєскова, 9",70,2017-12-28,bn,Банківські послуги,Інші витрати,19130,Тернопільська обласна організація,34950726,Тернопільська область,матеріальні витрати та оплата послуг,26009482401,current,100.00,"АТ ""Райффайзен банк Аваль""",14305909,юридична особа
АПУ,"Київ, вулиця Миколи Лєскова, 9",70,2017-12-28,б/н,Банківські послуги,Інші витрати,19124,Ширяївська районна організація,36909245,Одеська область,Матерільні витрати та послуги(комісія за користування пакетом послуг),26005495447,current,200.00,"АТ ""Райффайзен банк Аваль""",14305909,юридична особа
АПУ,"Київ, вулиця Миколи Лєскова, 9",70,2017-12-28,б/н,Банківські послуги,Інші витрати,19123,Ширяївська районна організація,36909245,Одеська область,Матерільні витрати та послуги(комісія за користування пакетом послуг),26005495447,current,80.00,"АТ ""Райффайзен банк Аваль""",14305909,юридична особа
АПУ,"Київ, вулиця Миколи Лєскова, 9",70,2017-12-28,bn,Банківські послуги,Інші витрати,19084,Мелітопольська районна організація,40564163,Запорізька область,матеріальні виплати та оплата послуг(Комісія за кор. пакетом послуг з 29.11.17 по 27.12.17.),26004534622,current,100.00,"АТ ""Райффайзен банк Аваль""",14305909,юридична особа
АПУ,"Рівненська область, Рівне",49,2017-12-28,447,Публікування матеріалів у друкованих ЗМІ,Реклама в друкованих ЗМІ,19049,Рівненська обласна організація,35103253,Рівненська область,розміщення реклами у друкованих засобах масової інформації(за публiкацiю згiдно рах.N 797 вiд 2017-12-22р. Без ПДВ),26002054724863,current,3500.00,"РГ ""Вісті Рівненщини""",13981137,юридична особа
АПУ,"Дніпропетровська область, Кривий Ріг, вулиця Чкалова, 44",70,2017-12-28,212028071,Банківські послуги,Інші витрати,18885,Криворізька районна організація,40267750,Дніпропетровська область,матеріальні витрати та оплата послуг (банківські послуги),26005300544524,current,99.00,"Дніпропетровська обласна філія АТ ""Ощадбанк""",09305480,юридична особа
АПУ,"Дніпропетровська область, Кривий Ріг, вулиця Чкалова, 44",70,2017-12-28,212027216,Банківські послуги,Інші витрати,18884,Криворізька районна організація,40267750,Дніпропетровська область,матеріальні витрати та оплата послуг (банківські послуги),26005300544524,current,12.00,"Дніпропетровська обласна філія АТ ""Ощадбанк""",09305480,юридична особа
АПУ,м. Кропивницький,79,2017-12-28,121,"Оренда будинків і приміщень та експлуатаційні витрати (прибирання, страхування орендованих будинків, охорона, сигналізація, ремонт, вивіз сміття, тощо)",Оренда нерухомості,18828,Кіровоградська обласна організація,36978104,Кіровоградська область,оренда,26007052918872,current,4578.36,Федерація професійних спілок Кіровоградської області,02606119,юридична особа
АПУ,"Чернігівська область, Варвинський район, Варва, вул.Шевченка, 13",49,2017-12-28,83,Публікування матеріалів у друкованих ЗМІ,Реклама в друкованих ЗМІ,18795,Чернігівська обласна організація,35030222,Чернігівська область,"розміщення реклами у друкованих засобах масової інформації (Оплата за публiкацiю в газетi ""Слово Варвинщини"", згiдно рахунку N97 вiд 27.12.17р., без ПДВ,)",26006051410803,current,1200.00,"Редакція Варвинської районної газети ""Слово Варвинщини""",02476215,юридична особа
АПУ,"Одеська область, Одеса, вулиця Базарна, 17",70,2017-12-28,317456094,Банківські послуги,Інші витрати,18531,Овідіопольська районна організація,39909834,Одеська область,Матеріальні виплати на оплата послуг (Списання щомісячної плати за обслуговування тарифного пакету),26000300084521,current,49.00,"Одеська обласна філія АТ ""Ощадбанк""",09328601,юридична особа
АПУ,"Рівненська область, Рівне",84,2017-12-27,446,"Заробітна плата, премії","Заробітна плата, лікарняні, вагітності, відрядження, компенсації",24114,Рівненська обласна організація,35103253,Рівненська область,заробітна плата (зарплата за грудень 2017р.),26002054724863,current,3300.00,Нерода Вікторія Юріївна,,фізична особа
АПУ,"Рівненська область, Рівне",84,2017-12-27,446,"Заробітна плата, премії","Заробітна плата, лікарняні, вагітності, відрядження, компенсації",24113,Рівненська обласна організація,35103253,Рівненська область,заробітна плата (зарплата за грудень 2017р.),26002054724863,current,3300.00,Стретович Світлана Юріївна,,фізична особа
АПУ,"Рівненська область, Рівне",84,2017-12-27,446,"Заробітна плата, премії","Заробітна плата, лікарняні, вагітності, відрядження, компенсації",24112,Рівненська обласна організація,35103253,Рівненська область,заробітна плата (зарплата за грудень 2017р.),26002054724863,current,4000.00,Дзенік Світлана Анатоліївна,,фізична особа
АПУ,"Рівненська область, Рівне",84,2017-12-27,446,"Заробітна плата, премії","Заробітна плата, лікарняні, вагітності, відрядження, компенсації",24111,Рівненська обласна організація,35103253,Рівненська область,заробітна плата (зарплата за грудень 2017р.),26002054724863,current,3600.00,Остаповець Максим Олександрович,,фізична особа
АПУ,"Рівненська область, Рівне",84,2017-12-27,446,"Заробітна плата, премії","Заробітна плата, лікарняні, вагітності, відрядження, компенсації",24110,Рівненська обласна організація,35103253,Рівненська область,заробітна плата (зарплата за грудень 2017р.),26002054724863,current,4400.00,Петрощук Олександр Васильович,,фізична особа
АПУ,"Рівненська область, Рівне",84,2017-12-27,446,"Заробітна плата, премії","Заробітна плата, лікарняні, вагітності, відрядження, компенсації",24109,Рівненська обласна організація,35103253,Рівненська область,заробітна плата (зарплата за грудень 2017р.),26002054724863,current,7800.00,Подорожній Юрій Анатолійович,,фізична особа
АПУ,"Рівненська область, Рівне",74,2017-12-27,442,"Придбання канцтоварів, паперу, інших предметів і матеріалів, а також госп товари",Придбання канцтоварів та госп. товарів,24108,Рівненська обласна організація,35103253,Рівненська область,матеріальні витрати та оплата послуг (госпвитрати),26002054724863,current,35.00,Остаповець Максим Олександрович,,фізична особа
АПУ,"Рівненська область, Рівне",84,2017-12-27,441,"Заробітна плата, премії","Заробітна плата, лікарняні, вагітності, відрядження, компенсації",24107,Рівненська обласна організація,35103253,Рівненська область,заробітна плата (зарплата за грудень 2017р.),26002054724863,current,1156.50,Нерода Вікторія Юріївна,,фізична особа
АПУ,"Рівненська область, Рівне",84,2017-12-27,441,"Заробітна плата, премії","Заробітна плата, лікарняні, вагітності, відрядження, компенсації",24106,Рівненська обласна організація,35103253,Рівненська область,заробітна плата (зарплата за грудень 2017р.),26002054724863,current,1156.50,Стретович Світлана Юріївна,,фізична особа
АПУ,"Рівненська область, Рівне",84,2017-12-27,441,"Заробітна плата, премії","Заробітна плата, лікарняні, вагітності, відрядження, компенсації",24105,Рівненська обласна організація,35103253,Рівненська область,заробітна плата (зарплата за грудень 2017р.),26002054724863,current,1420.00,Дзенік Світлана Анатоліївна,,фізична особа
АПУ,"Рівненська область, Рівне",84,2017-12-27,441,"Заробітна плата, премії","Заробітна плата, лікарняні, вагітності, відрядження, компенсації",24104,Рівненська обласна організація,35103253,Рівненська область,заробітна плата (зарплата за грудень 2017р.),26002054724863,current,1298.00,Остаповець Максим Олександрович,,фізична особа
АПУ,"Рівненська область, Рівне",84,2017-12-27,441,"Заробітна плата, премії","Заробітна плата, лікарняні, вагітності, відрядження, компенсації",24103,Рівненська обласна організація,35103253,Рівненська область,заробітна плата (зарплата за грудень 2017р.),26002054724863,current,1642.00,Петрощук Олександр Васильович,,фізична особа
АПУ,"Рівненська область, Рівне",84,2017-12-27,441,"Заробітна плата, премії","Заробітна плата, лікарняні, вагітності, відрядження, компенсації",24102,Рівненська обласна організація,35103253,Рівненська область,заробітна плата (зарплата за грудень 2017р.),26002054724863,current,1809.38,Подорожній Юрій Анатолійович,,фізична особа
АПУ,"Рівненська область, Рівне",84,2017-12-27,441,"Заробітна плата, премії","Заробітна плата, лікарняні, вагітності, відрядження, компенсації",24101,Рівненська обласна організація,35103253,Рівненська область,заробітна плата (зарплата за грудень 2017р.),26002054724863,current,588.62,Панащук Микола Васильович,,фізична особа
АПУ,"Київ, вулиця Володимирська, 12",69,2017-12-27,5298,Організація заходів та інші організаційні послуги,Організація заходів та інші організаційні послуги,23710,Центральний офіс,34763401,Україна,"проведення з’їздів, партійних конференцій, загальних зборі",26009052641121,current,2802.00,Головне управління ДСНС,,юридична особа
АПУ,"Київ, вулиця Академіка Заболотного",84,2017-12-27,5291,"Заробітна плата, премії","Заробітна плата, лікарняні, вагітності, відрядження, компенсації",23673,Центральний офіс,34763401,Україна,заробітна плата,26009052641121,current,11826.84,Скоцик Віталій Євстафійович,,фізична особа
АПУ,"Київська обл., Бориспіль, вулиця Бежівка",84,2017-12-27,5291,"Заробітна плата, премії","Заробітна плата, лікарняні, вагітності, відрядження, компенсації",23672,Центральний офіс,34763401,Україна,заробітна плата,26009052641121,current,11270.00,Кононенко Олена Миколаївна,,фізична особа
АПУ,"Київ, вулиця Лятошинського",84,2017-12-27,5291,"Заробітна плата, премії","Заробітна плата, лікарняні, вагітності, відрядження, компенсації",23671,Центральний офіс,34763401,Україна,заробітна плата,26009052641121,current,11378.45,Єрмоленко Юлія Миколаївна,,фізична особа
АПУ,Донецька область,84,2017-12-27,5291,"Заробітна плата, премії","Заробітна плата, лікарняні, вагітності, відрядження, компенсації",23670,Центральний офіс,34763401,Україна,заробітна плата,26009052641121,current,6105.99,Цурукова Аліса Олександрівна,,фізична особа
АПУ,"Київ, проспект Науки",84,2017-12-27,5291,"Заробітна плата, премії","Заробітна плата, лікарняні, вагітності, відрядження, компенсації",23669,Центральний офіс,34763401,Україна,заробітна плата,26009052641121,current,11378.45,Петренко Ірина Миколаївна,,фізична особа
АПУ,"Київська обл., Березань",84,2017-12-27,5291,"Заробітна плата, премії","Заробітна плата, лікарняні, вагітності, відрядження, компенсації",23668,Центральний офіс,34763401,Україна,заробітна плата,26009052641121,current,8897.02,Дмитренко Олександр Іванович,,фізична особа
АПУ,"Житомирська область, Брусилівський район, Ставище, вул. Житомирська",84,2017-12-27,5291,"Заробітна плата, премії","Заробітна плата, лікарняні, вагітності, відрядження, компенсації",23667,Центральний офіс,34763401,Україна,заробітна плата,26009052641121,current,6482.02,Набокова Ельвіра Василівна,,фізична особа
АПУ,"Київ, вулиця Євгена Коновальця",84,2017-12-27,5291,"Заробітна плата, премії","Заробітна плата, лікарняні, вагітності, відрядження, компенсації",23666,Центральний офіс,34763401,Україна,заробітна плата,26009052641121,current,12477.50,Безсмертний Роман Петрович,,фізична особа
АПУ,"Київ, бульвар Володимира Висоцького",84,2017-12-27,5291,"Заробітна плата, премії","Заробітна плата, лікарняні, вагітності, відрядження, компенсації",23665,Центральний офіс,34763401,Україна,заробітна плата,26009052641121,current,6491.51,Лопух Григорій Олексійович,,фізична особа
АПУ,"Київ, вулиця Дубровицька",84,2017-12-27,5291,"Заробітна плата, премії","Заробітна плата, лікарняні, вагітності, відрядження, компенсації",23664,Центральний офіс,34763401,Україна,заробітна плата,26009052641121,current,6491.51,Кашперенко Анастасія Геннадіївна,,фізична особа
АПУ,"Київська обл., Бориспіль, вулиця Шевченка",84,2017-12-27,5291,"Заробітна плата, премії","Заробітна плата, лікарняні, вагітності, відрядження, компенсації",23663,Центральний офіс,34763401,Україна,заробітна плата,26009052641121,current,4881.51,Скрипка Оксана Анатоліївна,,фізична особа
АПУ,"Київ, вулиця Оноре де Бальзака",84,2017-12-27,5291,"Заробітна плата, премії","Заробітна плата, лікарняні, вагітності, відрядження, компенсації",23662,Центральний офіс,34763401,Україна,заробітна плата,26009052641121,current,6491.51,Мінченко Геннадій Леонідович,,фізична особа
АПУ,"Київ, вулиця Ревуцького",84,2017-12-27,5291,"Заробітна плата, премії","Заробітна плата, лікарняні, вагітності, відрядження, компенсації",23661,Центральний офіс,34763401,Україна,заробітна плата,26009052641121,current,8906.51,Лобанець Тетяна Вікторівна,,фізична особа
АПУ,"Київська обл., Києво-Святошинський район, Боярка, вулиця Гоголя",84,2017-12-27,5291,"Заробітна плата, премії","Заробітна плата, лікарняні, вагітності, відрядження, компенсації",23660,Центральний офіс,34763401,Україна,заробітна плата,26009052641121,current,8949.76,Кульгава Наталія Сергіївна,,фізична особа
АПУ,"Херсонська область, Нова Каховка, проспект Перемоги",84,2017-12-27,5291,"Заробітна плата, премії","Заробітна плата, лікарняні, вагітності, відрядження, компенсації",23659,Центральний офіс,34763401,Україна,заробітна плата,26009052641121,current,8906.51,Агєєв Олексій Олександрович,,фізична особа
АПУ,"Сумська область, Суми, вулиця Герасима Кондратьєва",84,2017-12-27,5291,"Заробітна плата, премії","Заробітна плата, лікарняні, вагітності, відрядження, компенсації",23658,Центральний офіс,34763401,Україна,заробітна плата,26009052641121,current,8101.51,Мусієнко Оксана Володимирівна,,фізична особа
АПУ,"Київська обл., Бучанська район, Буча, Нове шосе",84,2017-12-27,5291,"Заробітна плата, премії","Заробітна плата, лікарняні, вагітності, відрядження, компенсації",23657,Центральний офіс,34763401,Україна,заробітна плата,26009052641121,current,6440.00,Бакуменко Ірина Юріївна,,фізична особа
АПУ,"Київ, вулиця Тулузи",84,2017-12-27,5291,"Заробітна плата, премії","Заробітна плата, лікарняні, вагітності, відрядження, компенсації",23656,Центральний офіс,34763401,Україна,заробітна плата,26009052641121,current,6440.00,Лукащук Юрій Юрійович,,фізична особа
АПУ,"Житомирська область, Овруцький район, Овруч, вулиця Івана Мазепи",84,2017-12-27,5291,"Заробітна плата, премії","Заробітна плата, лікарняні, вагітності, відрядження, компенсації",23655,Центральний офіс,34763401,Україна,заробітна плата,26009052641121,current,8050.00,Хосровлу Фікрет Ісраіл огли,,фізична особа
АПУ,"Київ, проспект Свободи",84,2017-12-27,5291,"Заробітна плата, премії","Заробітна плата, лікарняні, вагітності, відрядження, компенсації",23654,Центральний офіс,34763401,Україна,заробітна плата,26009052641121,current,9660.00,Степаненко Владислав Володимирович,,фізична особа
АПУ,"Київська обл., Переяслав, Богдана Хмельницького вулиця",84,2017-12-27,5291,"Заробітна плата, премії","Заробітна плата, лікарняні, вагітності, відрядження, компенсації",23653,Центральний офіс,34763401,Україна,заробітна плата,26009052641121,current,6491.51,Фесенко Сергій Володимирович,,фізична особа
АПУ,"Київська обл., Бориспіль, вулиця Городня",84,2017-12-27,5291,"Заробітна плата, премії","Заробітна плата, лікарняні, вагітності, відрядження, компенсації",23652,Центральний офіс,34763401,Україна,заробітна плата,26009052641121,current,6440.00,Крилач Тетяна Володимирівна,,фізична особа
АПУ,"Рівненська область, Рівне, вулиця Вячеслава Чорновола, 91 Д",84,2017-12-27,5291,"Заробітна плата, премії","Заробітна плата, лікарняні, вагітності, відрядження, компенсації",23651,Центральний офіс,34763401,Україна,заробітна плата,26009052641121,current,12125.16,Матчук Віктор Йосипович,,фізична особа
АПУ,"Київ, Мінський проспект",84,2017-12-27,5291,"Заробітна плата, премії","Заробітна плата, лікарняні, вагітності, відрядження, компенсації",23650,Центральний офіс,34763401,Україна,заробітна плата,26009052641121,current,2618.02,Головко Надія Миколаївна,,фізична особа
АПУ,"Херсонська область, Херсон",84,2017-12-27,5293,"Заробітна плата, премії","Заробітна плата, лікарняні, вагітності, відрядження, компенсації",23649,Центральний офіс,34763401,Україна,заробітна плата,26009052641121,current,4171.36,Смолієнко Оксана Володимирівна,,фізична особа
АПУ,"Закарпатська область, Ужгород, вулиця Руставелі, 3",84,2017-12-27,5293,"Заробітна плата, премії","Заробітна плата, лікарняні, вагітності, відрядження, компенсації",23648,Центральний офіс,34763401,Україна,заробітна плата,26009052641121,current,9177.00,Годя Михайло Іванович,,фізична особа
АПУ,"Луганська область, Сватівський район, Сватове",84,2017-12-27,5293,"Заробітна плата, премії","Заробітна плата, лікарняні, вагітності, відрядження, компенсації",23647,Центральний офіс,34763401,Україна,заробітна плата,26009052641121,current,9177.00,Підкуйко Сергій Іванович,,фізична особа
АПУ,"Черкаська область, Черкаси, вулиця Тараскова",84,2017-12-27,5293,"Заробітна плата, премії","Заробітна плата, лікарняні, вагітності, відрядження, компенсації",23646,Центральний офіс,34763401,Україна,заробітна плата,26009052641121,current,11350.50,Карнарук Богдан Миколайович,,фізична особа
АПУ,"Чернівецька область, Чернівці, вулиця Сімовича",84,2017-12-27,5293,"Заробітна плата, премії","Заробітна плата, лікарняні, вагітності, відрядження, компенсації",23645,Центральний офіс,34763401,Україна,заробітна плата,26009052641121,current,9177.00,Івасюк Руслана Іванівна,,фізична особа
АПУ,"Харківська область, Чугуїв, улица Кожедуба",84,2017-12-27,5293,"Заробітна плата, премії","Заробітна плата, лікарняні, вагітності, відрядження, компенсації",23644,Центральний офіс,34763401,Україна,заробітна плата,26009052641121,current,13524.00,Варжеїнов Юрій Костянтинович,,фізична особа
АПУ,"Полтавська область, Полтава, бульвар Боровиковського, 7",84,2017-12-27,5293,"Заробітна плата, премії","Заробітна плата, лікарняні, вагітності, відрядження, компенсації",23643,Центральний офіс,34763401,Україна,заробітна плата,26009052641121,current,11350.50,Хрипливий Валерій Васильович,,фізична особа
АПУ,"Одеська область, Одеса, проспект Шевченка",84,2017-12-27,5293,"Заробітна плата, премії","Заробітна плата, лікарняні, вагітності, відрядження, компенсації",23642,Центральний офіс,34763401,Україна,заробітна плата,26009052641121,current,13524.00,Погребна Тетяна Миколаївна,,фізична особа
АПУ,"Рівненська область, Рівне",84,2017-12-27,5293,"Заробітна плата, премії","Заробітна плата, лікарняні, вагітності, відрядження, компенсації",23641,Центральний офіс,34763401,Україна,заробітна плата,26009052641121,current,11350.50,Подорожній Юрій Анатолійович,,фізична особа
АПУ,"Кіровоградська область, Кропивницький, вулиця Волкова, 12",84,2017-12-27,5293,"Заробітна плата, премії","Заробітна плата, лікарняні, вагітності, відрядження, компенсації",23640,Центральний офіс,34763401,Україна,заробітна плата,26009052641121,current,9177.00,Михалевський Юрій Рашидович,,фізична особа
АПУ,"Донецька область, Добропілля",84,2017-12-27,5293,"Заробітна плата, премії","Заробітна плата, лікарняні, вагітності, відрядження, компенсації",23639,Центральний офіс,34763401,Україна,заробітна плата,26009052641121,current,9177.00,Шевченко Валентина Григорівна,,фізична особа
АПУ,"Київ, вулиця Василя Чумака, 8А",69,2017-12-27,5297,Організація заходів та інші організаційні послуги,Організація заходів та інші організаційні послуги,22779,Центральний офіс,34763401,Україна,"проведення з’їздів, партійних конференцій, загальних зборі",26009052641121,current,6400.00,Управління поліції охорони з фіз безпеки,40109105,юридична особа
АПУ,"Рівненська область, Рівне, вулиця Відінська, 8",62,2017-12-27,444,Сплата ЄСВ,Податкові платежі,22599,Рівненська обласна організація,35103253,Рівненська область,сплачені податки та збори(*;101;35103253;ЄСВ 22% на ФОП iз з/п за грудень 2017р .Перераховано повнiстю. Без ПДВ;;;),26002054724863,current,7214.90,ДПІ у м. Рівне ГУ ДФС в Рівненській області,39550744,юридична особа
АПУ,"Рівненська область, Рівне, вулиця Відінська, 8",62,2017-12-27,440,Сплата ЄСВ,Податкові платежі,22598,Рівненська обласна організація,35103253,Рівненська область,сплачені податки та збори(*;101;35103253;ЄСВ 22% на ФОП iз з/п за грудень 2017р .Перераховано повнiстю. Без ПДВ;;;),26002054724863,current,2479.02,ДПІ у м. Рівне ГУ ДФС в Рівненській області,39550744,юридична особа
АПУ,"Київ, вулиця Гарматна, 31",60,2017-12-27,5299,Інші податки,Податкові платежі,22420,Центральний офіс,34763401,Україна,сплачені податки та збори,26009052641121,current,66816.00,УКДСУ у Соломʼянському районі м. Києва,38050812,юридична особа
АПУ,"Київ, вулиця Гарматна, 31",60,2017-12-27,5299,Інші податки,Податкові платежі,22419,Центральний офіс,34763401,Україна,інші не заборонені законом витрати,26009052641121,current,510.00,УКДСУ у Соломʼянському районі м. Києва,38050812,юридична особа
АПУ,"Рівненська область, Рівне, вулиця Яворницького, 34",61,2017-12-27,445,Військовий збір,Податкові платежі,22168,Рівненська обласна організація,35103253,Рівненська область,"сплачені податки та збори(*;101;35103253;ВЗ 1,5% iз доходiв найманих працiвникiв з/п за грудень 2017р. Перераховано повнiстю. Без ПДВ;;;)",26002054724863,current,491.92,ГУ ДКСУ у Рівненській області,38012714,юридична особа
АПУ,"Рівненська область, Рівне, вулиця Яворницького, 34",63,2017-12-27,443,Податок на доходи,Податкові платежі,22167,Рівненська обласна організація,35103253,Рівненська область,сплачені податки та збори(*;101;35103253;Податок з доходiв найманих працiвникiв iз з/п за грудень 2017р. Перераховано повнiстю.;;;),26002054724863,current,5903.11,ГУ ДКСУ у Рівненській області,38012714,юридична особа
АПУ,"Рівненська область, Рівне, вулиця Яворницького, 34",63,2017-12-27,438,Податок на доходи,Податкові платежі,22166,Рівненська обласна організація,35103253,Рівненська область,сплачені податки та збори(*;101;35103253;Податок з доходiв найманих працiвникiв iз з/п за грудень 2017р. Перераховано повнiстю.;;;),26002054724863,current,2028.30,ГУ ДКСУ у Рівненській області,38012714,юридична особа
АПУ,"Рівненська область, Рівне, вулиця Яворницького, 34",61,2017-12-27,439,Військовий збір,Податкові платежі,22165,Рівненська обласна організація,35103253,Рівненська область,"сплачені податки та збори(*;101;35103253;ВЗ 1,5% iз доходiв найманих працiвникiв з/п за грудень 2017р. Перераховано повнiстю. Без ПДВ;;;)",26002054724863,current,169.04,ГУ ДКСУ у Рівненській області,38012714,юридична особа
АПУ,"Київ, вулиця Професора Підвисоцького, 10",53,2017-12-27,173,Витрати на розміщення зовнішньої реклами,Зовнішня реклама,21839,Криворізька районна організація,40267750,Дніпропетровська область,розміщення зовнішньої політичної реклами (оплата за розміщення на рекламних конструкціх),26005300544524,current,1440.00,"ТОВ ""Т52,Рекламна Агенція""",36184087,юридична особа
АПУ,"Дніпропетровська область, Кривий Ріг, Паркова вулиця",76,2017-12-27,197,Послуги зв’язку,Послуги зв’язку,21511,Криворізька районна організація,40267750,Дніпропетровська область,послуги звʼязку (оплата за інтернет),26005300544524,current,180.00,"ТОВ ""ДКМ""",32633944,юридична особа
АПУ,"Запорізька область, Запоріжжя, проспект Соборний, 152",79,2017-12-27,792,"Оренда будинків і приміщень та експлуатаційні витрати (прибирання, страхування орендованих будинків, охорона, сигналізація, ремонт, вивіз сміття, тощо)",Оренда нерухомості,21435,Запорізька обласна організація,34975613,Запорізька область,Оренда приміщення(оренда приміщення та відшкод.ком. послуг за грудень 2017р),26006055720257,current,8091.38,"ТОВ ""Агро-Консалтінг Груп""",31398324,юридична особа
АПУ,"Дніпропетровська область, Апостолівський район, Апостолове, вул. Ветеранів",53,2017-12-27,195,Витрати на розміщення зовнішньої реклами,Зовнішня реклама,21368,Криворізька районна організація,40267750,Дніпропетровська область,розміщення зовнішньої політичної реклами (оплата за розміщення на рекламних конструкціх),26005300544524,current,2400.00,"ПП ""Телерадіокомпанія ""Атлант""",30286667,юридична особа
АПУ,"Харківська область, Харків, майдан Свободи, 5/1",49,2017-12-27,109,Публікування матеріалів у друкованих ЗМІ,Реклама в друкованих ЗМІ,21201,Харківська обласна організація,34951845,Харківська область,розміщення реклами у друкованих засобах масової інформації (за розміщення іміджевих матеріалів з.рах від 2017-12-27р.),26006052229335,current,1687.50,"РГ ""Слобідський край""",21188137,юридична особа
АПУ,"Одеська область, Одеса, вулиця Краснова, 6/1",70,2017-12-27,рко,Банківські послуги,Інші витрати,21170,Хмельницька обласна організація,39968240,Хмельницька область,інші незаборонені законом витрати (Послуги банку),26003010007435,current,212.00,"АБ ""Південний""",20953647,юридична особа
АПУ,"Одеська область, Одеса, вулиця Краснова, 6/1",70,2017-12-27,88989413,Банківські послуги,Інші витрати,21153,Одеська міська організація,40560001,Одеська область,матеріальні витрати та послуги (оплата РКО),26007010020883,current,75.00,"АБ ""Південний""",20953647,юридична особа
АПУ,"Київ, вулиця Михайла Грушевського, 1Д",70,2017-12-27,cro0niwoyy,Банківські послуги,Інші витрати,20859,Харківська обласна організація,34951845,Харківська область,матеріальні витрати та оплата послуг(Комісія за виконання платежів),26006052229335,current,3.00,"ПАТ КБ ""Приватбанк""",14360570,юридична особа
АПУ,"Київ, вулиця Михайла Грушевського, 1Д",70,2017-12-27,cro0niwozy,Банківські послуги,Інші витрати,20858,Харківська обласна організація,34951845,Харківська область,матеріальні витрати та оплата послуг(Комісія за виконання платежів),26006052229335,current,3.00,"ПАТ КБ ""Приватбанк""",14360570,юридична особа
АПУ,"Київ, вулиця Михайла Грушевського, 1Д",70,2017-12-27,CRO0NJGHMY,Банківські послуги,Інші витрати,20662,Рівненська обласна організація,35103253,Рівненська область,"матеріальні витрати та оплата послуг(Комiсiя за виконання платежiв в нацiональнiй валютi, згiдно з вiдкритою офертою банку N б/н вiд 2016-01-28 та тарифiв банку, без ПДВ.)",26002054724863,current,3.00,"ПАТ КБ ""Приватбанк""",14360570,юридична особа
АПУ,"Київ, вулиця Михайла Грушевського, 1Д",70,2017-12-27,CRO0NJGHPY,Банківські послуги,Інші витрати,20661,Рівненська обласна організація,35103253,Рівненська область,"матеріальні витрати та оплата послуг(Комiсiя за виконання платежiв в нацiональнiй валютi, згiдно з вiдкритою офертою банку N б/н вiд 2016-01-28 та тарифiв банку, без ПДВ.)",26002054724863,current,3.00,"ПАТ КБ ""Приватбанк""",14360570,юридична особа
АПУ,"Київ, вулиця Михайла Грушевського, 1Д",70,2017-12-27,CRO0NJGHSY,Банківські послуги,Інші витрати,20660,Рівненська обласна організація,35103253,Рівненська область,"матеріальні витрати та оплата послуг(Комiсiя за виконання платежiв в нацiональнiй валютi, згiдно з вiдкритою офертою банку N б/н вiд 2016-01-28 та тарифiв банку, без ПДВ.)",26002054724863,current,3.00,"ПАТ КБ ""Приватбанк""",14360570,юридична особа
АПУ,"Київ, вулиця Михайла Грушевського, 1Д",70,2017-12-27,CRO0NGY2OA,Банківські послуги,Інші витрати,20659,Рівненська обласна організація,35103253,Рівненська область,матеріальні витрати та оплата послуг (Комiсiя за поповнення карток для виплат та нецiльовi платежi),26002054724863,current,0.09,"ПАТ КБ ""Приватбанк""",14360570,юридична особа
АПУ,"Київ, вулиця Михайла Грушевського, 1Д",70,2017-12-27,CRO0NGX39Y,Банківські послуги,Інші витрати,20658,Рівненська обласна організація,35103253,Рівненська область,"матеріальні витрати та оплата послуг(Комiсiя за виконання платежiв в нацiональнiй валютi, згiдно з вiдкритою офертою банку N б/н вiд 2016-01-28 та тарифiв банку, без ПДВ.)",26002054724863,current,3.00,"ПАТ КБ ""Приватбанк""",14360570,юридична особа
АПУ,"Київ, вулиця Михайла Грушевського, 1Д",70,2017-12-27,CRO0NGX3HY,Банківські послуги,Інші витрати,20657,Рівненська обласна організація,35103253,Рівненська область,"матеріальні витрати та оплата послуг(Комiсiя за виконання платежiв в нацiональнiй валютi, згiдно з вiдкритою офертою банку N б/н вiд 2016-01-28 та тарифiв банку, без ПДВ.)",26002054724863,current,3.00,"ПАТ КБ ""Приватбанк""",14360570,юридична особа
АПУ,"Київ, вулиця Михайла Грушевського, 1Д",70,2017-12-27,CRO0NGX3LY,Банківські послуги,Інші витрати,20656,Рівненська обласна організація,35103253,Рівненська область,"матеріальні витрати та оплата послуг(Комiсiя за виконання платежiв в нацiональнiй валютi, згiдно з вiдкритою офертою банку N б/н вiд 2016-01-28 та тарифiв банку, без ПДВ.)",26002054724863,current,3.00,"ПАТ КБ ""Приватбанк""",14360570,юридична особа
АПУ,"Київ, вулиця Михайла Грушевського, 1Д",70,2017-12-27,TZ007BNBRD,Банківські послуги,Інші витрати,20385,Полтавська обласна організація,34874174,Полтавська область,інші не заборонені законом витрати (оплата комісії за касове обслуговування по Полтавська обл. ПО АПУ. без ПДВ.),26009054622601,current,8.89,"ПАТ КБ ""Приватбанк""",14360570,юридична особа
АПУ,"Київ, вулиця Михайла Грушевського, 1Д",70,2017-12-27,CRO0NIL9HY,Банківські послуги,Інші витрати,19699,Запорізька обласна організація,34975613,Запорізька область,Матеріальні витрати та оплата послуг (коміс. за викон.банк.платежів),26006055720257,current,3.00,"ПАТ КБ ""Приватбанк""",14360570,юридична особа
АПУ,"Київ, вулиця Михайла Грушевського, 1Д",70,2017-12-27,5308_69,Банківські послуги,Інші витрати,19505,Центральний офіс,34763401,Україна,матеріальні витрати та оплата послуг,26009052641121,current,3.00,"ПАТ КБ ""Приватбанк""",14360570,юридична особа
АПУ,"Київ, вулиця Михайла Грушевського, 1Д",70,2017-12-27,5308_68,Банківські послуги,Інші витрати,19504,Центральний офіс,34763401,Україна,матеріальні витрати та оплата послуг,26009052641121,current,3.00,"ПАТ КБ ""Приватбанк""",14360570,юридична особа
АПУ,"Київ, вулиця Михайла Грушевського, 1Д",70,2017-12-27,5308_67,Банківські послуги,Інші витрати,19503,Центральний офіс,34763401,Україна,матеріальні витрати та оплата послуг,26009052641121,current,3.00,"ПАТ КБ ""Приватбанк""",14360570,юридична особа
АПУ,"Київ, вулиця Михайла Грушевського, 1Д",70,2017-12-27,5308_66,Банківські послуги,Інші витрати,19502,Центральний офіс,34763401,Україна,матеріальні витрати та оплата послуг,26009052641121,current,3.00,"ПАТ КБ ""Приватбанк""",14360570,юридична особа
АПУ,"Київ, вулиця Михайла Грушевського, 1Д",70,2017-12-27,5292,Банківські послуги,Інші витрати,19432,Центральний офіс,34763401,Україна,матеріальні витрати та оплата послуг,26009052641121,current,493.25,"ПАТ КБ ""Приватбанк""",14360570,юридична особа
АПУ,"Київ, вулиця Михайла Грушевського, 1Д",70,2017-12-27,5294,Банківські послуги,Інші витрати,19431,Центральний офіс,34763401,Україна,матеріальні витрати та оплата послуг,26009052641121,current,277.89,"ПАТ КБ ""Приватбанк""",14360570,юридична особа
АПУ,"Харківська область, Харків, Московський проспект, 247",49,2017-12-27,110,Публікування матеріалів у друкованих ЗМІ,Реклама в друкованих ЗМІ,19059,Харківська обласна організація,34951845,Харківська область,"розміщення реклами у друкованих засобах масової інформації (інформаційні послуги в газеті ""Время"" з.рах № 221 від 2017-12-26р. )",26006052229335,current,1500.00,"ПрАТ ""Время""",14100461,юридична особа
АПУ,"Полтавська область, Полтава",84,2017-12-26,210,"Заробітна плата, премії","Заробітна плата, лікарняні, вагітності, відрядження, компенсації",23877,Полтавська обласна організація,34874174,Полтавська область,"Заробітна плата (Зарплата за 12.2017р., податки сплачені повністю)",26009054622601,current,1940.05,Хрипливий Валерій Васильович,,фізична особа
АПУ,"Полтавська область, Полтава",84,2017-12-26,210,"Заробітна плата, премії","Заробітна плата, лікарняні, вагітності, відрядження, компенсації",23876,Полтавська обласна організація,34874174,Полтавська область,"Заробітна плата (Зарплата за 12.2017р., податки сплачені повністю)",26009054622601,current,1614.02,Луценко Олена Іванівна,,фізична особа
АПУ,"Херсонська область, Великоолександрівський район, Велика Олександрівка, провулок Сергія Лазо",58,2017-12-26,194,"Виготовлення друкованих матеріалів (плакатів, листівок, буклетів та інших агітаційних матеріалів)",Друкована агітація,23164,Криворізька районна організація,40267750,Дніпропетровська область,матеріальні витрати та оплата послуг (друк поліграфічної продукції),26005300544524,current,7120.00,Маринченко Сергій Володимирович,3086200550,фізична особа
АПУ,"Дніпропетровська область, Кривий Ріг",74,2017-12-26,193,"Придбання канцтоварів, паперу, інших предметів і матеріалів, а також госп товари",Придбання канцтоварів та госп. товарів,22998,Криворізька районна організація,40267750,Дніпропетровська область,матеріальні витрати та оплата послуг (канцтовари),26005300544524,current,308.52,Труцуненко Світлана Михайлівна,2602915322,фізична особа
АПУ,"Сумська область, Суми, вулиця Івана Сірка, 31",58,2017-12-26,314,"Виготовлення друкованих матеріалів (плакатів, листівок, буклетів та інших агітаційних матеріалів)",Друкована агітація,22719,Сумська обласна організація,34932761,Сумська область,матеріальні витрати /за банер /,26001055008647,current,316.35,"ТОВ ""Рекламно-видавнича компанія ""Бінго """,39923409,юридична особа
АПУ,"Полтавська область, Полтава, вулиця Європейська, 155",62,2017-12-26,209,Сплата ЄСВ,Податкові платежі,22694,Полтавська обласна організація,34874174,Полтавська область,сплачені податки та збори (*;101;;34874174;ЄСВ нарах/утриман роботодавцем з зарплати за 12.2017р.),26009054622601,current,711.00,ДПІ у м. Полтава ГУ ДФС у Полтавській області,39680655,юридична особа
АПУ,"Київ, вулиця Гарматна, 31",60,2017-12-26,5295,Інші податки,Податкові платежі,22421,Центральний офіс,34763401,Україна,сплачені податки та збори,26009052641121,current,2068.35,УКДСУ у Соломʼянському районі м. Києва,38050812,юридична особа
АПУ,"Полтавська область, Полтава, вулиця Шевченка, 1",61,2017-12-26,211,Військовий збір,Податкові платежі,22303,Полтавська обласна організація,34874174,Полтавська область,сплачені податки та збори (*;101;;34874174;військовий збір з зарплати за 12.2017р.),26009054622601,current,66.23,УДКСУ у м. Полтаві,38019510,юридична особа
АПУ,"Полтавська область, Полтава, вулиця Шевченка, 1",63,2017-12-26,212,Податок на доходи,Податкові платежі,22302,Полтавська обласна організація,34874174,Полтавська область,сплачені податки та збори (*;101;;34874174;ПДФО з зарплати за 12.2017р.),26009054622601,current,794.70,УДКСУ у м. Полтаві,38019510,юридична особа
АПУ,"Запорізька область, Запоріжжя, Оріхівське шосе, 36",79,2017-12-26,262,"Оренда будинків і приміщень та експлуатаційні витрати (прибирання, страхування орендованих будинків, охорона, сигналізація, ремонт, вивіз сміття, тощо)",Оренда нерухомості,21680,Київська обласна організація,35032539,Київська область,оренда приміщення (Оплата а послуги оренди зг. договору суборенди N1 вiд 2017-10-01 р. Без ПДВ),26006052746076,current,61000.00,"ТОВ ""ЛЮМАКС КОМПАНІ""",34407598,юридична особа
АПУ,"Хмельницька область, Хмельницький, вулиця Свободи, 70",79,2017-12-26,98,"Оренда будинків і приміщень та експлуатаційні витрати (прибирання, страхування орендованих будинків, охорона, сигналізація, ремонт, вивіз сміття, тощо)",Оренда нерухомості,21603,Хмельницька обласна організація,39968240,Хмельницька область,"оренда приміщення (будинку,офіса) (За комунальні послуги в грудні зг рах№443 від 2017-12-15р )",26003010007435,current,2627.91,"Департамент агропромислового розвитку, екології та природних ресурсів Хмельницької обласної державної адміністрації",33709631,юридична особа
АПУ,"Хмельницька область, Хмельницький, вулиця Свободи, 70",79,2017-12-26,97,"Оренда будинків і приміщень та експлуатаційні витрати (прибирання, страхування орендованих будинків, охорона, сигналізація, ремонт, вивіз сміття, тощо)",Оренда нерухомості,21602,Хмельницька обласна організація,39968240,Хмельницька область,"оренда приміщення (будинку,офіса) (Орендна плата за грудень 2017 зг рах №399 від 2017-12-15р)",26003010007435,current,8771.00,"Департамент агропромислового розвитку, екології та природних ресурсів Хмельницької обласної державної адміністрації",33709631,юридична особа
АПУ,"Чернігівська область, Чернігів, проспект Миру, 28",75,2017-12-26,81,Поштові послуги та поширення друкованих матеріалів,Поштові послуги та поширення друкованих матеріалів,21327,Чернігівська обласна організація,35030222,Чернігівська область,"матеріальні витрати та оплата послуг (Оплата доставки за 12 мiсяцiв 2018р. 18000шт., згiдно рахунку N2841 вiд 21.12.17р., Без ПДВ.)",26006051410803,current,296928.00,"Чернігівська дирекція ПАТ ""Укрпошта""",25572588,юридична особа
АПУ,"Чернігівська область, Бахмацький район, Бахмач, вулиця Соборності, 42",79,2017-12-26,21,"Оренда будинків і приміщень та експлуатаційні витрати (прибирання, страхування орендованих будинків, охорона, сигналізація, ремонт, вивіз сміття, тощо)",Оренда нерухомості,21306,Бахмацька районна організація,39979341,Чернігівська область,"оренда приміщення (За оренду за липень-грудень 2017р., Без ПДВ)",26000300021430,current,1754.80,БАХМАЦЬКА РАЙОННА РАДА,24843252,юридична особа
АПУ,"Хмельницька область, Хмельницький, проспект Миру, 59",49,2017-12-26,96,Публікування матеріалів у друкованих ЗМІ,Реклама в друкованих ЗМІ,21209,Хмельницька обласна організація,39968240,Хмельницька область,"розміщення реклами у друкованих засобах масової інформації ( За інформаційні послуги зг рах СФ-1187 від 20,12,2017)",26003010007435,current,4050.00,"ПП ""Медіа-центр ""Подільські вісті""",21313714,юридична особа
АПУ,"Полтавська область, Полтава, проспект Миколи Вавилова, 3",76,2017-12-26,208,Послуги зв’язку,Послуги зв’язку,21195,Полтавська обласна організація,34874174,Полтавська область,послуги зв’язку (послуги аб плата за користуван тел номер по рах№8980 від 30.11.17 у т.ч.ПДВ ),26009054622601,current,62.78,"НВ ТОВ ""СОЛВЕР""",21042304,юридична особа
АПУ,"Полтавська область, Полтава, проспект Миколи Вавилова, 3",76,2017-12-26,207,Послуги зв’язку,Послуги зв’язку,21194,Полтавська обласна організація,34874174,Полтавська область,послуги зв’язку (посл інтернет по рах№8569 від 01.12.17 у т.ч.ПДВ ),26009054622601,current,200.00,"НВ ТОВ ""СОЛВЕР""",21042304,юридична особа
АПУ,"Київ, вулиця Михайла Грушевського, 1Д",70,2017-12-26,CQO0NCZAWY,Банківські послуги,Інші витрати,21066,Чернігівська обласна організація,35030222,Чернігівська область,"інші не заборонені законом витрати (Комiсiя за виконання платежiв в нацiональнiй валютi, згiдно з вiдкритою офертою банку N б/н вiд 2015-04-15 та тарифiв банку, без ПДВ.)",26006051410803,current,3.00,"ПАТ КБ ""Приватбанк""",14360570,юридична особа
АПУ,"Київ, вулиця Михайла Грушевського, 1Д",70,2017-12-26,CQO0N9T05Y,Банківські послуги,Інші витрати,20785,Сумська обласна організація,34932761,Сумська область,інші незаборонені законом витрати / комісія за виконання платежів,26001055008647,current,3.00,"ПАТ КБ ""Приватбанк""",14360570,юридична особа
АПУ,"Київ, вулиця Михайла Грушевського, 1Д",70,2017-12-26,CQO0NB5UBY,Банківські послуги,Інші витрати,20384,Полтавська обласна організація,34874174,Полтавська область,інші не заборонені законом витрати (Комісія за виконання платежів в національній валюті згідно з відкритою офертою банку б/н від 2015-09-07 та тарифів банку.Без ПДВ.),26009054622601,current,3.00,"ПАТ КБ ""Приватбанк""",14360570,юридична особа
АПУ,"Київ, вулиця Михайла Грушевського, 1Д",70,2017-12-26,CQO0NB5U7Y,Банківські послуги,Інші витрати,20383,Полтавська обласна організація,34874174,Полтавська область,інші не заборонені законом витрати (Комісія за виконання платежів в національній валюті згідно з відкритою офертою банку б/н від 2015-09-07 та тарифів банку.Без ПДВ.),26009054622601,current,3.00,"ПАТ КБ ""Приватбанк""",14360570,юридична особа
АПУ,"Київ, вулиця Михайла Грушевського, 1Д",70,2017-12-26,CQO0NB5TXY,Банківські послуги,Інші витрати,20382,Полтавська обласна організація,34874174,Полтавська область,інші не заборонені законом витрати (Комісія за виконання платежів в національній валюті згідно з відкритою офертою банку б/н від 2015-09-07 та тарифів банку.Без ПДВ.),26009054622601,current,3.00,"ПАТ КБ ""Приватбанк""",14360570,юридична особа
АПУ,"Київ, вулиця Михайла Грушевського, 1Д",70,2017-12-26,CQO0NB5TRY,Банківські послуги,Інші витрати,20381,Полтавська обласна організація,34874174,Полтавська область,інші не заборонені законом витрати (Комісія за виконання платежів в національній валюті згідно з відкритою офертою банку б/н від 2015-09-07 та тарифів банку.Без ПДВ.),26009054622601,current,3.00,"ПАТ КБ ""Приватбанк""",14360570,юридична особа
АПУ,"Київ, вулиця Михайла Грушевського, 1Д",70,2017-12-26,CQO0NB5TMY,Банківські послуги,Інші витрати,20380,Полтавська обласна організація,34874174,Полтавська область,інші не заборонені законом витрати (Комісія за виконання платежів в національній валюті згідно з відкритою офертою банку б/н від 2015-09-07 та тарифів банку.Без ПДВ.),26009054622601,current,3.00,"ПАТ КБ ""Приватбанк""",14360570,юридична особа
АПУ,"Київ, вулиця Михайла Грушевського, 1Д",70,2017-12-26,CQO0NBO6OY,Банківські послуги,Інші витрати,19836,Київська обласна організація,35032539,Київська область,"Інші не заборонені законом витрати (Комiсiя за виконання платежiв в нацiональнiй валютi, згiдно з вiдкритою офертою банку N б/н вiд 2015-09-02 та тарифiв банку, без ПДВ.)",26006052746076,current,3.00,"ПАТ КБ ""Приватбанк""",14360570,юридична особа
АПУ,"Київ, вулиця Михайла Грушевського, 1Д",70,2017-12-26,5308_72,Банківські послуги,Інші витрати,19508,Центральний офіс,34763401,Україна,матеріальні витрати та оплата послуг,26009052641121,current,3.00,"ПАТ КБ ""Приватбанк""",14360570,юридична особа
АПУ,"Київ, вулиця Михайла Грушевського, 1Д",70,2017-12-26,5308_71,Банківські послуги,Інші витрати,19507,Центральний офіс,34763401,Україна,матеріальні витрати та оплата послуг,26009052641121,current,3.00,"ПАТ КБ ""Приватбанк""",14360570,юридична особа
АПУ,"Київ, вулиця Михайла Грушевського, 1Д",70,2017-12-26,5308_70,Банківські послуги,Інші витрати,19506,Центральний офіс,34763401,Україна,матеріальні витрати та оплата послуг,26009052641121,current,3.00,"ПАТ КБ ""Приватбанк""",14360570,юридична особа
АПУ,"Київ, вулиця Васильківська",79,2017-12-26,5296,"Оренда будинків і приміщень та експлуатаційні витрати (прибирання, страхування орендованих будинків, охорона, сигналізація, ремонт, вивіз сміття, тощо)",Оренда нерухомості,18619,Центральний офіс,34763401,Україна,"оренда приміщення (будинку, офіса, квартири)",26009052641121,current,144371.01,Інститут водних проблем і меліорації НААН,01018947,юридична особа
АПУ,"Київ, вулиця Васильківська, 37",43,2017-12-26,5297,Інші витрати,Інші витрати,18618,Центральний офіс,34763401,Україна,матеріальні витрати та оплата послуг,26009052641121,current,13763.56,Інститут водних проблем і меліорації НААН,01018947,юридична особа
АПУ,,84,2017-12-22,325,"Заробітна плата, премії","Заробітна плата, лікарняні, вагітності, відрядження, компенсації",23797,Одеська обласна організація,37279902,Одеська область,заробітна плата за 1-шу половину грудня,26005054325961,current,1529.50,Терещенко Людмила Степанівна,,фізична особа
АПУ,,84,2017-12-22,325,"Заробітна плата, премії","Заробітна плата, лікарняні, вагітності, відрядження, компенсації",23796,Одеська обласна організація,37279902,Одеська область,заробітна плата за 1-шу половину грудня,26005054325961,current,1529.50,Литвиненко Ольга Семенівна,,фізична особа
АПУ,"Харківська область, Нововодолазький район, Липкуватівка",84,2017-12-22,325,"Заробітна плата, премії","Заробітна плата, лікарняні, вагітності, відрядження, компенсації",23795,Одеська обласна організація,37279902,Одеська область,заробітна плата за 1-шу половину грудня,26005054325961,current,1529.50,Гавриленко Тетяна Володимирівна,,фізична особа
АПУ,,84,2017-12-22,325,"Заробітна плата, премії","Заробітна плата, лікарняні, вагітності, відрядження, компенсації",23794,Одеська обласна організація,37279902,Одеська область,заробітна плата за 1-шу половину грудня,26005054325961,current,1932.00,Погребна Тетяна Миколаївна,,фізична особа
АПУ,"Житомирська область, Овруцький район, Овруч, вулиця Івана Мазепи",43,2017-12-22,1,Інші витрати,Інші витрати,23709,Центральний офіс,34763401,Україна,інші не заборонені законом витрати,26009052641121,current,599.41,Хосровлу Фікрет Ісраіл огли,,фізична особа
АПУ,"Житомирська область, Овруцький район, Овруч, вулиця Івана Мазепи",43,2017-12-22,5295,Інші витрати,Інші витрати,23638,Центральний офіс,34763401,Україна,інші не заборонені законом витрати,26009052641121,current,724.57,Хосровлу Фікрет Ісраіл огли,,фізична особа
АПУ,"Дніпропетровська область, Кривий Ріг, вулиця Алмазна, 25, 49",80,2017-12-22,191,"Транспортні послуги (квитки, пасажирські перевезення і т.д.)","Транспортні послуги (квитки, пасажирські перевезення і т.д.)",23224,Криворізька районна організація,40267750,Дніпропетровська область,матеріальні витрати та оплата послуг (оплата за транспортні послуги по перевезенню пасажирів),26005300544524,current,1600.00,Артюх Сергій Іванович,,фізична особа
АПУ,"Донецька область, Маріуполь",53,2017-12-22,190,Витрати на розміщення зовнішньої реклами,Зовнішня реклама,23127,Криворізька районна організація,40267750,Дніпропетровська область,розміщення зовнішньої політичної реклами (оплата за розміщення на сайті),26005300544524,current,4400.00,Єрмаков Максим Ігорович,3023411138,фізична особа
АПУ,"Одеська область, Одеса, Французький бульвар, 7",62,2017-12-22,324,Сплата ЄСВ,Податкові платежі,22627,Одеська обласна організація,37279902,Одеська область,Сплачені податки та збори(єсв за 1-шу пол.грудня),26005054325961,current,1782.00,ДПІ у Приморському районі м. Одеси ГУ ДФС в Одеській області,39565511,юридична особа
АПУ,"Одеська область, Одеса, вулиця Черняховського, 6",63,2017-12-22,323,Податок на доходи,Податкові платежі,22197,Одеська обласна організація,37279902,Одеська область,Сплачені податки та збори (податок з доходів за 1-шу пол грудня),26005054325961,current,1458.00,УДКСУ у м. Одесі,38016923,юридична особа
АПУ,"Одеська область, Одеса, вулиця Черняховського, 6",61,2017-12-22,322,Військовий збір,Податкові платежі,22196,Одеська обласна організація,37279902,Одеська область,Сплачені податки та збори(військовий збір за 1-шу пол.грудня),26005054325961,current,121.50,УДКСУ у м. Одесі,38016923,юридична особа
АПУ,"Київ, вулиця Михайла Грушевського, 1Д",70,2017-12-22,CMO0N2H8FY,Банківські послуги,Інші витрати,20126,Одеська обласна організація,37279902,Одеська область,матерiальні витрати та послуги (комісія за виконання платежів в національній валюті),26005054325961,current,3.00,"ПАТ КБ ""Приватбанк""",14360570,юридична особа
АПУ,"Київ, вулиця Михайла Грушевського, 1Д",70,2017-12-22,CMO0N2H7МY,Банківські послуги,Інші витрати,20125,Одеська обласна організація,37279902,Одеська область,матерiальні витрати та послуги (комісія за виконання платежів в національній валюті),26005054325961,current,3.00,"ПАТ КБ ""Приватбанк""",14360570,юридична особа
АПУ,"Київ, вулиця Михайла Грушевського, 1Д",70,2017-12-22,CMO0N2H6SY,Банківські послуги,Інші витрати,20124,Одеська обласна організація,37279902,Одеська область,матерiальні витрати та послуги (комісія за виконання платежів в національній валюті),26005054325961,current,3.00,"ПАТ КБ ""Приватбанк""",14360570,юридична особа
АПУ,"Київ, вулиця Михайла Грушевського, 1Д",70,2017-12-22,5308_65,Банківські послуги,Інші витрати,19501,Центральний офіс,34763401,Україна,матеріальні витрати та оплата послуг,26009052641121,current,3.31,"ПАТ КБ ""Приватбанк""",14360570,юридична особа
АПУ,"Київ, вулиця Михайла Грушевського, 1Д",70,2017-12-22,5296,Банківські послуги,Інші витрати,19430,Центральний офіс,34763401,Україна,матеріальні витрати та оплата послуг,26009052641121,current,3.31,"ПАТ КБ ""Приватбанк""",14360570,юридична особа
АПУ,,58,2017-12-21,19,"Виготовлення друкованих матеріалів (плакатів, листівок, буклетів та інших агітаційних матеріалів)",Друкована агітація,24267,Камʼянець-Подільська районна організація,40300944,Хмельницька область,матеріальні витрати та оплата послуг (за вітальну листівку зг рах СФ-205 від 2017-12-20),26004300814268,current,2400.00,Буйницький Олексій Анатолійович,,фізична особа
АПУ,"Рівненська область, Рівне",69,2017-12-21,4366,Організація заходів та інші організаційні послуги,Організація заходів та інші організаційні послуги,23010,Рівненська обласна організація,35103253,Рівненська область,"публічні заходи (за цукерки згiдно накл.N 756 вiд 15.05.17р.,N 1908 вiд 2017-12-19р. У сумi 10668.75 грн., ПДВ - 20 % 2133.75 грн.)",26002054724863,current,12802.50,Фурманець Віталій Миколайович,2644613974,фізична особа
АПУ,"Запорізька область, Запоріжжя, проспект Маяковського, 11",53,2017-12-21,791,Витрати на розміщення зовнішньої реклами,Зовнішня реклама,22816,Запорізька обласна організація,34975613,Запорізька область,Розм. зовнішньої реклами (рекламно-інформ. посл. на сайтах ),26006055720257,current,7700.00,"ТОВ ""ТРК ГОЛД""",41294256,юридична особа
АПУ,"Полтавська область, Полтава, вулиця Європейська, 57",80,2017-12-21,206,"Транспортні послуги (квитки, пасажирські перевезення і т.д.)","Транспортні послуги (квитки, пасажирські перевезення і т.д.)",21420,Полтавська обласна організація,34874174,Полтавська область,"матеріальні витрати та оплата послуг (організац перевезен відправлень по рах№/0-0037910 від 2017-12-20, у т.ч. ПДВ)",26009054622601,current,916.00,"ТОВ ""Нова пошта""",31316718,юридична особа
АПУ,"Чернігівська область, Прилуки, вулиця Київська, 192",51,2017-12-21,80,Оплата ефірного часу на ТБ,Телереклама,21253,Чернігівська обласна організація,35030222,Чернігівська область,"розміщення реклами на телебаченні (Оплата за виготовлення та трансляцiю рекламно-iнформацiйного сюжету, згiдно рахунку N316 вiд 20.12.17р., без ПДВ.)",26006051410803,current,2340.00,"КП ""Телекомпанія ""Прилуки"" Прилуцької міської ради""",22819278,юридична особа
АПУ,"Харківська область, Харків, майдан Свободи, 5/1",49,2017-12-21,108,Публікування матеріалів у друкованих ЗМІ,Реклама в друкованих ЗМІ,21200,Харківська обласна організація,34951845,Харківська область,розміщення реклами у друкованих засобах масової інформації (за розміщення іміджевих матеріалів з.рах № 2067 від 2017-12-20р. ),26006052229335,current,5400.00,"РГ ""Слобідський край""",21188137,юридична особа
АПУ,"Київ, вулиця Михайла Грушевського, 1Д",70,2017-12-21,CLO0MYA84Y,Банківські послуги,Інші витрати,21065,Чернігівська обласна організація,35030222,Чернігівська область,"інші не заборонені законом витрати (Комiсiя за виконання платежiв в нацiональнiй валютi, згiдно з вiдкритою офертою банку N б/н вiд 2015-04-15 та тарифiв банку, без ПДВ.)",26006051410803,current,3.00,"ПАТ КБ ""Приватбанк""",14360570,юридична особа
АПУ,"Київ, вулиця Михайла Грушевського, 1Д",70,2017-12-21,CLO0N19WCY,Банківські послуги,Інші витрати,20857,Харківська обласна організація,34951845,Харківська область,матеріальні витрати та оплата послуг(Комісія за виконання платежів),26006052229335,current,3.00,"ПАТ КБ ""Приватбанк""",14360570,юридична особа
АПУ,"Київ, вулиця Михайла Грушевського, 1Д",70,2017-12-21,CLO0N1BVAY,Банківські послуги,Інші витрати,20655,Рівненська обласна організація,35103253,Рівненська область,"матеріальні витрати та оплата послуг(Комiсiя за виконання платежiв в нацiональнiй валютi, згiдно з вiдкритою офертою банку N б/н вiд 2016-01-28 та тарифiв банку, без ПДВ.)",26002054724863,current,3.00,"ПАТ КБ ""Приватбанк""",14360570,юридична особа
АПУ,"Київ, вулиця Михайла Грушевського, 1Д",70,2017-12-21,CLO0MZHH8Y,Банківські послуги,Інші витрати,20654,Рівненська обласна організація,35103253,Рівненська область,"матеріальні витрати та оплата послуг(Комiсiя за виконання платежiв в нацiональнiй валютi, згiдно з вiдкритою офертою банку N б/н вiд 2016-01-28 та тарифiв банку, без ПДВ.)",26002054724863,current,3.00,"ПАТ КБ ""Приватбанк""",14360570,юридична особа
АПУ,"Київ, вулиця Михайла Грушевського, 1Д",70,2017-12-21,CLO0MZHHBY,Банківські послуги,Інші витрати,20653,Рівненська обласна організація,35103253,Рівненська область,"матеріальні витрати та оплата послуг(Комiсiя за виконання платежiв в нацiональнiй валютi, згiдно з вiдкритою офертою банку N б/н вiд 2016-01-28 та тарифiв банку, без ПДВ.)",26002054724863,current,3.00,"ПАТ КБ ""Приватбанк""",14360570,юридична особа
АПУ,"Київ, вулиця Михайла Грушевського, 1Д",70,2017-12-21,CLO0MXNZSY,Банківські послуги,Інші витрати,20379,Полтавська обласна організація,34874174,Полтавська область,інші не заборонені законом витрати (Комісія за виконання платежів в національній валюті згідно з відкритою офертою банку б/н від 2015-09-07 та тарифів банку.Без ПДВ.),26009054622601,current,3.00,"ПАТ КБ ""Приватбанк""",14360570,юридична особа
АПУ,"Київ, вулиця Михайла Грушевського, 1Д",70,2017-12-21,TZ001BLJUA,Банківські послуги,Інші витрати,19956,Луганська обласна організація,37287520,Луганська область,матеріальні витрати та оплата послуг,26007053717461,current,20.66,"ПАТ КБ ""Приватбанк""",14360570,юридична особа
АПУ,"Київ, вулиця Михайла Грушевського, 1Д",70,2017-12-21,CLO0N135FY,Банківські послуги,Інші витрати,19698,Запорізька обласна організація,34975613,Запорізька область,Матеріальні витрати та оплата послуг (коміс. за викон.банк.платежів),26006055720257,current,3.00,"ПАТ КБ ""Приватбанк""",14360570,юридична особа
АПУ,"Рівненська область, Рівне",79,2017-12-21,437,"Оренда будинків і приміщень та експлуатаційні витрати (прибирання, страхування орендованих будинків, охорона, сигналізація, ремонт, вивіз сміття, тощо)",Оренда нерухомості,19018,Рівненська обласна організація,35103253,Рівненська область,"оренда приміщення (будинку, офіса, квартири)(за оренду за грудень 2017р. згiдно рах.б/н вiд 2017-12-01р. Без ПДВ)",26002054724863,current,3000.00,"ТОВ ""СПМК-1""",13349848,юридична особа
АПУ,"Рівненська область, Рівне",79,2017-12-21,435,"Оренда будинків і приміщень та експлуатаційні витрати (прибирання, страхування орендованих будинків, охорона, сигналізація, ремонт, вивіз сміття, тощо)",Оренда нерухомості,18675,Рівненська обласна організація,35103253,Рівненська область,"оренда приміщення (будинку, офіса, квартири)(за оренду згiдно рах.б/н вiд 20.12.17р. Без ПДВ)",26002054724863,current,1405.30,Гощанське районне споживче товариство,01764366,юридична особа
АПУ,,84,2017-12-20,44,"Заробітна плата, премії","Заробітна плата, лікарняні, вагітності, відрядження, компенсації",23772,Луганська обласна організація,37287520,Луганська область,заробітна плата,26007053717461,current,1466.00,Літвінова Оксана Ігорівна,,фізична особа
АПУ,,84,2017-12-20,44,"Заробітна плата, премії","Заробітна плата, лікарняні, вагітності, відрядження, компенсації",23771,Луганська обласна організація,37287520,Луганська область,заробітна плата,26007053717461,current,1184.25,Корнєва Дарʼя Ігорівна,,фізична особа
АПУ,,84,2017-12-20,44,"Заробітна плата, премії","Заробітна плата, лікарняні, вагітності, відрядження, компенсації",23770,Луганська обласна організація,37287520,Луганська область,заробітна плата,26007053717461,current,1305.00,Мілокост Світлана Анатоліївна,,фізична особа
АПУ,,84,2017-12-20,44,"Заробітна плата, премії","Заробітна плата, лікарняні, вагітності, відрядження, компенсації",23769,Луганська обласна організація,37287520,Луганська область,заробітна плата,26007053717461,current,1627.00,Рибалкін Олег Миколайович,,фізична особа
АПУ,,84,2017-12-20,44,"Заробітна плата, премії","Заробітна плата, лікарняні, вагітності, відрядження, компенсації",23768,Луганська обласна організація,37287520,Луганська область,заробітна плата,26007053717461,current,751.50,Грішна Марина Олександрівна,,фізична особа
АПУ,,84,2017-12-20,44,"Заробітна плата, премії","Заробітна плата, лікарняні, вагітності, відрядження, компенсації",23767,Луганська обласна організація,37287520,Луганська область,заробітна плата,26007053717461,current,1932.00,Підкуйко Сергій Іванович,,фізична особа
АПУ,"Дніпропетровська область, Кривий Ріг, проспект Карла Маркса, 60",53,2017-12-20,192,Витрати на розміщення зовнішньої реклами,Зовнішня реклама,23192,Криворізька районна організація,40267750,Дніпропетровська область,розміщення зовнішньої політичної реклами (оплата за розміщення на рекламних конструкціх),26005300544524,current,2100.00,Макаров Михайло Олександрович,3109521957,фізична особа
АПУ,"Одеська область, Одеса, вулиця Генерала Петрова, 54, 102",58,2017-12-20,321,"Виготовлення друкованих матеріалів (плакатів, листівок, буклетів та інших агітаційних матеріалів)",Друкована агітація,22928,Одеська обласна організація,37279902,Одеська область,пропагандистська діяльність (відавнича діяльність),26005054325961,current,21555.60,Герцегович І Н,2256708516,фізична особа
АПУ,"Одеська область, Ширяївський район, Ширяєве",74,2017-12-20,21,"Придбання канцтоварів, паперу, інших предметів і матеріалів, а також госп товари",Придбання канцтоварів та госп. товарів,22893,Ширяївська районна організація,36909245,Одеська область,матеріальні витрати (канцтовари),26005495447,current,1000.00,Вдовиченко Надія Олексіївна,2170924722,фізична особа
АПУ,"Харківська область, Харків, вулиця Гвардійців-Широнінців, 50, 21",53,2017-12-20,107,Витрати на розміщення зовнішньої реклами,Зовнішня реклама,22835,Харківська обласна організація,34951845,Харківська область,розміщення зовнішньої політичної реклами (за календар настільний зг.рах. № 138 від 15.12.17),26006052229335,current,5000.00,Здоренко М І,1869423510,фізична особа
АПУ,"Луганська область, Сватівський район, Сватове",62,2017-12-20,42,Сплата ЄСВ,Податкові платежі,22711,Луганська обласна організація,37287520,Луганська область,сплачені податки та збори,26007053717461,current,2409.00,Сватівська ОДПІГУ ДФС у Луганській області,39891037,юридична особа
АПУ,"Закарпатська область, Мукачево",62,2017-12-20,83,Сплата ЄСВ,Податкові платежі,22651,Закарпатська обласна організація,35175695,Закарпатська область,Сплачені податки і збори (101;35175695;нарахуванняЄСВ 22% з зарплати за листопад 2017р.повністю),26000060449904,current,2997.68,Мукачівська ОДПІ,39568154,юридична особа
АПУ,"Луганська область, Сватівський район, Сватове",60,2017-12-20,42,Інші податки,Податкові платежі,21978,Луганська обласна організація,37287520,Луганська область,сплачені податки та збори,26007053717461,current,2520.00,УДКСУ в Сватівському районі,37928384,юридична особа
АПУ,"Луганська область, Сватівський район, Сватове",60,2017-12-20,41,Інші податки,Податкові платежі,21977,Луганська обласна організація,37287520,Луганська область,сплачені податки та збори,26007053717461,current,164.25,УДКСУ в Сватівському районі,37928384,юридична особа
АПУ,"Хмельницька область, Хмельницький, проспект Миру, 69",49,2017-12-20,95,Публікування матеріалів у друкованих ЗМІ,Реклама в друкованих ЗМІ,21621,Хмельницька обласна організація,39968240,Хмельницька область,розміщення реклами у друкованих засобах масової інформації ( За рекламно-інформаційні послуги на сайті vsim.ua зг рах від 2017-12-18,26003010007435,current,450.00,"ТОВ ""Медіахолдин ВСІМ""",34007234,юридична особа
АПУ,"Вінницька область, Вінниця, вулиця Театральна, 15",51,2017-12-20,404,Оплата ефірного часу на ТБ,Телереклама,21436,Вінницька обласна організація,35111112,Вінницька область,пропагандистська діяльність розміщення реклами на телебаченні (оплата за послугу виготовлення відеоматеріалів рах №000037 від 2017-12-13р.),26003000249520,current,8000.00,"Обласна асоціація ""Вінницька громадська телерадіокомпанія ""Вінниччина""",31473359,юридична особа
АПУ,"Харківська область, Харків, Театральний провулок, 4",51,2017-12-20,106,Оплата ефірного часу на ТБ,Телереклама,21290,Харківська обласна організація,34951845,Харківська область,розміщення реклами на телебаченні (за невиклчне право на телевізійний показ Твору шляхом передачі в ефірі) зг.рах.284 від 14.12.17,2600201685411,current,18000.00,"ТОВ ""Компанія АТН""",24270655,юридична особа
АПУ,"Київ, вулиця Михайла Грушевського, 1Д",70,2017-12-20,CKO0MST7CY,Банківські послуги,Інші витрати,20856,Харківська обласна організація,34951845,Харківська область,матеріальні витрати та оплата послуг(Комісія за виконання платежів),26006052229335,current,3.00,"ПАТ КБ ""Приватбанк""",14360570,юридична особа
АПУ,"Київ, вулиця Михайла Грушевського, 1Д",70,2017-12-20,CKO0MST7KY,Банківські послуги,Інші витрати,20855,Харківська обласна організація,34951845,Харківська область,матеріальні витрати та оплата послуг(Комісія за виконання платежів),26006052229335,current,3.00,"ПАТ КБ ""Приватбанк""",14360570,юридична особа
АПУ,"Київ, вулиця Михайла Грушевського, 1Д",70,2017-12-20,CKO0MXA98Y,Банківські послуги,Інші витрати,19955,Луганська обласна організація,37287520,Луганська область,матеріальні витрати та оплата послуг,26007053717461,current,3.00,"ПАТ КБ ""Приватбанк""",14360570,юридична особа
АПУ,"Київ, вулиця Михайла Грушевського, 1Д",70,2017-12-20,CKO0MXA90Y,Банківські послуги,Інші витрати,19954,Луганська обласна організація,37287520,Луганська область,матеріальні витрати та оплата послуг,26007053717461,current,3.00,"ПАТ КБ ""Приватбанк""",14360570,юридична особа
АПУ,"Київ, вулиця Михайла Грушевського, 1Д",70,2017-12-20,CKO0MXA8YY,Банківські послуги,Інші витрати,19953,Луганська обласна організація,37287520,Луганська область,матеріальні витрати та оплата послуг,26007053717461,current,3.00,"ПАТ КБ ""Приватбанк""",14360570,юридична особа
АПУ,"Київ, вулиця Михайла Грушевського, 1Д",70,2017-12-20,1220AL9IKA,Банківські послуги,Інші витрати,19952,Луганська обласна організація,37287520,Луганська область,матеріальні витрати та оплата послуг,26007053717461,current,5.00,"ПАТ КБ ""Приватбанк""",14360570,юридична особа
АПУ,"Київ, вулиця Михайла Грушевського, 1Д",70,2017-12-20,CKO0VVRX2Y,Банківські послуги,Інші витрати,19634,Закарпатська обласна організація,35175695,Закарпатська область,"Комісія за обслуговування рахунку квітень 2017р. Згідно договору банківського рахунку від 2012-07-06,без ПДВ",26000060449904,current,3.00,"ПАТ КБ ""Приватбанк""",14360570,юридична особа
АПУ,"Харківська область, Харків, Московський проспект, 247",49,2017-12-20,108,Публікування матеріалів у друкованих ЗМІ,Реклама в друкованих ЗМІ,19058,Харківська обласна організація,34951845,Харківська область,"розміщення реклами у друкованих засобах масової інформації (інформаційні послуги в газеті ""Время"" з.рах № 221 від 2017-12-19р. )",26006052229335,current,3500.00,"ПрАТ ""Время""",14100461,юридична особа
АПУ,"Вінницька область, Вінниця, Хмельницьке шосе, 7",49,2017-12-20,403,Публікування матеріалів у друкованих ЗМІ,Реклама в друкованих ЗМІ,18718,Вінницька обласна організація,35111112,Вінницька область,"пропагандистська діяльність (інформаційна) (оплата за інформаційний матеріал зг рах №01566 від 2017-12-18 в т. ч. ПДВ 125,00 грн.)",26003000249520,current,750.00,"ТОВ ""Редакція газети ""Вінниччина""",02471614,юридична особа
АПУ,"Харківська область, Чугуїв",84,2017-12-19,100,"Заробітна плата, премії","Заробітна плата, лікарняні, вагітності, відрядження, компенсації",24192,Харківська обласна організація,34951845,Харківська область,заробітна плата (поповнення картки Варжеїнов Ю.К. (заробітна плата за заробітна плата за І пол.грудня 2017р.),26006052229335,current,2640.00,Варжеїнов Юрій Костянтинович,,фізична особа
АПУ,"Харківська область, Чугуїв",84,2017-12-19,100,"Заробітна плата, премії","Заробітна плата, лікарняні, вагітності, відрядження, компенсації",24191,Харківська обласна організація,34951845,Харківська область,заробітна плата (поповнення картки Бут м. М.(заробітна плата за І пол.грудня 2017р.),26006052229335,current,1815.00,Бут Марина Миколаївна,,фізична особа
АПУ,"Харківська область, Харків",84,2017-12-19,100,"Заробітна плата, премії","Заробітна плата, лікарняні, вагітності, відрядження, компенсації",24190,Харківська обласна організація,34951845,Харківська область,заробітна плата (поповнення картки Зорченко В.І.(заробітна плата за І пол.грудня 2017р.),26006052229335,current,1980.00,Зорченко Володимир Іванович,,фізична особа
АПУ,"Харківська область, Чугуїв",84,2017-12-19,100,"Заробітна плата, премії","Заробітна плата, лікарняні, вагітності, відрядження, компенсації",24189,Харківська обласна організація,34951845,Харківська область,заробітна плата (поповнення картки Золотарьов В.І.(заробітна плата за І пол.грудня 2017р.),26006052229335,current,2420.00,Золотарьов Володимир Ілліч,,фізична особа
АПУ,"Рівненська область, Рівне",83,2017-12-19,434,"Виплати працівникам (не зарплата): лікарняні, вагітності, відрядження, компенсації ","Заробітна плата, лікарняні, вагітності, відрядження, компенсації",24100,Рівненська обласна організація,35103253,Рівненська область,інші не заборонені законом витрати (відрядження),26002054724863,current,180.00,Петрощук Олександр Васильович,,фізична особа
АПУ,"Херсонська область, Великоолександрівський район, Велика Олександрівка, провулок Сергія Лазо",58,2017-12-19,189,"Виготовлення друкованих матеріалів (плакатів, листівок, буклетів та інших агітаційних матеріалів)",Друкована агітація,23163,Криворізька районна організація,40267750,Дніпропетровська область,матеріальні витрати та оплата послуг (друк книги),26005300544524,current,21565.00,Маринченко Сергій Володимирович,3086200550,фізична особа
АПУ,"Сумська область, Суми, вулиця Герасима Кондратьєва, 25, 1",58,2017-12-19,313,"Виготовлення друкованих матеріалів (плакатів, листівок, буклетів та інших агітаційних матеріалів)",Друкована агітація,23032,Сумська обласна організація,34932761,Сумська область,матеріальні витрати /за афіши/,26001055008647,current,750.00,Щербина Ірина Вікторівна,2684711022,фізична особа
АПУ,"Сумська область, Суми, вулиця Герасима Кондратьєва, 25, 1",58,2017-12-19,310,"Виготовлення друкованих матеріалів (плакатів, листівок, буклетів та інших агітаційних матеріалів)",Друкована агітація,23031,Сумська обласна організація,34932761,Сумська область,матеріальні витрати /за афіши/,26001055008647,current,1400.00,Щербина Ірина Вікторівна,2684711022,фізична особа
АПУ,"Київ, вулиця Зодчих, 40, 124",82,2017-12-19,261,"Гонорари, в тому числі за надані консультаційні послуги","Гонорари, в тому числі за надані консультаційні послуги",23029,Київська обласна організація,35032539,Київська область,матеріальні витрати та оплата послуг (Оплата за бух. обслуговування зг. рах. N75 вiд 2017-11-30 р. Без ПДВ),26006052746076,current,4000.00,Єремеєва Ольга Віталіївна,2675719226,фізична особа
АПУ,"Рівненська область, Рівне",51,2017-12-19,433,Оплата ефірного часу на ТБ,Телереклама,23016,Рівненська обласна організація,35103253,Рівненська область,"розміщення реклами на телебаченні (за рекламнi послуги згiдно рах.N13/243я вiд 2017-11-28р., Без ПДВ)",26002054724863,current,4000.00,Ясковець Світлана Георгіївна,2671717225,фізична особа
АПУ,"Харківська область, Чугуїв",53,2017-12-19,105,Витрати на розміщення зовнішньої реклами,Зовнішня реклама,22935,Харківська обласна організація,34951845,Харківська область,розміщення зовнішньої політичної реклами (за постер зг.рах. № 278 від 13.12.17),26006052229335,current,2000.00,Болячевець Валентина Миколаївна,2260220699,фізична особа
АПУ,"Херсонська область, Херсон, вулиця Іллюши Кулика, 143А",62,2017-12-19,37,Сплата ЄСВ,Податкові платежі,22555,Херсонська обласна організація,35027927,Херсонська область,ЄСВ з з/пл грудень 2017р.,26002052207238,current,160.00,Херсонська ОДПІ ГУ ДФС у Херсонській області,39473382,юридична особа
АПУ,"Запорізька область, Запоріжжя, Оріхівське шосе, 36",79,2017-12-19,260,"Оренда будинків і приміщень та експлуатаційні витрати (прибирання, страхування орендованих будинків, охорона, сигналізація, ремонт, вивіз сміття, тощо)",Оренда нерухомості,21679,Київська обласна організація,35032539,Київська область,оренда приміщення (Оплата а послуги оренди зг. договору суборенди N1 вiд 2017-10-01 р. Без ПДВ),26006052746076,current,80000.00,"ТОВ ""ЛЮМАКС КОМПАНІ""",34407598,юридична особа
АПУ,"Одеська область, Овідіопольський район, Овідіополь",79,2017-12-19,40,"Оренда будинків і приміщень та експлуатаційні витрати (прибирання, страхування орендованих будинків, охорона, сигналізація, ремонт, вивіз сміття, тощо)",Оренда нерухомості,21495,Овідіопольська районна організація,39909834,Одеська область,оренда приміщення за грудень 2017 (оренда нежитлового приміщення),26000300084521,current,1000.00,"ТОВ ""Регіональний земальн-кадастровий аналітичний центр""",32213805,юридична особа
АПУ,"Сумська область, Суми, вулиця Харківська, 4",51,2017-12-19,312,Оплата ефірного часу на ТБ,Телереклама,21479,Сумська обласна організація,34932761,Сумська область,реклама на телебаченны/за виготовлення та телетрансляцыю матерыалу/,26001055008647,current,10000.00,"ТОВ ""Телерадіокомпанія ""Академ TV""",32185841,юридична особа
АПУ,"Полтавська область, Полтава, вулиця Європейська, 57",80,2017-12-19,205,"Транспортні послуги (квитки, пасажирські перевезення і т.д.)","Транспортні послуги (квитки, пасажирські перевезення і т.д.)",21419,Полтавська обласна організація,34874174,Полтавська область,"матеріальні витрати та оплата послуг (організац перевезен відправлень по акту зв від 2017-12-19, у т.ч. ПДВ)",26009054622601,current,1045.50,"ТОВ ""Нова пошта""",31316718,юридична особа
АПУ,"Київ, вулиця Михайла Грушевського, 1Д",70,2017-12-19,CDO0MBAPBY,Банківські послуги,Інші витрати,20898,Херсонська обласна організація,35027927,Херсонська область,комісія за виконання платежів,26002052207238,current,3.00,"ПАТ КБ ""Приватбанк""",14360570,юридична особа
АПУ,"Київ, вулиця Михайла Грушевського, 1Д",70,2017-12-19,CJO0MORAVY,Банківські послуги,Інші витрати,20854,Харківська обласна організація,34951845,Харківська область,матеріальні витрати та оплата послуг(Комісія за виконання платежів),26006052229335,current,3.00,"ПАТ КБ ""Приватбанк""",14360570,юридична особа
АПУ,"Київ, вулиця Михайла Грушевського, 1Д",70,2017-12-19,CJO0MQ73CY,Банківські послуги,Інші витрати,20784,Сумська обласна організація,34932761,Сумська область,інші незаборонені законом витрати/комісія за винання платежів /,26001055008647,current,3.00,"ПАТ КБ ""Приватбанк""",14360570,юридична особа
АПУ,"Київ, вулиця Михайла Грушевського, 1Д",70,2017-12-19,CJO0M0706Y,Банківські послуги,Інші витрати,20783,Сумська обласна організація,34932761,Сумська область,інші незаборонені законом витрати / комісія за виконання платежів,26001055008647,current,3.00,"ПАТ КБ ""Приватбанк""",14360570,юридична особа
АПУ,"Київ, вулиця Михайла Грушевського, 1Д",70,2017-12-19,CJO0MO3U7A,Банківські послуги,Інші витрати,20652,Рівненська обласна організація,35103253,Рівненська область,матеріальні витрати та оплата послуг (Комiсiя за поповнення карток для виплат та нецiльовi платежi),26002054724863,current,0.45,"ПАТ КБ ""Приватбанк""",14360570,юридична особа
АПУ,"Київ, вулиця Михайла Грушевського, 1Д",70,2017-12-19,CJO0MN0JMY,Банківські послуги,Інші витрати,20651,Рівненська обласна організація,35103253,Рівненська область,"матеріальні витрати та оплата послуг(Комiсiя за виконання платежiв в нацiональнiй валютi, згiдно з вiдкритою офертою банку N б/н вiд 2016-01-28 та тарифiв банку, без ПДВ.)",26002054724863,current,3.00,"ПАТ КБ ""Приватбанк""",14360570,юридична особа
АПУ,"Київ, вулиця Михайла Грушевського, 1Д",70,2017-12-19,CJO0MOF4IY,Банківські послуги,Інші витрати,20378,Полтавська обласна організація,34874174,Полтавська область,інші не заборонені законом витрати (Комісія за виконання платежів в національній валюті згідно з відкритою офертою банку б/н від 2015-09-07 та тарифів банку.Без ПДВ.),26009054622601,current,3.00,"ПАТ КБ ""Приватбанк""",14360570,юридична особа
АПУ,"Київ, вулиця Михайла Грушевського, 1Д",70,2017-12-19,CJO0MOF2PY,Банківські послуги,Інші витрати,19835,Київська обласна організація,35032539,Київська область,"Інші не заборонені законом витрати (Комiсiя за виконання платежiв в нацiональнiй валютi, згiдно з вiдкритою офертою банку N б/н вiд 2015-09-02 та тарифiв банку, без ПДВ.)",26006052746076,current,3.00,"ПАТ КБ ""Приватбанк""",14360570,юридична особа
АПУ,"Київ, вулиця Михайла Грушевського, 1Д",70,2017-12-19,CJO0MOF2GY,Банківські послуги,Інші витрати,19834,Київська обласна організація,35032539,Київська область,"Інші не заборонені законом витрати (Комiсiя за виконання платежiв в нацiональнiй валютi, згiдно з вiдкритою офертою банку N б/н вiд 2015-09-02 та тарифiв банку, без ПДВ.)",26006052746076,current,3.00,"ПАТ КБ ""Приватбанк""",14360570,юридична особа
АПУ,"Київ, вулиця Михайла Грушевського, 1Д",70,2017-12-19,259,Банківські послуги,Інші витрати,19833,Київська обласна організація,35032539,Київська область,інші не заборонені законом витрати (Комiсiя РКО вiд зарплати за листопад 2017р.),26006052746076,current,1.61,"ПАТ КБ ""Приватбанк""",14360570,юридична особа
АПУ,,58,2017-12-18,18,"Виготовлення друкованих матеріалів (плакатів, листівок, буклетів та інших агітаційних матеріалів)",Друкована агітація,24266,Камʼянець-Подільська районна організація,40300944,Хмельницька область,матеріальні витрати та оплата послуг за друк та(поклейку постерів зг рах СФ-125 від 2017-12-13),26004300814268,current,650.00,Лущай Олександр Григорович,,фізична особа
АПУ,,53,2017-12-18,17,Витрати на розміщення зовнішньої реклами,Зовнішня реклама,24265,Камʼянець-Подільська районна організація,40300944,Хмельницька область,матеріальні витрати та оплата послуг (за розміщення зображення на поверхні бігборда зг рах СФ-123 від 2017-12-01),26004300814268,current,1600.00,Лущай Олександр Григорович,,фізична особа
АПУ,,57,2017-12-18,16,Виготовлення брендованої продукції,"Виготовлення брендованої продукції (футболки, кепки, парасольки)",24264,Камʼянець-Подільська районна організація,40300944,Хмельницька область,матеріальні витрати та оплата послуг (за календар А-3 зг рах СФ-198 від 2017-12-14),26004300814268,current,5240.00,Буйницький Олексій Анатолійович,,фізична особа
АПУ,"Рівненська область, Рівне",84,2017-12-18,430,"Заробітна плата, премії","Заробітна плата, лікарняні, вагітності, відрядження, компенсації",24099,Рівненська обласна організація,35103253,Рівненська область,заробітна плата (зарплата за грудень 2017р.),26002054724863,current,1500.00,Нерода Вікторія Юріївна,,фізична особа
АПУ,"Рівненська область, Рівне",84,2017-12-18,430,"Заробітна плата, премії","Заробітна плата, лікарняні, вагітності, відрядження, компенсації",24098,Рівненська обласна організація,35103253,Рівненська область,заробітна плата (зарплата за грудень 2017р.),26002054724863,current,1500.00,Стретович Світлана Юріївна,,фізична особа
АПУ,"Рівненська область, Рівне",84,2017-12-18,430,"Заробітна плата, премії","Заробітна плата, лікарняні, вагітності, відрядження, компенсації",24097,Рівненська обласна організація,35103253,Рівненська область,заробітна плата (зарплата за грудень 2017р.),26002054724863,current,1800.00,Дзенік Світлана Анатоліївна,,фізична особа
АПУ,"Рівненська область, Рівне",84,2017-12-18,430,"Заробітна плата, премії","Заробітна плата, лікарняні, вагітності, відрядження, компенсації",24096,Рівненська обласна організація,35103253,Рівненська область,заробітна плата (зарплата за грудень 2017р.),26002054724863,current,1600.00,Остаповець Максим Олександрович,,фізична особа
АПУ,"Рівненська область, Рівне",84,2017-12-18,430,"Заробітна плата, премії","Заробітна плата, лікарняні, вагітності, відрядження, компенсації",24095,Рівненська обласна організація,35103253,Рівненська область,заробітна плата (зарплата за грудень 2017р.),26002054724863,current,1900.00,Петрощук Олександр Васильович,,фізична особа
АПУ,"Рівненська область, Рівне",84,2017-12-18,430,"Заробітна плата, премії","Заробітна плата, лікарняні, вагітності, відрядження, компенсації",24094,Рівненська обласна організація,35103253,Рівненська область,заробітна плата (зарплата за грудень 2017р.),26002054724863,current,2100.00,Подорожній Юрій Анатолійович,,фізична особа
АПУ,"Рівненська область, Рівне",84,2017-12-18,430,"Заробітна плата, премії","Заробітна плата, лікарняні, вагітності, відрядження, компенсації",24093,Рівненська обласна організація,35103253,Рівненська область,заробітна плата (зарплата за грудень 2017р.),26002054724863,current,800.00,Панащук Микола Васильович,,фізична особа
АПУ,"Рівненська область, Рівне",83,2017-12-18,431,"Виплати працівникам (не зарплата): лікарняні, вагітності, відрядження, компенсації ","Заробітна плата, лікарняні, вагітності, відрядження, компенсації",24092,Рівненська обласна організація,35103253,Рівненська область,інші не заборонені законом витрати (відрядження),26002054724863,current,320.00,Нерода Вікторія Юріївна,,фізична особа
АПУ,"Рівненська область, Рівне",51,2017-12-18,432,Оплата ефірного часу на ТБ,Телереклама,23015,Рівненська обласна організація,35103253,Рівненська область,"розміщення реклами на телебаченні (за рекламнi послуги згiдно рах.N13/189я вiд 2017-08-21р.,N13/242я вiд 2017-11-23р.,N13/225я вiд 2017-10-20р. Без ПДВ)",26002054724863,current,12700.00,Ясковець Світлана Георгіївна,2671717225,фізична особа
АПУ,"Рівненська область, Рівне, вулиця Відінська, 8",62,2017-12-18,429,Сплата ЄСВ,Податкові платежі,22597,Рівненська обласна організація,35103253,Рівненська область,сплачені податки та збори(*;101;35103253;ЄСВ 22% на ФОП iз з/п за грудень 2017р .Перераховано повнiстю. Без ПДВ;;;),26002054724863,current,3060.88,ДПІ у м. Рівне ГУ ДФС в Рівненській області,39550744,юридична особа
АПУ,"Рівненська область, Рівне, вулиця Яворницького, 34",63,2017-12-18,428,Податок на доходи,Податкові платежі,22164,Рівненська обласна організація,35103253,Рівненська область,сплачені податки та збори(*;101;35103253;Податок з доходiв найманих працiвникiв iз з/п за грудень 2017р. Перераховано повнiстю.;;;),26002054724863,current,2504.35,ГУ ДКСУ у Рівненській області,38012714,юридична особа
АПУ,"Рівненська область, Рівне, вулиця Яворницького, 34",61,2017-12-18,427,Військовий збір,Податкові платежі,22163,Рівненська обласна організація,35103253,Рівненська область,"сплачені податки та збори(*;101;35103253;ВЗ 1,5% iз доходiв найманих працiвникiв з/п за грудень 2017р. Перераховано повнiстю. Без ПДВ;;;)",26002054724863,current,208.69,ГУ ДКСУ у Рівненській області,38012714,юридична особа
АПУ,"Хмельницька область, Хмельницький, вулиця Прибузька, 34, 14",49,2017-12-18,94,Публікування матеріалів у друкованих ЗМІ,Реклама в друкованих ЗМІ,21373,Хмельницька обласна організація,39968240,Хмельницька область,"розміщення реклами у друкованих засобах масової інформації ( За статтю в ""Сімейній газеті""зг рах 1351/м від 2017-12-01від 05,10,2017)",26003010007435,current,2800.00,"ПП ""Рекламне агенство ""Є!""",30579351,юридична особа
АПУ,"Київ, вулиця Михайла Грушевського, 1Д",70,2017-12-18,CIO0MLRLBY,Банківські послуги,Інші витрати,21064,Чернігівська обласна організація,35030222,Чернігівська область,"інші не заборонені законом витрати (Комiсiя за виконання платежiв в нацiональнiй валютi, згiдно з вiдкритою офертою банку N б/н вiд 2015-04-15 та тарифiв банку, без ПДВ.)",26006051410803,current,3.00,"ПАТ КБ ""Приватбанк""",14360570,юридична особа
АПУ,"Київ, вулиця Михайла Грушевського, 1Д",70,2017-12-18,CIO0MLQHOY,Банківські послуги,Інші витрати,21063,Чернігівська обласна організація,35030222,Чернігівська область,"інші не заборонені законом витрати (Комiсiя за виконання платежiв в нацiональнiй валютi, згiдно з вiдкритою офертою банку N б/н вiд 2015-04-15 та тарифiв банку, без ПДВ.)",26006051410803,current,3.00,"ПАТ КБ ""Приватбанк""",14360570,юридична особа
АПУ,"Київ, вулиця Михайла Грушевського, 1Д",70,2017-12-18,CIO0MITVEY,Банківські послуги,Інші витрати,21062,Чернігівська обласна організація,35030222,Чернігівська область,"інші не заборонені законом витрати (Комiсiя за виконання платежiв в нацiональнiй валютi, згiдно з вiдкритою офертою банку N б/н вiд 2015-04-15 та тарифiв банку, без ПДВ.)",26006051410803,current,3.00,"ПАТ КБ ""Приватбанк""",14360570,юридична особа
АПУ,"Київ, вулиця Михайла Грушевського, 1Д",70,2017-12-18,CIO0MI88DY,Банківські послуги,Інші витрати,20650,Рівненська обласна організація,35103253,Рівненська область,"матеріальні витрати та оплата послуг(Комiсiя за виконання платежiв в нацiональнiй валютi, згiдно з вiдкритою офертою банку N б/н вiд 2016-01-28 та тарифiв банку, без ПДВ.)",26002054724863,current,3.00,"ПАТ КБ ""Приватбанк""",14360570,юридична особа
АПУ,"Київ, вулиця Михайла Грушевського, 1Д",70,2017-12-18,CIO0MHI53Y,Банківські послуги,Інші витрати,20649,Рівненська обласна організація,35103253,Рівненська область,"матеріальні витрати та оплата послуг(Комiсiя за виконання платежiв в нацiональнiй валютi, згiдно з вiдкритою офертою банку N б/н вiд 2016-01-28 та тарифiв банку, без ПДВ.)",26002054724863,current,3.00,"ПАТ КБ ""Приватбанк""",14360570,юридична особа
АПУ,"Київ, вулиця Михайла Грушевського, 1Д",70,2017-12-18,CIO0MHI58Y,Банківські послуги,Інші витрати,20648,Рівненська обласна організація,35103253,Рівненська область,"матеріальні витрати та оплата послуг(Комiсiя за виконання платежiв в нацiональнiй валютi, згiдно з вiдкритою офертою банку N б/н вiд 2016-01-28 та тарифiв банку, без ПДВ.)",26002054724863,current,3.00,"ПАТ КБ ""Приватбанк""",14360570,юридична особа
АПУ,"Київ, вулиця Михайла Грушевського, 1Д",70,2017-12-18,CIO0MHI5EY,Банківські послуги,Інші витрати,20647,Рівненська обласна організація,35103253,Рівненська область,"матеріальні витрати та оплата послуг(Комiсiя за виконання платежiв в нацiональнiй валютi, згiдно з вiдкритою офертою банку N б/н вiд 2016-01-28 та тарифiв банку, без ПДВ.)",26002054724863,current,3.00,"ПАТ КБ ""Приватбанк""",14360570,юридична особа
АПУ,"Київ, вулиця Михайла Грушевського, 1Д",70,2017-12-18,CIO0MHI55A,Банківські послуги,Інші витрати,20646,Рівненська обласна організація,35103253,Рівненська область,матеріальні витрати та оплата послуг (Комiсiя за поповнення карток для виплат та нецiльовi платежi),26002054724863,current,0.80,"ПАТ КБ ""Приватбанк""",14360570,юридична особа
АПУ,"Чернігівська область, Чернігів",49,2017-12-18,79,Публікування матеріалів у друкованих ЗМІ,Реклама в друкованих ЗМІ,19070,Чернігівська обласна організація,35030222,Чернігівська область,"розміщення реклами у друкованих засобах масової інформації (Оплата за друк газети ""Чернiгiвщина аграрна"" 2017-12-18, згiдно рахунку N3368 вiд 18.12.17р., у т.ч. ПДВ - 20 % 903,30 грн.)",26006051410803,current,5419.80,"ПАТ ""Поліграф-видавничий комплекс Десна""",14242681,юридична особа
АПУ,"Чернігівська область, Чернігів",49,2017-12-18,78,Публікування матеріалів у друкованих ЗМІ,Реклама в друкованих ЗМІ,19069,Чернігівська обласна організація,35030222,Чернігівська область,"розміщення реклами у друкованих засобах масової інформації (Оплата за друк газети ""Чернiгiвщина аграрна"" 2017-12-13, згiдно рахунку N3324, 3325, 3326, 3355 вiд 13.12.17р., у т.ч. ПДВ - 20 % 5731,02 грн.)",26006051410803,current,34386.12,"ПАТ ""Поліграф-видавничий комплекс Десна""",14242681,юридична особа
АПУ,"Чернігівська область, Чернігів",49,2017-12-18,77,Публікування матеріалів у друкованих ЗМІ,Реклама в друкованих ЗМІ,19068,Чернігівська обласна організація,35030222,Чернігівська область,"розміщення реклами у друкованих засобах масової інформації (Оплата за друк газети ""Чернiгiвщина аграрна"" 2017-12-07, згiдно рахунку N3283 вiд 07.12.17р., у т.ч. ПДВ - 20 % 1253,52 грн.)",26006051410803,current,7521.12,"ПАТ ""Поліграф-видавничий комплекс Десна""",14242681,юридична особа
АПУ,"Київ, вулиця Госпітальна, 12Г",70,2017-12-18,рко,Банківські послуги,Інші витрати,18889,Камʼянець-Подільська районна організація,40300944,Хмельницька область,інші не заборонені законом витрати( послуги банку за листопад 2017р),26004300814268,current,119.00,"АТ ""Ощадбанк""",00032129,юридична особа
АПУ,"Київ, вулиця Михайла Грушевського, 1Д",70,2017-12-16,tz006bjv8k,Банківські послуги,Інші витрати,20897,Херсонська обласна організація,35027927,Херсонська область,оплата комісії за касове облс.,26002052207238,current,7.00,"ПАТ КБ ""Приватбанк""",14360570,юридична особа
АПУ,"Київ, вулиця Михайла Грушевського, 1Д",70,2017-12-16,TZ006BJU1E,Банківські послуги,Інші витрати,19832,Київська обласна організація,35032539,Київська область,інші не заборонені законом витрати (Оплата комiсiї за касове обслуговування по КИЇВСЬКА ОБЛАСНА ПО АГРАРНОЇ ПАРТIЇ.),26006052746076,current,1.61,"ПАТ КБ ""Приватбанк""",14360570,юридична особа
АПУ,Київ,84,2017-12-15,85984135,"Заробітна плата, премії","Заробітна плата, лікарняні, вагітності, відрядження, компенсації",24245,Хмельницька обласна організація,39968240,Хмельницька область,заробітна плата,26003010007435,current,780.85,Іващук Сергій Петрович,,фізична особа
АПУ,"Хмельницька область, Хмельницький",84,2017-12-15,85984135,"Заробітна плата, премії","Заробітна плата, лікарняні, вагітності, відрядження, компенсації",24244,Хмельницька обласна організація,39968240,Хмельницька область,заробітна плата,26003010007435,current,700.35,Ґедзь Світлана Іванівна,,фізична особа
АПУ,"Хмельницька область, Хмельницький",84,2017-12-15,85984135,"Заробітна плата, премії","Заробітна плата, лікарняні, вагітності, відрядження, компенсації",24243,Хмельницька обласна організація,39968240,Хмельницька область,заробітна плата,26003010007435,current,1400.70,Бабіна Неоніла Анатоліївна,,фізична особа
АПУ,,84,2017-12-15,36,"Заробітна плата, премії","Заробітна плата, лікарняні, вагітності, відрядження, компенсації",24205,Херсонська обласна організація,35027927,Херсонська область,заробітна плата 1 ч. грудень 2017р.,26002052207238,current,1265.00,Ремінний Володимир Сергійович,,фізична особа
АПУ,,84,2017-12-15,36,"Заробітна плата, премії","Заробітна плата, лікарняні, вагітності, відрядження, компенсації",24204,Херсонська обласна організація,35027927,Херсонська область,заробітна плата 1 ч. грудень 2017р.,26002052207238,current,1533.33,Скурту Ганна Дмитрівна,,фізична особа
АПУ,"Рівненська область, Рівне",74,2017-12-15,424,"Придбання канцтоварів, паперу, інших предметів і матеріалів, а також госп товари",Придбання канцтоварів та госп. товарів,24091,Рівненська обласна організація,35103253,Рівненська область,матеріальні витрати та оплата послуг (госпвитрати),26002054724863,current,1740.00,Стретович Світлана Юріївна,,фізична особа
АПУ,"Рівненська область, Рівне",83,2017-12-15,424,"Виплати працівникам (не зарплата): лікарняні, вагітності, відрядження, компенсації ","Заробітна плата, лікарняні, вагітності, відрядження, компенсації",24090,Рівненська обласна організація,35103253,Рівненська область,інші не заборонені законом витрати (відрядження),26002054724863,current,960.00,Стретович Світлана Юріївна,,фізична особа
АПУ,"Рівненська область, Рівне",83,2017-12-15,424,"Виплати працівникам (не зарплата): лікарняні, вагітності, відрядження, компенсації ","Заробітна плата, лікарняні, вагітності, відрядження, компенсації",24089,Рівненська обласна організація,35103253,Рівненська область,інші не заборонені законом витрати (відрядження),26002054724863,current,960.00,Подорожній Юрій Анатолійович,,фізична особа
АПУ,"Рівненська область, Рівне",83,2017-12-15,424,"Виплати працівникам (не зарплата): лікарняні, вагітності, відрядження, компенсації ","Заробітна плата, лікарняні, вагітності, відрядження, компенсації",24088,Рівненська обласна організація,35103253,Рівненська область,інші не заборонені законом витрати (відрядження),26002054724863,current,320.00,Петрощук Олександр Васильович,,фізична особа
АПУ,"Рівненська область, Рівне",83,2017-12-15,424,"Виплати працівникам (не зарплата): лікарняні, вагітності, відрядження, компенсації ","Заробітна плата, лікарняні, вагітності, відрядження, компенсації",24087,Рівненська обласна організація,35103253,Рівненська область,інші не заборонені законом витрати (відрядження),26002054724863,current,320.00,Остаповець Максим Олександрович,,фізична особа
АПУ,"Рівненська область, Рівне",83,2017-12-15,424,"Виплати працівникам (не зарплата): лікарняні, вагітності, відрядження, компенсації ","Заробітна плата, лікарняні, вагітності, відрядження, компенсації",24086,Рівненська обласна організація,35103253,Рівненська область,інші не заборонені законом витрати (відрядження),26002054724863,current,320.00,Нерода Вікторія Юріївна,,фізична особа
АПУ,"Рівненська область, Рівне",83,2017-12-15,424,"Виплати працівникам (не зарплата): лікарняні, вагітності, відрядження, компенсації ","Заробітна плата, лікарняні, вагітності, відрядження, компенсації",24085,Рівненська обласна організація,35103253,Рівненська область,інші не заборонені законом витрати (відрядження),26002054724863,current,320.00,Дзенік Світлана Анатоліївна,,фізична особа
АПУ,Київ,84,2017-12-15,258,"Заробітна плата, премії","Заробітна плата, лікарняні, вагітності, відрядження, компенсації",23738,Київська обласна організація,35032539,Київська область,Зарплата за листопад 2017р.,26006052746076,current,644.00,Корбан Олег Борисович,,фізична особа
АПУ,"Херсонська область, Великоолександрівський район, Велика Олександрівка, провулок Сергія Лазо",58,2017-12-15,188,"Виготовлення друкованих матеріалів (плакатів, листівок, буклетів та інших агітаційних матеріалів)",Друкована агітація,23162,Криворізька районна організація,40267750,Дніпропетровська область,матеріальні витрати та оплата послуг (друк книги),26005300544524,current,32210.00,Маринченко Сергій Володимирович,3086200550,фізична особа
АПУ,"Херсонська область, Великоолександрівський район, Велика Олександрівка, провулок Сергія Лазо",58,2017-12-15,1,"Виготовлення друкованих матеріалів (плакатів, листівок, буклетів та інших агітаційних матеріалів)",Друкована агітація,23154,Софіївська районна організація,34898221,Дніпропетровська область,придбання полiграфiчної продукцiї згiдно рахунку N36 вiд 12 жовтня 2017 року,801,current,21030.00,Маринченко Сергій Володимирович,3086200550,фізична особа
АПУ,"Сумська область, Лебедин",77,2017-12-15,309,"Оренда, ремонт та обслуговування автомобілів","Оренда, ремонт та обслуговування автомобілів",22984,Сумська обласна організація,34932761,Сумська область,оренда транспортних засобів /перевезення пасажирів /,26001055008647,current,14000.00,Буднік І М,2539703715,фізична особа
АПУ,"Харківська область, Харків, вулиця Шевченка, 160",43,2017-12-15,105,Інші витрати,Інші витрати,22941,Харківська обласна організація,34951845,Харківська область,матеріальні витрати та оплата послуг(передпплата за памятник пвоїнам АТО та воїнам-афганцям зг.рах.від 15.12.17),26006052229335,current,35000.00,Губанов С А,2293712272,фізична особа
АПУ,"Харківська область, Харків, провулок Академіка Підгорного, 3",62,2017-12-15,103,Сплата ЄСВ,Податкові платежі,22701,Харківська обласна організація,34951845,Харківська область,сплачені податки та збори (оплата ЄСВ на з/плати за І пол.грудня 2017р.),26006052229335,current,1948.10,Харківська ОДПІ ГУ ДФС у Харківській області,39859695,юридична особа
АПУ,"Хмельницька область, Хмельницький, вулиця Героїв Майдану, 12",62,2017-12-15,93,Сплата ЄСВ,Податкові платежі,22618,Хмельницька обласна організація,39968240,Хмельницька область,сплачені податки та збори (Сплата 22% ЄСВ з ЗП за першу пол грудня 2017р),26003010007435,current,787.60,ДПІ у м. Хмельницькому,39564228,юридична особа
АПУ,"Херсонська область, Херсон, вулиця Іллюши Кулика, 143А",62,2017-12-15,34,Сплата ЄСВ,Податкові платежі,22554,Херсонська обласна організація,35027927,Херсонська область,ЄСВ з з/пл 1 ч грудень 2017р.,26002052207238,current,764.76,Херсонська ОДПІ ГУ ДФС у Херсонській області,39473382,юридична особа
АПУ,"Київська обл., Києво-Святошинський район, Вишневе, вулиця Ломоносова, 34",62,2017-12-15,255,Сплата ЄСВ,Податкові платежі,22498,Київська обласна організація,35032539,Київська область,сплачені податки та збори (*;101;35032539;ЄСВ з зарплати за 11.2017р. Без ПДВ. Код платежу 71010000;;;),26006052746076,current,176.00,Києво-Святошинська ОДПІ ГУ ДФС у Київській області,39471029,юридична особа
АПУ,"Хмельницька область, Хмельницький, вулиця Проскурівська, 56",63,2017-12-15,92,Податок на доходи,Податкові платежі,22355,Хмельницька обласна організація,39968240,Хмельницька область,сплачені податки та збори ( Сплата ПДФО 18% з ЗП за першу пол грудня 2017р),26003010007435,current,644.40,УДКСУ у м. Хмельницькому,38045529,юридична особа
АПУ,"Хмельницька область, Хмельницький, вулиця Проскурівська, 56",61,2017-12-15,91,Військовий збір,Податкові платежі,22354,Хмельницька обласна організація,39968240,Хмельницька область,"сплачені податки та збори (Сплата 1,5% військового збору з ЗП за першу пол грудня 2017р)",26003010007435,current,53.70,УДКСУ у м. Хмельницькому,38045529,юридична особа
АПУ,"Київська обл., Києво-Святошинський район, Вишневе, вулиця Лесі Українки, 88",63,2017-12-15,257,Податок на доходи,Податкові платежі,22101,Київська обласна організація,35032539,Київська область,сплачені податки та збори (*;101;35032539;ПДФО з зарплати за 11.2017. Без ПДВ.Код платежу 11010100;;;),26006052746076,current,144.00,УДКСУ у Києво-Святошинському районі Київської області,38010937,юридична особа
АПУ,"Київська обл., Києво-Святошинський район, Вишневе, вулиця Лесі Українки, 88",61,2017-12-15,256,Військовий збір,Податкові платежі,22100,Київська обласна організація,35032539,Київська область,сплачені податки та збори (*;101;35032539;вiйськ.збiр з з/п за 11.2017. Без ПДВ Код 11011000;;;),26006052746076,current,12.00,УДКСУ у Києво-Святошинському районі Київської області,38010937,юридична особа
АПУ,"Херсонська область, Херсон, провулок Козацький, 10",61,2017-12-15,35,Військовий збір,Податкові платежі,22034,Херсонська обласна організація,35027927,Херсонська область,Військовий Збір з заробітної плати за1ч. Грудень 2017р.,26002052207238,current,52.14,УДКСУ у м. Херсон,37959779,юридична особа
АПУ,"Херсонська область, Херсон, провулок Козацький, 10",63,2017-12-15,33,Податок на доходи,Податкові платежі,22033,Херсонська обласна організація,35027927,Херсонська область,податок з доходів фіз.осіб з заробітної плати 1ч. грудень 2017р.,26002052207238,current,625.72,УДКСУ у м. Херсон,37959779,юридична особа
АПУ,"Харківська область, Чугуїв, вулиця Старонікольська, 44",61,2017-12-15,104,Військовий збір,Податкові платежі,21957,Харківська обласна організація,34951845,Харківська область,сплачені податки та збори (оплата військового збору із з/плати за за І пол.грудня 2017р.),26006052229335,current,132.83,Чугуївське УДКСУ в Харківській області,37792204,юридична особа
АПУ,"Харківська область, Чугуїв, вулиця Старонікольська, 44",63,2017-12-15,102,Податок на доходи,Податкові платежі,21956,Харківська обласна організація,34951845,Харківська область,сплачені податки та збори (оплата ПДФО із з/плати за І пол.грудня 2017р.),26006052229335,current,1593.90,Чугуївське УДКСУ в Харківській області,37792204,юридична особа
АПУ,"Чернігівська область, Чернігів",53,2017-12-15,75,Витрати на розміщення зовнішньої реклами,Зовнішня реклама,21571,Чернігівська обласна організація,35030222,Чернігівська область,"розміщення зовнішньої політичної реклами (Плата за оренду розмiщення трьох спецiальних конструкцiй за листопад 2017 р., згiдно рахунку NУА-0001584 вiд 30.11.17 р.,в т.ч. ПДВ 57,89 грн.)",26006051410803,current,347.35,"КП ""Діловий центр""",33469496,юридична особа
АПУ,"Чернігівська область, Чернігів",79,2017-12-15,74,"Оренда будинків і приміщень та експлуатаційні витрати (прибирання, страхування орендованих будинків, охорона, сигналізація, ремонт, вивіз сміття, тощо)",Оренда нерухомості,21570,Чернігівська обласна організація,35030222,Чернігівська область,"матеріальні витрати та оплата послуг (Вiдшкодування витрат на утримання примiщень, ел.енергiї, опалення за листопад 2017 р., зг рах-ф.NСФ-2123, 2124 вiд 30.11.17 р., в т.ч. ПДВ 901,28 грн.)",26006051410803,current,5407.65,"КП ""Діловий центр""",33469496,юридична особа
АПУ,"Чернігівська область, Чернігів",79,2017-12-15,73,"Оренда будинків і приміщень та експлуатаційні витрати (прибирання, страхування орендованих будинків, охорона, сигналізація, ремонт, вивіз сміття, тощо)",Оренда нерухомості,21569,Чернігівська обласна організація,35030222,Чернігівська область,"оренда приміщення (Плата за оренду примiщення пр-т Миру,49а (N304-306) за листопад 2017 р., згiдно рахункiв NУА-0001659, 1660 вiд 30.11.17 р., в т.ч. ПДВ 1324,42 грн.)",26006051410803,current,7946.53,"КП ""Діловий центр""",33469496,юридична особа
АПУ,"Одеська область, Одеса, вулиця Краснова, 6/1",70,2017-12-15,рко,Банківські послуги,Інші витрати,21169,Хмельницька обласна організація,39968240,Хмельницька область,інші незаборонені законом витрати (Послуги банку),26003010007435,current,28.82,"АБ ""Південний""",20953647,юридична особа
АПУ,"Київ, вулиця Михайла Грушевського, 1Д",70,2017-12-15,CFO0MCQ5BY,Банківські послуги,Інші витрати,21061,Чернігівська обласна організація,35030222,Чернігівська область,"інші не заборонені законом витрати (Комiсiя за виконання платежiв в нацiональнiй валютi, згiдно з вiдкритою офертою банку N б/н вiд 2015-04-15 та тарифiв банку, без ПДВ.)",26006051410803,current,3.00,"ПАТ КБ ""Приватбанк""",14360570,юридична особа
АПУ,"Київ, вулиця Михайла Грушевського, 1Д",70,2017-12-15,CDO0MBAPBY,Банківські послуги,Інші витрати,20896,Херсонська обласна організація,35027927,Херсонська область,комісія за виконання платежів,26002052207238,current,3.00,"ПАТ КБ ""Приватбанк""",14360570,юридична особа
АПУ,"Київ, вулиця Михайла Грушевського, 1Д",70,2017-12-15,CDO0MBAMIY,Банківські послуги,Інші витрати,20895,Херсонська обласна організація,35027927,Херсонська область,комісія за виконання платежів,26002052207238,current,3.00,"ПАТ КБ ""Приватбанк""",14360570,юридична особа
АПУ,"Київ, вулиця Михайла Грушевського, 1Д",70,2017-12-15,CDO0MBAJMY,Банківські послуги,Інші витрати,20894,Херсонська обласна організація,35027927,Херсонська область,комісія за виконання платежів,26002052207238,current,3.00,"ПАТ КБ ""Приватбанк""",14360570,юридична особа
АПУ,"Київ, вулиця Михайла Грушевського, 1Д",70,2017-12-15,CFO0MD1YRY,Банківські послуги,Інші витрати,20853,Харківська обласна організація,34951845,Харківська область,матеріальні витрати та оплата послуг(Комісія за виконання платежів),26006052229335,current,3.00,"ПАТ КБ ""Приватбанк""",14360570,юридична особа
АПУ,"Київ, вулиця Михайла Грушевського, 1Д",70,2017-12-15,CFO0MD1Z0Y,Банківські послуги,Інші витрати,20852,Харківська обласна організація,34951845,Харківська область,матеріальні витрати та оплата послуг(Комісія за виконання платежів),26006052229335,current,3.00,"ПАТ КБ ""Приватбанк""",14360570,юридична особа
АПУ,"Київ, вулиця Михайла Грушевського, 1Д",70,2017-12-15,CFO0MD1Z5Y,Банківські послуги,Інші витрати,20851,Харківська обласна організація,34951845,Харківська область,матеріальні витрати та оплата послуг(Комісія за виконання платежів),26006052229335,current,3.00,"ПАТ КБ ""Приватбанк""",14360570,юридична особа
АПУ,"Київ, вулиця Михайла Грушевського, 1Д",70,2017-12-15,CFO0MD1ZBY,Банківські послуги,Інші витрати,20850,Харківська обласна організація,34951845,Харківська область,матеріальні витрати та оплата послуг(Комісія за виконання платежів),26006052229335,current,3.00,"ПАТ КБ ""Приватбанк""",14360570,юридична особа
АПУ,"Київ, вулиця Михайла Грушевського, 1Д",70,2017-12-15,101,Банківські послуги,Інші витрати,20849,Харківська обласна організація,34951845,Харківська область,матеріальні витрати та оплата послуг(Комісія за РКО від з/плати),26006052229335,current,22.14,"ПАТ КБ ""Приватбанк""",14360570,юридична особа
АПУ,"Київ, вулиця Михайла Грушевського, 1Д",70,2017-12-15,CFO0MCU56Y,Банківські послуги,Інші витрати,20782,Сумська обласна організація,34932761,Сумська область,інші незаборонені законом витрати / комісія за виконання платежів,26001055008647,current,3.00,"ПАТ КБ ""Приватбанк""",14360570,юридична особа
АПУ,"Київ, вулиця Михайла Грушевського, 1Д",70,2017-12-15,CFO0MAZ43A,Банківські послуги,Інші витрати,20645,Рівненська обласна організація,35103253,Рівненська область,матеріальні витрати та оплата послуг (Комiсiя за поповнення карток для виплат та нецiльовi платежi),26002054724863,current,12.35,"ПАТ КБ ""Приватбанк""",14360570,юридична особа
АПУ,"Київ, вулиця Михайла Грушевського, 1Д",70,2017-12-15,TZ005BJ4DA,Банківські послуги,Інші витрати,20377,Полтавська обласна організація,34874174,Полтавська область,інші не заборонені законом витрати (оплата комісії за касове обслуговування по Полтавська обл. ПО АПУ. без ПДВ.),26009054622601,current,8.89,"ПАТ КБ ""Приватбанк""",14360570,юридична особа
АПУ,"Київ, вулиця Михайла Грушевського, 1Д",70,2017-12-15,CFO0MGP69Y,Банківські послуги,Інші витрати,19831,Київська обласна організація,35032539,Київська область,"Інші не заборонені законом витрати (Комiсiя за виконання платежiв в нацiональнiй валютi, згiдно з вiдкритою офертою банку N б/н вiд 2015-09-02 та тарифiв банку, без ПДВ.)",26006052746076,current,3.00,"ПАТ КБ ""Приватбанк""",14360570,юридична особа
АПУ,"Київ, вулиця Михайла Грушевського, 1Д",70,2017-12-15,CFO0MGP68Y,Банківські послуги,Інші витрати,19830,Київська обласна організація,35032539,Київська область,"Інші не заборонені законом витрати (Комiсiя за виконання платежiв в нацiональнiй валютi, згiдно з вiдкритою офертою банку N б/н вiд 2015-09-02 та тарифiв банку, без ПДВ.)",26006052746076,current,3.00,"ПАТ КБ ""Приватбанк""",14360570,юридична особа
АПУ,"Київ, вулиця Михайла Грушевського, 1Д",70,2017-12-15,CFO0MGP6CY,Банківські послуги,Інші витрати,19829,Київська обласна організація,35032539,Київська область,"Інші не заборонені законом витрати (Комiсiя за виконання платежiв в нацiональнiй валютi, згiдно з вiдкритою офертою банку N б/н вiд 2015-09-02 та тарифiв банку, без ПДВ.)",26006052746076,current,3.00,"ПАТ КБ ""Приватбанк""",14360570,юридична особа
АПУ,"Київ, вулиця Михайла Грушевського, 1Д",70,2017-12-15,CFO0MEOCDY,Банківські послуги,Інші витрати,19828,Київська обласна організація,35032539,Київська область,"Інші не заборонені законом витрати (Комiсiя за виконання платежiв в нацiональнiй валютi, згiдно з вiдкритою офертою банку N б/н вiд 2015-09-02 та тарифiв банку, без ПДВ.)",26006052746076,current,3.00,"ПАТ КБ ""Приватбанк""",14360570,юридична особа
АПУ,"Київська обл., Тетіївський район, Тетіїв",66,2017-12-15,254,Повернення внесків приватних внесків (донорам),Повернення приватних внесків (донорам),18846,Київська обласна організація,35032539,Київська область,інші не заборонені законом витрати (помилковий платіж - За оренду актового залу згiдно рахунку N64 вiд 2017-12-15 року Без ПДВ),26006052746076,current,150.00,Виконавчий комітет Тетїївської мїської ради,04054889,юридична особа
АПУ,"Київ, бульвар Тараса Шевченка, 18",76,2017-12-15,76,Послуги зв’язку,Послуги зв’язку,18633,Чернігівська обласна організація,35030222,Чернігівська область,"послуги зв’язку (Абонплата за телекомунiкацiйнi послуги за листопад 2017 р., зг рахунок-акт N740000000185812017-11-00 вiд 2017-11-30р. У т.ч. ПДВ - 20 % 34.17 грн)",26006051410803,current,205.00,"Чернігівська філія ПАТ ""Укртелеком""",01189425,юридична особа
АПУ,,53,2017-12-14,15,Витрати на розміщення зовнішньої реклами,Зовнішня реклама,24263,Камʼянець-Подільська районна організація,40300944,Хмельницька область,матеріальні витрати та оплата послуг (за постери для бігблрдів та пакети презентацій зг рах СФ-192 від 2017-12-12),26004300814268,current,2013.00,Буйницький Олексій Анатолійович,,фізична особа
АПУ,"Рівненська область, Рівне",83,2017-12-14,425,"Виплати працівникам (не зарплата): лікарняні, вагітності, відрядження, компенсації ","Заробітна плата, лікарняні, вагітності, відрядження, компенсації",24084,Рівненська обласна організація,35103253,Рівненська область,інші не заборонені законом витрати (відрядження),26002054724863,current,733.81,Петрощук Олександр Васильович,,фізична особа
АПУ,"Рівненська область, Рівне",74,2017-12-14,425,"Придбання канцтоварів, паперу, інших предметів і матеріалів, а також госп товари",Придбання канцтоварів та госп. товарів,24083,Рівненська обласна організація,35103253,Рівненська область,матеріальні витрати та оплата послуг (госпвитрати),26002054724863,current,37.00,Остаповець Максим Олександрович,,фізична особа
АПУ,"Полтавська область, Полтава",84,2017-12-14,204,"Заробітна плата, премії","Заробітна плата, лікарняні, вагітності, відрядження, компенсації",23875,Полтавська обласна організація,34874174,Полтавська область,"Заробітна плата (Зарплата за 12.2017р., податки сплачені повністю)",26009054622601,current,1940.05,Хрипливий Валерій Васильович,,фізична особа
АПУ,"Полтавська область, Полтава",84,2017-12-14,204,"Заробітна плата, премії","Заробітна плата, лікарняні, вагітності, відрядження, компенсації",23874,Полтавська обласна організація,34874174,Полтавська область,"Заробітна плата (Зарплата за 12.2017р., податки сплачені повністю)",26009054622601,current,1614.03,Луценко Олена Іванівна,,фізична особа
АПУ,"Рівненська область, Рівне",69,2017-12-14,426,Організація заходів та інші організаційні послуги,Організація заходів та інші організаційні послуги,23103,Рівненська обласна організація,35103253,Рівненська область,публічні заходи(за транспортнi послуги згiдно рах.N29 вiд 2017-12-12р. Без ПДВ),26002054724863,current,10000.00,Демчук О П,2970506492,фізична особа
АПУ,м. Кропивницький,80,2017-12-14,120,"Транспортні послуги (квитки, пасажирські перевезення і т.д.)","Транспортні послуги (квитки, пасажирські перевезення і т.д.)",22898,Кіровоградська обласна організація,36978104,Кіровоградська область,Оплата послуг ( транспортні),26007052918872,current,26000.00,Компанієць В В,2248700196,фізична особа
АПУ,"Полтавська область, Полтава, вулиця Європейська, 155",62,2017-12-14,198,Сплата ЄСВ,Податкові платежі,22693,Полтавська обласна організація,34874174,Полтавська область,сплачені податки та збори (*;101;;34874174;ЄСВ нарах/утриман роботодавцем з зарплати за 12.2017р.),26009054622601,current,711.00,ДПІ у м. Полтава ГУ ДФС у Полтавській області,39680655,юридична особа
АПУ,"Кіровоградська область, Кропивницький, вул. Глінки, 2",62,2017-12-14,117,Сплата ЄСВ,Податкові платежі,22560,Кіровоградська обласна організація,36978104,Кіровоградська область,ЄСВ за листопад 2017 року,26007052918872,current,1056.00,Кропивницька ОДПІ ГУ ДФС у Кіровоградській області,39484073,юридична особа
АПУ,"Полтавська область, Полтава, вулиця Шевченка, 1",61,2017-12-14,199,Військовий збір,Податкові платежі,22301,Полтавська обласна організація,34874174,Полтавська область,сплачені податки та збори (*;101;;34874174;військовий збір з зарплати за 12.2017р.),26009054622601,current,66.23,УДКСУ у м. Полтаві,38019510,юридична особа
АПУ,"Полтавська область, Полтава, вулиця Шевченка, 1",63,2017-12-14,200,Податок на доходи,Податкові платежі,22300,Полтавська обласна організація,34874174,Полтавська область,сплачені податки та збори (*;101;;34874174;ПДФО з зарплати за 12.2017р.),26009054622601,current,794.70,УДКСУ у м. Полтаві,38019510,юридична особа
АПУ,"Хмельницька область, Кам'янець-Подільський, вулиця Драгоманова, 9, 204",49,2017-12-14,14,Публікування матеріалів у друкованих ЗМІ,Реклама в друкованих ЗМІ,22039,Камʼянець-Подільська районна організація,40300944,Хмельницька область,розміщення реклами у друкованих засобах масової інформації(за розміщ інф матеріалу зг рах 13 від 07.12.17),26004300814268,current,150.00,"ТОВ ""Редакція газети ""Камʼянецький часопис ключ""",37971382,юридична особа
АПУ,"Хмельницька область, Хмельницький, вулиця Свободи, 70",79,2017-12-14,90,"Оренда будинків і приміщень та експлуатаційні витрати (прибирання, страхування орендованих будинків, охорона, сигналізація, ремонт, вивіз сміття, тощо)",Оренда нерухомості,21601,Хмельницька обласна організація,39968240,Хмельницька область,"оренда приміщення (будинку,офіса) (Орендна плата за листопад 2017 зг рах №389 від 2017-12-11р)",26003010007435,current,8693.29,"Департамент агропромислового розвитку, екології та природних ресурсів Хмельницької обласної державної адміністрації",33709631,юридична особа
АПУ,"Хмельницька область, Хмельницький, вулиця Свободи, 70",79,2017-12-14,89,"Оренда будинків і приміщень та експлуатаційні витрати (прибирання, страхування орендованих будинків, охорона, сигналізація, ремонт, вивіз сміття, тощо)",Оренда нерухомості,21600,Хмельницька обласна організація,39968240,Хмельницька область,"оренда приміщення (будинку,офіса) (За комунальні послуги в листопаді зг рах№ 376 від 2017-12-11р Без ПДВ)",26003010007435,current,2208.85,"Департамент агропромислового розвитку, екології та природних ресурсів Хмельницької обласної державної адміністрації",33709631,юридична особа
АПУ,"Полтавська область, Полтава, вулиця Європейська, 57",80,2017-12-14,197,"Транспортні послуги (квитки, пасажирські перевезення і т.д.)","Транспортні послуги (квитки, пасажирські перевезення і т.д.)",21418,Полтавська обласна організація,34874174,Полтавська область,"матеріальні витрати та оплата послуг (організац перевезен відправлень по рах№/0-0036363 від 2017-12-10, у т.ч. ПДВ)",26009054622601,current,71.00,"ТОВ ""Нова пошта""",31316718,юридична особа
АПУ,"Київ, вулиця Михайла Грушевського, 1Д",70,2017-12-14,TZ004BIPVX,Банківські послуги,Інші витрати,20893,Херсонська обласна організація,35027927,Херсонська область,оплата комісії за касове облс.,26002052207238,current,2.25,"ПАТ КБ ""Приватбанк""",14360570,юридична особа
АПУ,"Київ, вулиця Михайла Грушевського, 1Д",70,2017-12-14,CEO0M6LMAA,Банківські послуги,Інші витрати,20644,Рівненська обласна організація,35103253,Рівненська область,матеріальні витрати та оплата послуг (Комiсiя за поповнення карток для виплат та нецiльовi платежi),26002054724863,current,1.93,"ПАТ КБ ""Приватбанк""",14360570,юридична особа
АПУ,"Київ, вулиця Михайла Грушевського, 1Д",70,2017-12-14,CEO0M6LM4Y,Банківські послуги,Інші витрати,20643,Рівненська обласна організація,35103253,Рівненська область,"матеріальні витрати та оплата послуг(Комiсiя за виконання платежiв в нацiональнiй валютi, згiдно з вiдкритою офертою банку N б/н вiд 2016-01-28 та тарифiв банку, без ПДВ.)",26002054724863,current,3.00,"ПАТ КБ ""Приватбанк""",14360570,юридична особа
АПУ,"Київ, вулиця Михайла Грушевського, 1Д",70,2017-12-14,CEO0M7VE4Y,Банківські послуги,Інші витрати,20376,Полтавська обласна організація,34874174,Полтавська область,інші не заборонені законом витрати (Комісія за виконання платежів в національній валюті згідно з відкритою офертою банку б/н від 2015-09-07 та тарифів банку.Без ПДВ.),26009054622601,current,3.00,"ПАТ КБ ""Приватбанк""",14360570,юридична особа
АПУ,"Київ, вулиця Михайла Грушевського, 1Д",70,2017-12-14,CEO0M7VDWY,Банківські послуги,Інші витрати,20375,Полтавська обласна організація,34874174,Полтавська область,інші не заборонені законом витрати (Комісія за виконання платежів в національній валюті згідно з відкритою офертою банку б/н від 2015-09-07 та тарифів банку.Без ПДВ.),26009054622601,current,3.00,"ПАТ КБ ""Приватбанк""",14360570,юридична особа
АПУ,"Київ, вулиця Михайла Грушевського, 1Д",70,2017-12-14,CEO0M7VDUY,Банківські послуги,Інші витрати,20374,Полтавська обласна організація,34874174,Полтавська область,інші не заборонені законом витрати (Комісія за виконання платежів в національній валюті згідно з відкритою офертою банку б/н від 2015-09-07 та тарифів банку.Без ПДВ.),26009054622601,current,3.00,"ПАТ КБ ""Приватбанк""",14360570,юридична особа
АПУ,"Київ, вулиця Михайла Грушевського, 1Д",70,2017-12-14,CEO0M7VEXY,Банківські послуги,Інші витрати,20373,Полтавська обласна організація,34874174,Полтавська область,інші не заборонені законом витрати (Комісія за виконання платежів в національній валюті згідно з відкритою офертою банку б/н від 2015-09-07 та тарифів банку.Без ПДВ.),26009054622601,current,3.00,"ПАТ КБ ""Приватбанк""",14360570,юридична особа
АПУ,"Київ, вулиця Михайла Грушевського, 1Д",70,2017-12-14,CEO0M7VENY,Банківські послуги,Інші витрати,20372,Полтавська обласна організація,34874174,Полтавська область,інші не заборонені законом витрати (Комісія за виконання платежів в національній валюті згідно з відкритою офертою банку б/н від 2015-09-07 та тарифів банку.Без ПДВ.),26009054622601,current,3.00,"ПАТ КБ ""Приватбанк""",14360570,юридична особа
АПУ,"Київ, вулиця Михайла Грушевського, 1Д",70,2017-12-14,CEO0M7VERY,Банківські послуги,Інші витрати,20371,Полтавська обласна організація,34874174,Полтавська область,інші не заборонені законом витрати (Комісія за виконання платежів в національній валюті згідно з відкритою офертою банку б/н від 2015-09-07 та тарифів банку.Без ПДВ.),26009054622601,current,3.00,"ПАТ КБ ""Приватбанк""",14360570,юридична особа
АПУ,"Київ, вулиця Михайла Грушевського, 1Д",70,2017-12-14,CEO0M7NUOY,Банківські послуги,Інші витрати,19904,Кіровоградська обласна організація,36978104,Кіровоградська область,Оплата послуг (комісія банку ),26007052918872,current,3.00,"ПАТ КБ ""Приватбанк""",14360570,юридична особа
АПУ,"Київ, вулиця Михайла Грушевського, 1Д",70,2017-12-14,CEO0M71YSY,Банківські послуги,Інші витрати,19903,Кіровоградська обласна організація,36978104,Кіровоградська область,Оплата послуг (комісія банку ),26007052918872,current,3.00,"ПАТ КБ ""Приватбанк""",14360570,юридична особа
АПУ,"Київ, вулиця Михайла Грушевського, 1Д",70,2017-12-14,CEO0M7D8IY,Банківські послуги,Інші витрати,19902,Кіровоградська обласна організація,36978104,Кіровоградська область,Оплата послуг (комісія банку ),26007052918872,current,3.00,"ПАТ КБ ""Приватбанк""",14360570,юридична особа
АПУ,Київ,76,2017-12-14,119,Послуги зв’язку,Послуги зв’язку,19152,Кіровоградська обласна організація,36978104,Кіровоградська область,Оплата послуг ( мобільного зв'зку),26007052918872,current,150.00,"ПрАТ ""ВФ Україна""",14333937,юридична особа
АПУ,м. Кропивницький,76,2017-12-14,118,Послуги зв’язку,Послуги зв’язку,18827,Кіровоградська обласна організація,36978104,Кіровоградська область,оплата послуг (абонплата за телефон),26007052918872,current,81.00,Федерація професійних спілок Кіровоградської області,02606119,юридична особа
АПУ,"Хмельницька область, Кам'янець-Подільський, площа Польський ринок, 18",49,2017-12-14,13,Публікування матеріалів у друкованих ЗМІ,Реклама в друкованих ЗМІ,18786,Камʼянець-Подільська районна організація,40300944,Хмельницька область,розміщення реклами у друкованих засобах масової інформації(за розміщ привітання зг рах 157 ),26004300814268,current,350.00,"ПП ""Медіа-центр ""Край Камʼянецький""",02475629,юридична особа
АПУ,"Полтавська область, Полтава, вулиця Міщенка, 2",79,2017-12-14,203,"Оренда будинків і приміщень та експлуатаційні витрати (прибирання, страхування орендованих будинків, охорона, сигналізація, ремонт, вивіз сміття, тощо)",Оренда нерухомості,18582,Полтавська обласна організація,34874174,Полтавська область,"оренда приміщення (будинку, офіса, квартири) (відшкодуван комунал посл по рах№476 від 01.12.17 без ПДВ)",26009054622601,current,830.27,Департамент агропромислового розвитку Полтавської ОДА,00732619,юридична особа
АПУ,"Полтавська область, Полтава, вулиця Міщенка, 2",79,2017-12-14,202,"Оренда будинків і приміщень та експлуатаційні витрати (прибирання, страхування орендованих будинків, охорона, сигналізація, ремонт, вивіз сміття, тощо)",Оренда нерухомості,18581,Полтавська обласна організація,34874174,Полтавська область,"оренда приміщення (будинку, офіса, квартири) (відшкодуван комунал посл по рах№461 від 01.12.17 без ПДВ)",26009054622601,current,1230.93,Департамент агропромислового розвитку Полтавської ОДА,00732619,юридична особа
АПУ,,83,2017-12-13,31,"Виплати працівникам (не зарплата): лікарняні, вагітності, відрядження, компенсації ","Заробітна плата, лікарняні, вагітності, відрядження, компенсації",24203,Херсонська обласна організація,35027927,Херсонська область,компенсація за невикористанну відпустку при звільненні 2017р.,26002052207238,current,901.60,Смолієнко Оксана Володимирівна,,фізична особа
АПУ,"Херсонська область, Херсон, вулиця Кольцова, 43",72,2017-12-13,25,"Придбання, ремонт офісної техніки та програмного забезпечення (Бухгалтерські програми, Ліга.закон, домени)",Придбання офісної техніки та програмного забезпечення,23087,Херсонська обласна організація,35027927,Херсонська область,"Інформ. Послуги ЕЦЦ ""Стандартний""",26002052207238,current,1622.00,Чорноус Сергій Олександрович,2925212898,фізична особа
АПУ,"Дніпропетровська область, Кривий Ріг, проспект Металургів",74,2017-12-13,186,"Придбання канцтоварів, паперу, інших предметів і матеріалів, а також госп товари",Придбання канцтоварів та госп. товарів,22970,Криворізька районна організація,40267750,Дніпропетровська область,матеріальні витрати та оплата послуг (оплата з футбольні кубки та меділі),26005300544524,current,1863.00,Кучеренко Л В,2488315543,фізична особа
АПУ,"Херсонська область, Херсон, вулиця Іллюши Кулика, 143А",62,2017-12-13,20,Сплата ЄСВ,Податкові платежі,22553,Херсонська обласна організація,35027927,Херсонська область,ЄСВ з компенсації за невикористану відпустку при звільнені2017р.,26002052207238,current,246.40,Херсонська ОДПІ ГУ ДФС у Херсонській області,39473382,юридична особа
АПУ,"Київ, вулиця Смілянська",60,2017-12-13,5301,Інші податки,Податкові платежі,22545,Центральний офіс,34763401,Україна,сплачені податки та збори,26009052641121,current,1900.00,ДПІ у Соломʼянському р-ш ГУ ДФС у м Кисні,39471390,юридична особа
АПУ,"Київ, вулиця Гарматна, 31",60,2017-12-13,5298,Інші податки,Податкові платежі,22418,Центральний офіс,34763401,Україна,сплачені податки та збори,26009052641121,current,3676.42,УКДСУ у Соломʼянському районі м. Києва,38050812,юридична особа
АПУ,"Херсонська область, Херсон, провулок Козацький, 10",61,2017-12-13,32,Військовий збір,Податкові платежі,22032,Херсонська обласна організація,35027927,Херсонська область,Військовий Збір з компенсації за невикористану відпустку при звільнені2017р.,26002052207238,current,16.80,УДКСУ у м. Херсон,37959779,юридична особа
АПУ,"Херсонська область, Херсон, провулок Козацький, 10",63,2017-12-13,30,Податок на доходи,Податкові платежі,22031,Херсонська обласна організація,35027927,Херсонська область,податок з доходів фіз.осіб з компенсації за невикористану відпустку при звільнені2017р.,26002052207238,current,16.80,УДКСУ у м. Херсон,37959779,юридична особа
АПУ,"Херсонська область, Херсон, провулок Козацький, 10",63,2017-12-13,28,Податок на доходи,Податкові платежі,22030,Херсонська обласна організація,35027927,Херсонська область,податок з доходів фіз.осіб з компенсації за невикористану відпустку при звільнені2017р.,26002052207238,current,201.60,УДКСУ у м. Херсон,37959779,юридична особа
АПУ,"Дніпропетровська область, Дніпро́, Челябінська вулиця, 1",79,2017-12-13,187,"Оренда будинків і приміщень та експлуатаційні витрати (прибирання, страхування орендованих будинків, охорона, сигналізація, ремонт, вивіз сміття, тощо)",Оренда нерухомості,21395,Криворізька районна організація,40267750,Дніпропетровська область,оренда приміщення,26005300544524,current,4056.00,"ТОВ ""АБВ-КОМБІ""",30816192,юридична особа
АПУ,"Одеська область, Одеса, проспект Шевченка, 1А",69,2017-12-13,317,Організація заходів та інші організаційні послуги,Організація заходів та інші організаційні послуги,21337,Одеська обласна організація,37279902,Одеська область,матерiальні витрати та послуги (технічна підтримка для обслуговування заходу),26005054325961,current,20000.00,"КОЗ ""ПКС ОНПУ""",26418926,юридична особа
АПУ,"Чернігівська область, Чернігів, проспект Миру, 28",75,2017-12-13,72,Поштові послуги та поширення друкованих матеріалів,Поштові послуги та поширення друкованих матеріалів,21326,Чернігівська обласна організація,35030222,Чернігівська область,"матеріальні витрати та оплата послуг (Оплата доставки за 12 мiсяцiв 2018р. 5170шт., згiдно рахунку N2788 вiд 11.12.17р., Без ПДВ.)",26006051410803,current,85284.33,"Чернігівська дирекція ПАТ ""Укрпошта""",25572588,юридична особа
АПУ,"Київ, вулиця Михайла Грушевського, 1Д",70,2017-12-13,CDO0M40XKY,Банківські послуги,Інші витрати,21060,Чернігівська обласна організація,35030222,Чернігівська область,"інші не заборонені законом витрати (Комiсiя за виконання платежiв в нацiональнiй валютi, згiдно з вiдкритою офертою банку N б/н вiд 2015-04-15 та тарифiв банку, без ПДВ.)",26006051410803,current,3.00,"ПАТ КБ ""Приватбанк""",14360570,юридична особа
АПУ,"Київ, вулиця Михайла Грушевського, 1Д",70,2017-12-13,CDO0MSX99Y,Банківські послуги,Інші витрати,20892,Херсонська обласна організація,35027927,Херсонська область,комісія за виконання платежів,26002052207238,current,3.00,"ПАТ КБ ""Приватбанк""",14360570,юридична особа
АПУ,"Київ, вулиця Михайла Грушевського, 1Д",70,2017-12-13,26,Банківські послуги,Інші витрати,20891,Херсонська обласна організація,35027927,Херсонська область,комісія за виконання платежів,26002052207238,current,3.24,"ПАТ КБ ""Приватбанк""",14360570,юридична особа
АПУ,"Київ, вулиця Михайла Грушевського, 1Д",70,2017-12-13,27,Банківські послуги,Інші витрати,20890,Херсонська обласна організація,35027927,Херсонська область,комісія за виконання платежів,26002052207238,current,3.24,"ПАТ КБ ""Приватбанк""",14360570,юридична особа
АПУ,"Київ, вулиця Михайла Грушевського, 1Д",70,2017-12-13,CDO0MSWZDY,Банківські послуги,Інші витрати,20889,Херсонська обласна організація,35027927,Херсонська область,комісія за виконання платежів,26002052207238,current,3.00,"ПАТ КБ ""Приватбанк""",14360570,юридична особа
АПУ,"Київ, вулиця Михайла Грушевського, 1Д",70,2017-12-13,CDO0MSWZ5Y,Банківські послуги,Інші витрати,20888,Херсонська обласна організація,35027927,Херсонська область,комісія за виконання платежів,26002052207238,current,3.00,"ПАТ КБ ""Приватбанк""",14360570,юридична особа
АПУ,"Київ, вулиця Михайла Грушевського, 1Д",70,2017-12-13,CDO0MSWYYY,Банківські послуги,Інші витрати,20887,Херсонська обласна організація,35027927,Херсонська область,комісія за виконання платежів,26002052207238,current,3.00,"ПАТ КБ ""Приватбанк""",14360570,юридична особа
АПУ,"Київ, вулиця Михайла Грушевського, 1Д",70,2017-12-13,CDO0MSUVFХ,Банківські послуги,Інші витрати,20886,Херсонська обласна організація,35027927,Херсонська область,комісія за виконання платежів,26002052207238,current,3.24,"ПАТ КБ ""Приватбанк""",14360570,юридична особа
АПУ,"Київ, вулиця Михайла Грушевського, 1Д",70,2017-12-13,CDO0MSUVFY,Банківські послуги,Інші витрати,20885,Херсонська обласна організація,35027927,Херсонська область,комісія за виконання платежів,26002052207238,current,3.00,"ПАТ КБ ""Приватбанк""",14360570,юридична особа
АПУ,"Київ, вулиця Михайла Грушевського, 1Д",70,2017-12-13,CDO0M378IY,Банківські послуги,Інші витрати,20123,Одеська обласна організація,37279902,Одеська область,матерiальні витрати та послуги (комісія за виконання платежів в національній валюті),26005054325961,current,3.00,"ПАТ КБ ""Приватбанк""",14360570,юридична особа
АПУ,"Київ, вулиця Михайла Грушевського, 1Д",70,2017-12-13,СDO0M377MY,Банківські послуги,Інші витрати,20122,Одеська обласна організація,37279902,Одеська область,матерiальні витрати та послуги (комісія за виконання платежів в національній валюті),26005054325961,current,3.00,"ПАТ КБ ""Приватбанк""",14360570,юридична особа
АПУ,"Київ, вулиця Михайла Грушевського, 1Д",70,2017-12-13,5308_64,Банківські послуги,Інші витрати,19500,Центральний офіс,34763401,Україна,матеріальні витрати та оплата послуг,26009052641121,current,3.00,"ПАТ КБ ""Приватбанк""",14360570,юридична особа
АПУ,"Київ, вулиця Михайла Грушевського, 1Д",70,2017-12-13,5308_63,Банківські послуги,Інші витрати,19499,Центральний офіс,34763401,Україна,матеріальні витрати та оплата послуг,26009052641121,current,3.00,"ПАТ КБ ""Приватбанк""",14360570,юридична особа
АПУ,"Одеська область, Одеса, площадь Бориса Деревянко, 1",49,2017-12-13,316,Публікування матеріалів у друкованих ЗМІ,Реклама в друкованих ЗМІ,18869,Одеська обласна організація,37279902,Одеська область,пропагандистська діяльність (розміщення реклами в друкованих засобах),26005054325961,current,52000.00,"КП ""Видавництво ""Чорноморʼя""",05905705,юридична особа
АПУ,"Київ, вулиця Смілянська",60,2017-12-12,5300,Інші податки,Податкові платежі,22544,Центральний офіс,34763401,Україна,сплачені податки та збори,26009052641121,current,2144.55,ДПІ у Соломʼянському р-ш ГУ ДФС у м Кисні,39471390,юридична особа
АПУ,"Київ, вулиця Смілянська",60,2017-12-12,5300,Інші податки,Податкові платежі,22543,Центральний офіс,34763401,Україна,сплачені податки та збори,26009052641121,current,20876.90,ДПІ у Соломʼянському р-ш ГУ ДФС у м Кисні,39471390,юридична особа
АПУ,"Харківська область, Чугуїв, провулок Мічуріна",77,2017-12-12,99,"Оренда, ремонт та обслуговування автомобілів","Оренда, ремонт та обслуговування автомобілів",21498,Харківська обласна організація,34951845,Харківська область,матеріальні витрати та оплата послуг(за за автопослуги зг.рах. № 154 від 11.12.17),26006052229335,current,10700.00,"ТОВ ""Чугуївське автотранспортне підприємство-16350""",32500456,юридична особа
АПУ,"Хмельницька область, Хмельницький, проспект Миру, 59",49,2017-12-12,88,Публікування матеріалів у друкованих ЗМІ,Реклама в друкованих ЗМІ,21208,Хмельницька обласна організація,39968240,Хмельницька область,"розміщення реклами у друкованих засобах масової інформації ( За інформаційні послуги зг рах СФ-1145 від 07,12,2017)",26003010007435,current,974.84,"ПП ""Медіа-центр ""Подільські вісті""",21313714,юридична особа
АПУ,"Київ, вулиця Михайла Грушевського, 1Д",70,2017-12-12,CCO0M0C44Y,Банківські послуги,Інші витрати,20848,Харківська обласна організація,34951845,Харківська область,матеріальні витрати та оплата послуг(Комісія за виконання платежів),26006052229335,current,3.00,"ПАТ КБ ""Приватбанк""",14360570,юридична особа
АПУ,"Київ, вулиця Михайла Грушевського, 1Д",70,2017-12-12,5308_62,Банківські послуги,Інші витрати,19498,Центральний офіс,34763401,Україна,матеріальні витрати та оплата послуг,26009052641121,current,3.00,"ПАТ КБ ""Приватбанк""",14360570,юридична особа
АПУ,"Запорізька область, Приазовський район, Приазовське",49,2017-12-12,790,Публікування матеріалів у друкованих ЗМІ,Реклама в друкованих ЗМІ,18722,Запорізька обласна організація,34975613,Запорізька область,Розм. реклами у друк.засобах мас. інформації(розм. ін-форм. в газеті),26006055720257,current,2265.00,"КП ""РГ ""Приазовська новь""",02472795,юридична особа
АПУ,"Харківська область, Харків",53,2017-12-11,97,Витрати на розміщення зовнішньої реклами,Зовнішня реклама,22978,Харківська обласна організація,34951845,Харківська область,розміщення зовнішньої політичної реклами (за значки зг.рах. № 205 від 08.12.17),26006052229335,current,1113.00,Балаба Г Є,2518111990,фізична особа
АПУ,"Харківська область, Люботин, вулиця Слобожанська, 38",80,2017-12-11,98,"Транспортні послуги (квитки, пасажирські перевезення і т.д.)","Транспортні послуги (квитки, пасажирські перевезення і т.д.)",22800,Харківська обласна організація,34951845,Харківська область,матеріальні витрати та оплата послуг(за послуги по перевезенн пасажирів від 08.12.17),26006052229335,current,8000.00,ФГ Міраж,40383664,юридична особа
АПУ,"Донецька область, Добропілля, провулок Європейський, 4",62,2017-12-11,28,Сплата ЄСВ,Податкові платежі,22702,Донецька обласна організація,35175265,Донецька область,ПОДАТОК -ЕСВ за листопад,26009053608571,current,0.72,Добропільська ОДПІ,39881187,юридична особа
АПУ,"Київ, вулиця Михайла Грушевського, 1Д",70,2017-12-11,CBO0LWMW6Y,Банківські послуги,Інші витрати,20847,Харківська обласна організація,34951845,Харківська область,матеріальні витрати та оплата послуг(Комісія за виконання платежів),26006052229335,current,3.00,"ПАТ КБ ""Приватбанк""",14360570,юридична особа
АПУ,"Київ, вулиця Михайла Грушевського, 1Д",70,2017-12-11,CBO0LVD2VY,Банківські послуги,Інші витрати,19545,Донецька обласна організація,35175265,Донецька область,Комісія за виконання платежів в національній валюті,26009053608571,current,3.00,"ПАТ КБ ""Приватбанк""",14360570,юридична особа
АПУ,"Харківська область, Чугуїв",74,2017-12-08,95,"Придбання канцтоварів, паперу, інших предметів і матеріалів, а також госп товари",Придбання канцтоварів та госп. товарів,24188,Харківська обласна організація,34951845,Харківська область,"матеріальні витрати та оплата послуг(поповнення картки, госп.витрати)",26006052229335,current,50.00,Бут Марина Миколаївна,,фізична особа
АПУ,"Харківська область, Харків",74,2017-12-08,95,"Придбання канцтоварів, паперу, інших предметів і матеріалів, а також госп товари",Придбання канцтоварів та госп. товарів,24187,Харківська обласна організація,34951845,Харківська область,"матеріальні витрати та оплата послуг(поповнення картки, госп.витрати)",26006052229335,current,32.00,Зорченко Володимир Іванович,,фізична особа
АПУ,"Харківська область, Чугуїв",84,2017-12-08,94,"Заробітна плата, премії","Заробітна плата, лікарняні, вагітності, відрядження, компенсації",24186,Харківська обласна організація,34951845,Харківська область,заробітна плата (поповнення картки Варжеїнов Ю.К. (заробітна плата за заробітна плата за ноябрь 2017р.),26006052229335,current,3864.00,Варжеїнов Юрій Костянтинович,,фізична особа
АПУ,"Харківська область, Чугуїв",84,2017-12-08,94,"Заробітна плата, премії","Заробітна плата, лікарняні, вагітності, відрядження, компенсації",24185,Харківська обласна організація,34951845,Харківська область,заробітна плата (поповнення картки Бут м. М.(заробітна плата за ноябрь 2017р.),26006052229335,current,2656.50,Бут Марина Миколаївна,,фізична особа
АПУ,"Харківська область, Харків",84,2017-12-08,94,"Заробітна плата, премії","Заробітна плата, лікарняні, вагітності, відрядження, компенсації",24184,Харківська обласна організація,34951845,Харківська область,заробітна плата (поповнення картки Зорченко В.І.(заробітна плата за І пол.жовтня 2017р.),26006052229335,current,2898.00,Зорченко Володимир Іванович,,фізична особа
АПУ,"Харківська область, Чугуїв",84,2017-12-08,94,"Заробітна плата, премії","Заробітна плата, лікарняні, вагітності, відрядження, компенсації",24183,Харківська обласна організація,34951845,Харківська область,заробітна плата (поповнення картки Золотарьов В.І.(заробітна плата за ноябрь 2017р.),26006052229335,current,3542.00,Золотарьов Володимир Ілліч,,фізична особа
АПУ,"Вінницька область, Вінниця, вулиця Андрія Первозванного, 24",43,2017-12-08,400,Інші витрати,Інші витрати,23058,Вінницька обласна організація,35111112,Вінницька область,"матеріальні витрати та оплата послуг (оплата зг рах №60, без ПДВ)",26003000249520,current,5800.00,Нагорний Олександр Васильович,2800607859,фізична особа
АПУ,"Рівненська область, Рівне",58,2017-12-08,422,"Виготовлення друкованих матеріалів (плакатів, листівок, буклетів та інших агітаційних матеріалів)",Друкована агітація,22973,Рівненська обласна організація,35103253,Рівненська область,видавнича діяльність (за листiвки згiдно рах.N72 вiд 2017-12-08р. Без ПДВ),26002054724863,current,2460.00,Стасюк Роман Дмитрович,2499903692,фізична особа
АПУ,"Харківська область, Чугуїв",53,2017-12-08,91,Витрати на розміщення зовнішньої реклами,Зовнішня реклама,22934,Харківська обласна організація,34951845,Харківська область,розміщення зовнішньої політичної реклами (за брендування вітрини зг.рах.№ 260 від 29.11.17),26006052229335,current,1910.00,Болячевець Валентина Миколаївна,2260220699,фізична особа
АПУ,"Харківська область, Харків, провулок Академіка Підгорного, 3",62,2017-12-08,96,Сплата ЄСВ,Податкові платежі,22700,Харківська обласна організація,34951845,Харківська область,сплачені податки та збори (оплата ЄСВ на з/плати за листопад 2017р.),26006052229335,current,3542.00,Харківська ОДПІ ГУ ДФС у Харківській області,39859695,юридична особа
АПУ,"Київ, вулиця Смілянська",60,2017-12-08,5297,Інші податки,Податкові платежі,22542,Центральний офіс,34763401,Україна,сплачені податки та збори,26009052641121,current,273.51,ДПІ у Соломʼянському р-ш ГУ ДФС у м Кисні,39471390,юридична особа
АПУ,"Київ, вулиця Смілянська",60,2017-12-08,5297,Інші податки,Податкові платежі,22541,Центральний офіс,34763401,Україна,сплачені податки та збори,26009052641121,current,55196.49,ДПІ у Соломʼянському р-ш ГУ ДФС у м Кисні,39471390,юридична особа
АПУ,"Харківська область, Чугуїв, вулиця Старонікольська, 44",61,2017-12-08,97,Військовий збір,Податкові платежі,21955,Харківська обласна організація,34951845,Харківська область,сплачені податки та збори (оплата військового збору із з/плати за листопад 2017р.),26006052229335,current,241.50,Чугуївське УДКСУ в Харківській області,37792204,юридична особа
АПУ,"Харківська область, Чугуїв, вулиця Старонікольська, 44",63,2017-12-08,98,Податок на доходи,Податкові платежі,21954,Харківська обласна організація,34951845,Харківська область,сплачені податки та збори (оплата ПДФО із з/плати за лтстопад 2017р.),26006052229335,current,2898.00,Чугуївське УДКСУ в Харківській області,37792204,юридична особа
АПУ,"Рівненська область, Рівне",83,2017-12-08,423,"Виплати працівникам (не зарплата): лікарняні, вагітності, відрядження, компенсації ","Заробітна плата, лікарняні, вагітності, відрядження, компенсації",21880,Рівненська обласна організація,35103253,Рівненська область,"витрати на соціальну допомогу(за медикаменти згiдно рах.N505 вiд 2017-12-08р. У сумi 7499.97 грн., ПДВ - 20 % 1500.00 грн.)",26002054724863,current,8999.97,"ТОВ ""АВК фарм""",37124474,юридична особа
АПУ,"Київ, вулиця Михайла Грушевського, 1Д",70,2017-12-08,C8O0LRVOKA,Банківські послуги,Інші витрати,20846,Харківська обласна організація,34951845,Харківська область,матеріальні витрати та оплата послуг(Комісія за поповнення карток),26006052229335,current,0.21,"ПАТ КБ ""Приватбанк""",14360570,юридична особа
АПУ,"Київ, вулиця Михайла Грушевського, 1Д",70,2017-12-08,95,Банківські послуги,Інші витрати,20845,Харківська обласна організація,34951845,Харківська область,матеріальні витрати та оплата послуг(Комісія за РКО від з/плати),26006052229335,current,32.61,"ПАТ КБ ""Приватбанк""",14360570,юридична особа
АПУ,"Київ, вулиця Михайла Грушевського, 1Д",70,2017-12-08,C8O0LRDN4Y,Банківські послуги,Інші витрати,20844,Харківська обласна організація,34951845,Харківська область,матеріальні витрати та оплата послуг(Комісія за виконання платежів),26006052229335,current,3.00,"ПАТ КБ ""Приватбанк""",14360570,юридична особа
АПУ,"Київ, вулиця Михайла Грушевського, 1Д",70,2017-12-08,C8O0LRDN7Y,Банківські послуги,Інші витрати,20843,Харківська обласна організація,34951845,Харківська область,матеріальні витрати та оплата послуг(Комісія за виконання платежів),26006052229335,current,3.00,"ПАТ КБ ""Приватбанк""",14360570,юридична особа
АПУ,"Київ, вулиця Михайла Грушевського, 1Д",70,2017-12-08,C8O0LRDNDY,Банківські послуги,Інші витрати,20842,Харківська обласна організація,34951845,Харківська область,матеріальні витрати та оплата послуг(Комісія за виконання платежів),26006052229335,current,3.00,"ПАТ КБ ""Приватбанк""",14360570,юридична особа
АПУ,"Київ, вулиця Михайла Грушевського, 1Д",70,2017-12-08,C8O0LR6SАY,Банківські послуги,Інші витрати,20841,Харківська обласна організація,34951845,Харківська область,матеріальні витрати та оплата послуг(Комісія за виконання платежів),26006052229335,current,3.00,"ПАТ КБ ""Приватбанк""",14360570,юридична особа
АПУ,"Київ, вулиця Михайла Грушевського, 1Д",70,2017-12-08,C8O0LR6SKY,Банківські послуги,Інші витрати,20840,Харківська обласна організація,34951845,Харківська область,матеріальні витрати та оплата послуг(Комісія за виконання платежів),26006052229335,current,3.00,"ПАТ КБ ""Приватбанк""",14360570,юридична особа
АПУ,"Київ, вулиця Михайла Грушевського, 1Д",70,2017-12-08,C8O0LSGE7Y,Банківські послуги,Інші витрати,20642,Рівненська обласна організація,35103253,Рівненська область,"матеріальні витрати та оплата послуг(Комiсiя за виконання платежiв в нацiональнiй валютi, згiдно з вiдкритою офертою банку N б/н вiд 2016-01-28 та тарифiв банку, без ПДВ.)",26002054724863,current,3.00,"ПАТ КБ ""Приватбанк""",14360570,юридична особа
АПУ,"Київ, вулиця Михайла Грушевського, 1Д",70,2017-12-08,C8O0LQ6XAY,Банківські послуги,Інші витрати,20641,Рівненська обласна організація,35103253,Рівненська область,"матеріальні витрати та оплата послуг(Комiсiя за виконання платежiв в нацiональнiй валютi, згiдно з вiдкритою офертою банку N б/н вiд 2016-01-28 та тарифiв банку, без ПДВ.)",26002054724863,current,3.00,"ПАТ КБ ""Приватбанк""",14360570,юридична особа
АПУ,"Київ, вулиця Михайла Грушевського, 1Д",70,2017-12-08,c800l0[w1y,Банківські послуги,Інші витрати,19562,Житомирська обласна організація,35021328,Житомирська область,комісія за виконання платежів,26001060520970,current,3.00,"ПАТ КБ ""Приватбанк""",14360570,юридична особа
АПУ,"Київ, вулиця Михайла Грушевського, 1Д",70,2017-12-08,5308_61,Банківські послуги,Інші витрати,19497,Центральний офіс,34763401,Україна,матеріальні витрати та оплата послуг,26009052641121,current,3.00,"ПАТ КБ ""Приватбанк""",14360570,юридична особа
АПУ,"Харківська область, Харків, Московський проспект, 251",79,2017-12-08,93,"Оренда будинків і приміщень та експлуатаційні витрати (прибирання, страхування орендованих будинків, охорона, сигналізація, ремонт, вивіз сміття, тощо)",Оренда нерухомості,18647,Харківська обласна організація,34951845,Харківська область,оренда приміщення(за оренду примішення у листопаді 2017 р.зг.дог. №10-17/ар від 27.23.17),26006052229335,current,29761.90,ПАТ Харківський завод металевих конструкцій,01412294,юридична особа
АПУ,"Одеська область, Біляївський район, Біляївка, вулиця Успенська, 52",79,2017-12-07,H1207X9M31,"Оренда будинків і приміщень та експлуатаційні витрати (прибирання, страхування орендованих будинків, охорона, сигналізація, ремонт, вивіз сміття, тощо)",Оренда нерухомості,22919,Біляївська районна організація,34784437,Одеська область,оренда приміщення,2600505436552,current,2020.00,Бондаренко Г І,2250723839,фізична особа
АПУ,"Одеська область, Біляївський район, Біляївка, вулиця Успенська, 52",79,2017-12-07,H1207X9LQ0,"Оренда будинків і приміщень та експлуатаційні витрати (прибирання, страхування орендованих будинків, охорона, сигналізація, ремонт, вивіз сміття, тощо)",Оренда нерухомості,22918,Біляївська районна організація,34784437,Одеська область,оренда приміщення,2600505436552,current,164.57,Бондаренко Г І,2250723839,фізична особа
АПУ,"Одеська область, Овідіопольський район, Овідіополь",60,2017-12-07,39,Інші податки,Податкові платежі,22821,Овідіопольська районна організація,39909834,Одеська область,матеріальні витрати та оплата послуг (оплата за витяг),26000300084521,current,80.00,Управління Державної казначейської служби України в Овідіопольському районі Одеської області,37929461,юридична особа
АПУ,"Сумська область, Суми, вулиця Гагаріна, 9",43,2017-12-07,308,Інші витрати,Інші витрати,22811,Сумська обласна організація,34932761,Сумська область,інші незаборонені законом витрати /безповоротня фінансова допомога /,26001055008647,current,4800.00,"ГО ""Асоціація ветеранів футболу Сумщини""",40945944,юридична особа
АПУ,"Хмельницька область, Хмельницький, вулиця Соборна, 57",69,2017-12-07,87,Організація заходів та інші організаційні послуги,Організація заходів та інші організаційні послуги,21254,Хмельницька обласна організація,39968240,Хмельницька область,"проведення з’їздів, партійних конференцій, загальних зборі в(За оренду залу зг рах 1012 від 2017-12-07)",26003010007435,current,900.00,"Підприємство ""Господарське управління федерації профспілок Хмельницької області""",22985870,юридична особа
АПУ,"Одеська область, Одеса, вулиця Садова, 10",75,2017-12-07,20,Поштові послуги та поширення друкованих матеріалів,Поштові послуги та поширення друкованих матеріалів,21251,Ширяївська районна організація,36909245,Одеська область,Матерільні витрати та послуги(доставка інформаційного матеріалу),26005495447,current,2340.00,"Одеська дирекція ПАТ ""Укрпошта""",22485297,юридична особа
АПУ,"Харківська область, Харків, майдан Свободи, 5/1",49,2017-12-07,90,Публікування матеріалів у друкованих ЗМІ,Реклама в друкованих ЗМІ,21199,Харківська обласна організація,34951845,Харківська область,розміщення реклами у друкованих засобах масової інформації (за розміщення іміджевих матеріалів з.рах № 1975 від 2017-12-05р.),26006052229335,current,1200.00,"РГ ""Слобідський край""",21188137,юридична особа
АПУ,"Київ, вулиця Михайла Грушевського, 1Д",70,2017-12-07,C7O0LМТ37Y,Банківські послуги,Інші витрати,20839,Харківська обласна організація,34951845,Харківська область,матеріальні витрати та оплата послуг(Комісія за виконання платежів),26006052229335,current,3.00,"ПАТ КБ ""Приватбанк""",14360570,юридична особа
АПУ,"Київ, вулиця Михайла Грушевського, 1Д",70,2017-12-07,C7O0LJD7FY,Банківські послуги,Інші витрати,20781,Сумська обласна організація,34932761,Сумська область,інші незаборонені законом витрати / комісія за виконання платежів,26001055008647,current,3.00,"ПАТ КБ ""Приватбанк""",14360570,юридична особа
АПУ,"Київ, вулиця Михайла Грушевського, 1Д",70,2017-12-07,15А1200094,Банківські послуги,Інші витрати,20370,Полтавська обласна організація,34874174,Полтавська область,інші не заборонені законом витрати (оплата комісії за касове обслуговування по зарахуван на картки 15A12000947 Полтавська обл. ПО АПУ. без ПДВ.),26009054622601,current,1.50,"ПАТ КБ ""Приватбанк""",14360570,юридична особа
АПУ,"Одеська область, Одеса, вулиця Базарна, 17",70,2017-12-07,313128784,Банківські послуги,Інші витрати,18530,Овідіопольська районна організація,39909834,Одеська область,матеріальні витрати та оплата послуг (Списання щомісячної плати за обслуговування тарифного пакету),26000300084521,current,5.00,"Одеська обласна філія АТ ""Ощадбанк""",09328601,юридична особа
АПУ,"Полтавська область, Полтава",83,2017-12-06,196,"Виплати працівникам (не зарплата): лікарняні, вагітності, відрядження, компенсації ","Заробітна плата, лікарняні, вагітності, відрядження, компенсації",23873,Полтавська обласна організація,34874174,Полтавська область,інші не заборонені законом витрати (відрядні),26009054622601,current,600.00,Луценко Олена Іванівна,,фізична особа
АПУ,,84,2017-12-06,307,"Заробітна плата, премії","Заробітна плата, лікарняні, вагітності, відрядження, компенсації",23793,Одеська обласна організація,37279902,Одеська область,заробітна плата за 2-гу половину листопада,26005054325961,current,1529.50,Терещенко Людмила Степанівна,,фізична особа
АПУ,,84,2017-12-06,307,"Заробітна плата, премії","Заробітна плата, лікарняні, вагітності, відрядження, компенсації",23792,Одеська обласна організація,37279902,Одеська область,заробітна плата за 2-гу половину листопада,26005054325961,current,1529.50,Литвиненко Ольга Семенівна,,фізична особа
АПУ,"Харківська область, Нововодолазький район, Липкуватівка",84,2017-12-06,307,"Заробітна плата, премії","Заробітна плата, лікарняні, вагітності, відрядження, компенсації",23791,Одеська обласна організація,37279902,Одеська область,заробітна плата за 2-гу половину листопада,26005054325961,current,1529.50,Гавриленко Тетяна Володимирівна,,фізична особа
АПУ,,84,2017-12-06,307,"Заробітна плата, премії","Заробітна плата, лікарняні, вагітності, відрядження, компенсації",23790,Одеська обласна організація,37279902,Одеська область,заробітна плата за 2-гу половину листопада,26005054325961,current,1932.00,Погребна Тетяна Миколаївна,,фізична особа
АПУ,"Рівненська область, Рівне",82,2017-12-06,421,"Гонорари, в тому числі за надані консультаційні послуги","Гонорари, в тому числі за надані консультаційні послуги",22938,Рівненська обласна організація,35103253,Рівненська область,матеріальні витрати та оплата послуг(за посвiдчення пiдписiв згiдно рах.N2670 вiд 2017-12-05р. Без ПДВ),26002054724863,current,300.00,Усик С І,2276100086,фізична особа
АПУ,"Одеська область, Одеса, вулиця Генерала Петрова, 54, 102",58,2017-12-06,315,"Виготовлення друкованих матеріалів (плакатів, листівок, буклетів та інших агітаційних матеріалів)",Друкована агітація,22927,Одеська обласна організація,37279902,Одеська область,пропагандистська діяльність (відавнича діяльність),26005054325961,current,17220.00,Герцегович І Н,2256708516,фізична особа
АПУ,"Одеська область, Одеса, Французький бульвар, 7",62,2017-12-06,309,Сплата ЄСВ,Податкові платежі,22626,Одеська обласна організація,37279902,Одеська область,Сплачені податки та збори(єсв за 2-гу пол.листопада),26005054325961,current,1782.00,ДПІ у Приморському районі м. Одеси ГУ ДФС в Одеській області,39565511,юридична особа
АПУ,"Одеська область, Одеса, вулиця Черняховського, 6",63,2017-12-06,308,Податок на доходи,Податкові платежі,22195,Одеська обласна організація,37279902,Одеська область,Сплачені податки та збори (податок з доходів за 2-гу поллистопада),26005054325961,current,1458.00,УДКСУ у м. Одесі,38016923,юридична особа
АПУ,"Одеська область, Одеса, вулиця Черняховського, 6",61,2017-12-06,310,Військовий збір,Податкові платежі,22194,Одеська обласна організація,37279902,Одеська область,Сплачені податки та збори(військовий збір за 2-гу пол.листопада),26005054325961,current,121.50,УДКСУ у м. Одесі,38016923,юридична особа
АПУ,"Київ, вулиця Михайла Грушевського, 1Д",70,2017-12-06,C6O0LEVY1Y,Банківські послуги,Інші витрати,21059,Чернігівська обласна організація,35030222,Чернігівська область,"інші не заборонені законом витрати (Комiсiя за виконання платежiв в нацiональнiй валютi, згiдно з вiдкритою офертою банку N б/н вiд 2015-04-15 та тарифiв банку, без ПДВ.)",26006051410803,current,3.00,"ПАТ КБ ""Приватбанк""",14360570,юридична особа
АПУ,"Київ, вулиця Михайла Грушевського, 1Д",70,2017-12-06,C6O0LFVBDY,Банківські послуги,Інші витрати,20640,Рівненська обласна організація,35103253,Рівненська область,"матеріальні витрати та оплата послуг(Комiсiя за виконання платежiв в нацiональнiй валютi, згiдно з вiдкритою офертою банку N б/н вiд 2016-01-28 та тарифiв банку, без ПДВ.)",26002054724863,current,3.00,"ПАТ КБ ""Приватбанк""",14360570,юридична особа
АПУ,"Київ, вулиця Михайла Грушевського, 1Д",70,2017-12-06,C5O0LCYU6Y,Банківські послуги,Інші витрати,20369,Полтавська обласна організація,34874174,Полтавська область,інші не заборонені законом витрати (оплата комісії за касове обслуговування по зарахуван картк . без ПДВ.),26009054622601,current,1.50,"ПАТ КБ ""Приватбанк""",14360570,юридична особа
АПУ,"Київ, вулиця Михайла Грушевського, 1Д",70,2017-12-06,C600LEXТ3Y,Банківські послуги,Інші витрати,20121,Одеська обласна організація,37279902,Одеська область,матерiальні витрати та послуги (комісія за виконання платежів в національній валюті),26005054325961,current,3.00,"ПАТ КБ ""Приватбанк""",14360570,юридична особа
АПУ,"Київ, вулиця Михайла Грушевського, 1Д",70,2017-12-06,C600LEXREY,Банківські послуги,Інші витрати,20120,Одеська обласна організація,37279902,Одеська область,матерiальні витрати та послуги (комісія за виконання платежів в національній валюті),26005054325961,current,3.00,"ПАТ КБ ""Приватбанк""",14360570,юридична особа
АПУ,"Київ, вулиця Михайла Грушевського, 1Д",70,2017-12-06,311,Банківські послуги,Інші витрати,20119,Одеська обласна організація,37279902,Одеська область,матерiальні витрати та послуги (комісія за виконання платежів в національній валюті),26005054325961,current,16.30,"ПАТ КБ ""Приватбанк""",14360570,юридична особа
АПУ,"Київ, вулиця Михайла Грушевського, 1Д",70,2017-12-06,C600LEREYY,Банківські послуги,Інші витрати,20118,Одеська обласна організація,37279902,Одеська область,матерiальні витрати та послуги (комісія за виконання платежів в національній валюті),26005054325961,current,3.00,"ПАТ КБ ""Приватбанк""",14360570,юридична особа
АПУ,"Київ, вулиця Михайла Грушевського, 1Д",70,2017-12-06,C600LEQT7Y,Банківські послуги,Інші витрати,20117,Одеська обласна організація,37279902,Одеська область,матерiальні витрати та послуги (комісія за виконання платежів в національній валюті),26005054325961,current,3.00,"ПАТ КБ ""Приватбанк""",14360570,юридична особа
АПУ,"Київ, вулиця Михайла Грушевського, 1Д",70,2017-12-06,C600LEQVWY,Банківські послуги,Інші витрати,20116,Одеська обласна організація,37279902,Одеська область,матерiальні витрати та послуги (комісія за виконання платежів в національній валюті),26005054325961,current,3.00,"ПАТ КБ ""Приватбанк""",14360570,юридична особа
АПУ,"Чернігівська область, Чернігів",58,2017-12-06,71,"Виготовлення друкованих матеріалів (плакатів, листівок, буклетів та інших агітаційних матеріалів)",Друкована агітація,19067,Чернігівська обласна організація,35030222,Чернігівська область,"матеріальні витрати та оплата послуг (Оплата за друк кишенькових календарикiв, євробуклетiв, згiдно рахунку N3259 вiд 04.12.17р., у т.ч. ПДВ - 20 % 5676,08 грн.)",26006051410803,current,34056.46,"ПАТ ""Поліграф-видавничий комплекс Десна""",14242681,юридична особа
АПУ,"Одеська область, Окнянський район, Окни, вулиця Комарова, 2",49,2017-12-06,312,Публікування матеріалів у друкованих ЗМІ,Реклама в друкованих ЗМІ,18767,Одеська обласна організація,37279902,Одеська область,пропагандистська діяльність (розміщення реклами в друкованих засобах),26005054325961,current,450.00,"РГ ""Красноокнянський вісник""",02474423,юридична особа
АПУ,"Одеська область, Ширяївський район, Ширяєве",49,2017-12-06,18,Публікування матеріалів у друкованих ЗМІ,Реклама в друкованих ЗМІ,18760,Ширяївська районна організація,36909245,Одеська область,Пропагандистська діяльність(за розміщення інформації на сторінках газети),26005495447,current,800.00,"РГ ""Промінь""",02474280,юридична особа
АПУ,"Одеська область, Ширяївський район, Ширяєве",58,2017-12-06,19,"Виготовлення друкованих матеріалів (плакатів, листівок, буклетів та інших агітаційних матеріалів)",Друкована агітація,18703,Ширяївська районна організація,36909245,Одеська область,Матерільні витрати та послуги(друк інформаційного бюлетеня),26005495447,current,1945.44,Ширяївська районна друкарня,02468078,юридична особа
АПУ,"Київ, вулиця Здолбунівська, 7Д",79,2017-12-06,314,"Оренда будинків і приміщень та експлуатаційні витрати (прибирання, страхування орендованих будинків, охорона, сигналізація, ремонт, вивіз сміття, тощо)",Оренда нерухомості,18465,Одеська обласна організація,37279902,Одеська область,оренда приміщення (офіса за листопад),26005054325961,current,1032.24,"ПАТ ""НАСК ""Оранта""",00034186,юридична особа
АПУ,"Харківська область, Чугуїв, вулиця Пролетарська",74,2017-12-05,88,"Придбання канцтоварів, паперу, інших предметів і матеріалів, а також госп товари",Придбання канцтоварів та госп. товарів,23061,Харківська обласна організація,34951845,Харківська область,матеріальні витрати та оплата послуг (за канцелярські товари зг.рах. б/н від 04.12.17),26006052229335,current,439.00,Хорольська О В,2824620962,фізична особа
АПУ,"Харківська область, Харків",53,2017-12-05,86,Витрати на розміщення зовнішньої реклами,Зовнішня реклама,22987,Харківська обласна організація,34951845,Харківська область,розміщення зовнішньої політичної реклами (послуги по розміщенню реклами на спеціальних конструкціях зг.рах.№27/11/01 від 28.11.17 ),26006052229335,current,4400.00,Вацко Т К,2576119743,фізична особа
АПУ,"Донецька область, Добропілля, вулиця Івана Франка, 18",79,2017-12-05,27,"Оренда будинків і приміщень та експлуатаційні витрати (прибирання, страхування орендованих будинків, охорона, сигналізація, ремонт, вивіз сміття, тощо)",Оренда нерухомості,21641,Донецька обласна організація,35175265,Донецька область,оренда нежитлових приміщень за грудень згідно договору №15 від 2017-10-01 р.,26009053608571,current,1064.00,"ТОВ ""Добропільський кооператор""",34093056,юридична особа
АПУ,"Полтавська область, Полтава, вулиця Європейська, 57",80,2017-12-05,195,"Транспортні послуги (квитки, пасажирські перевезення і т.д.)","Транспортні послуги (квитки, пасажирські перевезення і т.д.)",21417,Полтавська обласна організація,34874174,Полтавська область,"матеріальні витрати та оплата послуг (організац перевезен відправлень по рах№/0-0034383 від 2017-11-30, у т.ч. ПДВ)",26009054622601,current,95.00,"ТОВ ""Нова пошта""",31316718,юридична особа
АПУ,"Харківська область, Харків, вулиця Космічна, 26",53,2017-12-05,87,Витрати на розміщення зовнішньої реклами,Зовнішня реклама,21372,Харківська обласна організація,34951845,Харківська область,"розміщення зовнішньої політичної реклами (за папки, блокноти зг.рах. №864 від 22.11.17)",26006052229335,current,4350.00,"ТОВ ""Золоті Сторінки""",30430555,юридична особа
АПУ,"Київ, бульвар Тараса Шевченка, 18",76,2017-12-05,789,Послуги зв’язку,Послуги зв’язку,21228,Запорізька обласна організація,34975613,Запорізька область,послуги звʼязку(телекомун. послуги за листопад 2017),26006055720257,current,75.00,"ПАТ ""Укртелеком""",21560766,юридична особа
АПУ,"Київ, вулиця Михайла Грушевського, 1Д",70,2017-12-05,C5O0LAV07Y,Банківські послуги,Інші витрати,20838,Харківська обласна організація,34951845,Харківська область,матеріальні витрати та оплата послуг(Комісія за виконання платежів),26006052229335,current,3.00,"ПАТ КБ ""Приватбанк""",14360570,юридична особа
АПУ,"Київ, вулиця Михайла Грушевського, 1Д",70,2017-12-05,C5O0LAV0KY,Банківські послуги,Інші витрати,20837,Харківська обласна організація,34951845,Харківська область,матеріальні витрати та оплата послуг(Комісія за виконання платежів),26006052229335,current,3.00,"ПАТ КБ ""Приватбанк""",14360570,юридична особа
АПУ,"Київ, вулиця Михайла Грушевського, 1Д",70,2017-12-05,1612700006,Банківські послуги,Інші витрати,20639,Рівненська обласна організація,35103253,Рівненська область,матеріальні витрати та оплата послуг(Погашення комiсiї за кас. обслуг. по зарахуванню на картки згiдно 16127000065 вiд 2016-01-28 р.),26002054724863,current,0.14,"ПАТ КБ ""Приватбанк""",14360570,юридична особа
АПУ,"Київ, вулиця Михайла Грушевського, 1Д",70,2017-12-05,C5O0LCYU6Y,Банківські послуги,Інші витрати,20368,Полтавська обласна організація,34874174,Полтавська область,інші не заборонені законом витрати (Комісія за виконання платежів в національній валюті згідно з відкритою офертою банку б/н від 2015-09-07 та тарифів банку.Без ПДВ.),26009054622601,current,3.00,"ПАТ КБ ""Приватбанк""",14360570,юридична особа
АПУ,"Київ, вулиця Михайла Грушевського, 1Д",70,2017-12-05,C5O0L9T9GY,Банківські послуги,Інші витрати,19697,Запорізька обласна організація,34975613,Запорізька область,Матеріальні витрати та оплата послуг (коміс. за викон.банк.платежів),26006055720257,current,3.00,"ПАТ КБ ""Приватбанк""",14360570,юридична особа
АПУ,"Київ, вулиця Михайла Грушевського, 1Д",70,2017-12-05,C5O0LC2H9Y,Банківські послуги,Інші витрати,19544,Донецька обласна організація,35175265,Донецька область,Комісія за виконання платежів в національній валюті,26009053608571,current,3.00,"ПАТ КБ ""Приватбанк""",14360570,юридична особа
АПУ,"Київ, вулиця Михайла Грушевського, 1Д",70,2017-12-05,C5O0LC2HDY,Банківські послуги,Інші витрати,19543,Донецька обласна організація,35175265,Донецька область,Комісія за виконання платежів в національній валюті,26009053608571,current,3.00,"ПАТ КБ ""Приватбанк""",14360570,юридична особа
АПУ,"Київ, вулиця Михайла Грушевського, 1Д",70,2017-12-05,5308_56,Банківські послуги,Інші витрати,19492,Центральний офіс,34763401,Україна,матеріальні витрати та оплата послуг,26009052641121,current,3.00,"ПАТ КБ ""Приватбанк""",14360570,юридична особа
АПУ,"Київ, вулиця Михайла Грушевського, 1Д",70,2017-12-05,5308_55,Банківські послуги,Інші витрати,19491,Центральний офіс,34763401,Україна,матеріальні витрати та оплата послуг,26009052641121,current,80.00,"ПАТ КБ ""Приватбанк""",14360570,юридична особа
АПУ,"Київ, вулиця Михайла Грушевського, 1Д",70,2017-12-05,5308_54,Банківські послуги,Інші витрати,19490,Центральний офіс,34763401,Україна,матеріальні витрати та оплата послуг,26009052641121,current,3.00,"ПАТ КБ ""Приватбанк""",14360570,юридична особа
АПУ,"Харківська область, Харків, вулиця Полтавський Шлях, 4",69,2017-12-05,89,Організація заходів та інші організаційні послуги,Організація заходів та інші організаційні послуги,18861,Харківська обласна організація,34951845,Харківська область,матеріальні витрати та оплата послуг(за оренду конференц-залу зг.рах.№ 17236/17 від 04.12.17),26006052229335,current,300.00,"ТОВ ""Спецвузавтоматика""",05837085,юридична особа
АПУ,"Донецька область, Добропілля, вулиця Івана Франка, 18",79,2017-12-05,28,"Оренда будинків і приміщень та експлуатаційні витрати (прибирання, страхування орендованих будинків, охорона, сигналізація, ремонт, вивіз сміття, тощо)",Оренда нерухомості,18831,Донецька обласна організація,35175265,Донецька область,єксплуатаційні витрати за оренду нежитлових приміщень за жовтень згідно договору №15 від 2017-10-01 р.,26009053608571,current,1177.96,"ТОВ ""Добропільський кооператор""",34093056,юридична особа
АПУ,"Київ, вулиця Велика Васильківська, 103",69,2017-12-05,5289,Організація заходів та інші організаційні послуги,Організація заходів та інші організаційні послуги,18686,Центральний офіс,34763401,Україна,"проведення з’їздів, партійних конференцій, загальних зборі",26009052641121,current,312200.00,"ДП ""Національний палац мистецтв ""Україна""",02221461,юридична особа
АПУ,"Київ, вулиця Велика Васильківська, 103",69,2017-12-05,5290,Організація заходів та інші організаційні послуги,Організація заходів та інші організаційні послуги,18685,Центральний офіс,34763401,Україна,"проведення з’їздів, партійних конференцій, загальних зборі",26009052641121,current,40000.00,"ДП ""Національний палац мистецтв ""Україна""",02221461,юридична особа
АПУ,"Рівненська область, Рівне",74,2017-12-04,419,"Придбання канцтоварів, паперу, інших предметів і матеріалів, а також госп товари",Придбання канцтоварів та госп. товарів,24082,Рівненська обласна організація,35103253,Рівненська область,матеріальні витрати та оплата послуг (госпвитрати),26002054724863,current,54.39,Остаповець Максим Олександрович,,фізична особа
АПУ,"Одеська область, Одеса",72,2017-12-04,305,"Придбання, ремонт офісної техніки та програмного забезпечення (Бухгалтерські програми, Ліга.закон, домени)",Придбання офісної техніки та програмного забезпечення,23213,Одеська обласна організація,37279902,Одеська область,"матерiальні витрати та послуги (ліцензія ""м. Е.Doc)",26005054325961,current,1800.00,Троценко Володимир Костянтинович,,фізична особа
АПУ,"Дніпропетровська область, Кривий Ріг, проспект Карла Маркса, 60",53,2017-12-04,182,Витрати на розміщення зовнішньої реклами,Зовнішня реклама,23191,Криворізька районна організація,40267750,Дніпропетровська область,розміщення зовнішньої політичної реклами (оплата за розміщення на рекламних конструкціх),26005300544524,current,6400.00,Макаров Михайло Олександрович,3109521957,фізична особа
АПУ,"Вінницька область, Вінниця, вулиця Андрія Первозванного, 24",43,2017-12-04,400,Інші витрати,Інші витрати,23057,Вінницька обласна організація,35111112,Вінницька область,"матеріальні витрати та оплата послуг (оплата зг рах №60, без ПДВ)",26003000249520,current,6400.00,Нагорний Олександр Васильович,2800607859,фізична особа
АПУ,"Харківська область, Харків, вулиця Польова, 8",58,2017-12-04,307,"Виготовлення друкованих матеріалів (плакатів, листівок, буклетів та інших агітаційних матеріалів)",Друкована агітація,22844,Сумська обласна організація,34932761,Сумська область,матеріальні витрати /за листівки /,26001055008647,current,4796.00,Канешевич Валентина Мусіївна,1994511447,фізична особа
АПУ,"Дніпропетровська область, Дніпро́, проспект Дмитра Яворницького, 108",80,2017-12-04,184,"Транспортні послуги (квитки, пасажирські перевезення і т.д.)","Транспортні послуги (квитки, пасажирські перевезення і т.д.)",22777,Криворізька районна організація,40267750,Дніпропетровська область,матеріальні витрати та оплата послуг (страховий збір на Укрзалізниці),26005300544524,current,18.00,Державне підприємство Придніпровської залізниці,40081237,юридична особа
АПУ,"Дніпропетровська область, Дніпро́, проспект Дмитра Яворницького, 108",80,2017-12-04,185,"Транспортні послуги (квитки, пасажирські перевезення і т.д.)","Транспортні послуги (квитки, пасажирські перевезення і т.д.)",22776,Криворізька районна організація,40267750,Дніпропетровська область,матеріальні витрати та оплата послуг (за ком. збір на Укрзалізниці),26005300544524,current,3744.00,Державне підприємство Придніпровської залізниці,40081237,юридична особа
АПУ,"Дніпропетровська область, Дніпро́, проспект Дмитра Яворницького, 108",80,2017-12-04,183,"Транспортні послуги (квитки, пасажирські перевезення і т.д.)","Транспортні послуги (квитки, пасажирські перевезення і т.д.)",22775,Криворізька районна організація,40267750,Дніпропетровська область,матеріальні витрати та оплата послуг (оплата залізничних квитків),26005300544524,current,15309.36,Державне підприємство Придніпровської залізниці,40081237,юридична особа
АПУ,"Одеська область, Теплодар, Піонерна вулиця, 7",79,2017-12-04,304,"Оренда будинків і приміщень та експлуатаційні витрати (прибирання, страхування орендованих будинків, охорона, сигналізація, ремонт, вивіз сміття, тощо)",Оренда нерухомості,21923,Одеська обласна організація,37279902,Одеська область,оренда приміщення (офіса за листопад),26005054325961,current,675.16,УДКСУ у м. Теплодарі Одеської області,37722242,юридична особа
АПУ,"Одеська область, Одеса, Миколаївська дорога, 187",79,2017-12-04,306,"Оренда будинків і приміщень та експлуатаційні витрати (прибирання, страхування орендованих будинків, охорона, сигналізація, ремонт, вивіз сміття, тощо)",Оренда нерухомості,21323,Одеська обласна організація,37279902,Одеська область,оренда приміщення ( офіса листопад),26005054325961,current,800.00,"ТОВ ""Балтаінтерсервіс""",25050909,юридична особа
АПУ,"Вінницька область, Вінниця, вулиця Генерала Арабея, 3",79,2017-12-04,398,"Оренда будинків і приміщень та експлуатаційні витрати (прибирання, страхування орендованих будинків, охорона, сигналізація, ремонт, вивіз сміття, тощо)",Оренда нерухомості,21104,Вінницька обласна організація,35111112,Вінницька область,"оренда приміщення (будинку, офіса, квартири) (оплата за оренду офісу зг дог 05/2017 від 2017-09-01р, в т.ч. ПДВ 286,27 грн. за листопад 2017р.)",26003000249520,current,3006.03,"Вінницька обласна ДЮСШ ""Колос""",20097757,юридична особа
АПУ,"Вінницька область, Вінниця, вулиця Генерала Арабея, 3",43,2017-12-04,399,Інші витрати,Інші витрати,21103,Вінницька обласна організація,35111112,Вінницька область,матеріальні витрати та оплата послуг (абон.плата зг дог 05/2017 від 2017-09-01р за жовтень 2017Р.),26003000249520,current,308.69,"Вінницька обласна ДЮСШ ""Колос""",20097757,юридична особа
АПУ,"Київ, вулиця Михайла Грушевського, 1Д",70,2017-12-04,C4O0L54FNA,Банківські послуги,Інші витрати,20638,Рівненська обласна організація,35103253,Рівненська область,матеріальні витрати та оплата послуг (Комiсiя за поповнення карток для виплат та нецiльовi платежi),26002054724863,current,0.14,"ПАТ КБ ""Приватбанк""",14360570,юридична особа
АПУ,"Київ, вулиця Михайла Грушевського, 1Д",70,2017-12-04,C4O0L6ND3Y,Банківські послуги,Інші витрати,20115,Одеська обласна організація,37279902,Одеська область,матерiальні витрати та послуги (комісія за виконання платежів в національній валюті),26005054325961,current,3.00,"ПАТ КБ ""Приватбанк""",14360570,юридична особа
АПУ,"Київ, вулиця Михайла Грушевського, 1Д",70,2017-12-04,С4O0L4JMUY,Банківські послуги,Інші витрати,20114,Одеська обласна організація,37279902,Одеська область,матерiальні витрати та послуги (комісія за виконання платежів в національній валюті),26005054325961,current,3.00,"ПАТ КБ ""Приватбанк""",14360570,юридична особа
АПУ,"Київ, вулиця Михайла Грушевського, 1Д",70,2017-12-04,C4O0L4GZRY,Банківські послуги,Інші витрати,20113,Одеська обласна організація,37279902,Одеська область,матерiальні витрати та послуги (комісія за виконання платежів в національній валюті),26005054325961,current,3.00,"ПАТ КБ ""Приватбанк""",14360570,юридична особа
АПУ,"Київ, вулиця Михайла Грушевського, 1Д",70,2017-12-02,17А3100032,Банківські послуги,Інші витрати,20884,Херсонська обласна організація,35027927,Херсонська область,Погашення комісі за розрахунково-касове обслуговування по зарахуванню на картки,26002052207238,current,11.78,"ПАТ КБ ""Приватбанк""",14360570,юридична особа
АПУ,"Київ, вулиця Михайла Грушевського, 1Д",70,2017-12-02,1612700006,Банківські послуги,Інші витрати,20637,Рівненська обласна організація,35103253,Рівненська область,матеріальні витрати та оплата послуг(Погашення комiсiї за кас. обслуг. по зарахуванню на картки згiдно 16127000065 вiд 2016-01-28 р.),26002054724863,current,22.72,"ПАТ КБ ""Приватбанк""",14360570,юридична особа
АПУ,,84,2017-12-01,22,"Заробітна плата, премії","Заробітна плата, лікарняні, вагітності, відрядження, компенсації",24202,Херсонська обласна організація,35027927,Херсонська область,заробітна плата 2 ч. листопад 2017р.,26002052207238,current,1328.25,Скурту Ганна Дмитрівна,,фізична особа
АПУ,,84,2017-12-01,22,"Заробітна плата, премії","Заробітна плата, лікарняні, вагітності, відрядження, компенсації",24201,Херсонська обласна організація,35027927,Херсонська область,заробітна плата 2 ч. листопад 2017р.,26002052207238,current,1610.00,Ремінний Володимир Сергійович,,фізична особа
АПУ,,84,2017-12-01,22,"Заробітна плата, премії","Заробітна плата, лікарняні, вагітності, відрядження, компенсації",24200,Херсонська обласна організація,35027927,Херсонська область,заробітна плата 2 ч. листопад 2017р.,26002052207238,current,1773.76,Квасницький Петро Семенович,,фізична особа
